{"text_format":"1","workbook":"xlsx","n_sheets":7,"sheets":["Profile Selection","ODVA ACDC Basic Profile","ODVA ACDC Extended Profile","ABB Drives Setup","Transparent 16 Profile","Transparent 32 Profile","Profile and Instances"],"not_rendered":{"charts":0,"images":10,"macros":1,"external_links":0,"defined_names":16,"comments":6,"pivot_tables":0},"unopened":[],"bounds":{"document_bytes":16777216,"sheet_cells":100000,"rows_first":2000,"rows_last":500,"rows_between":2000,"halvings":0,"cell_chars":16384,"cell_head_chars":4096},"cells_cut":0,"cells_raw":0,"read":"whole","date_system":"1900"}

{"sheet":"Profile Selection","index":0,"n_rows":400,"n_cols":56,"rows_kept":400,"cut":false,"hidden":false,"merged":[[18,1,18,5],[51,1,58,6],[20,1,29,1],[20,3,20,4],[21,3,21,4],[22,3,22,4],[25,3,25,4],[28,3,28,4],[44,1,44,10],[45,1,45,10],[43,1,43,13],[44,11,44,12],[46,1,46,10],[45,11,45,12],[46,11,46,12],[48,11,48,13],[41,1,41,4],[174,34,174,38],[59,2,60,5],[286,9,287,14],[10,1,10,19],[11,6,11,10],[18,16,18,18],[18,19,18,21],[29,9,29,10],[20,9,20,10],[28,9,28,10],[20,7,29,7],[24,3,24,4],[23,3,23,4],[27,3,27,4],[26,3,26,4],[175,48,175,49],[175,52,175,53],[174,48,174,54],[188,22,188,23],[188,28,188,29],[175,34,175,35],[175,37,175,38],[175,22,175,23],[175,25,175,26],[175,28,175,29],[174,22,174,27],[175,40,175,41],[175,31,175,32],[174,28,174,33],[174,40,174,46],[175,44,175,45],[22,9,22,10],[27,9,27,10],[26,9,26,10],[25,9,25,10],[21,9,21,10],[24,9,24,10],[23,9,23,10],[29,17,29,18],[30,17,30,18],[31,17,31,18],[32,17,32,18],[40,1,40,4],[29,3,29,4],[24,17,24,18],[25,17,25,18],[26,17,26,18],[27,17,27,18],[28,17,28,18],[19,17,19,18],[20,17,20,18],[21,17,21,18],[22,17,22,18],[23,17,23,18],[19,20,19,21],[20,20,20,21],[21,20,21,21],[22,20,22,21],[23,20,23,21],[29,20,29,21],[30,20,30,21],[31,20,31,21],[32,20,32,21],[24,20,24,21],[25,20,25,21],[26,20,26,21],[27,20,27,21],[28,20,28,21]]}
["Description of Excel Tool:  This spreadsheet tool is intended to assist users who are configuring an ABB ACS380, ACS480, ACS580, ACH580, ACQ580, ACS880, or DCS880 on Ethernet IP to communicate to a Rockwell PLC when replacing a Rockwell VFD with ABB VFD"]
[null,"The use of 1-Port modules or 2-Port Modules are identical in configuration, thus either can be used with this configuration tool."]
["Using this Tool:  "]
[null,"Follow the Steps below, filling out the Highlighted cells to help guide you through the selections of drive being used. "]
[null,"Then click on the tab which is defined in the \"Green\" Highlighted box to assist with defining the needed parameter configuration along with defining the corresponding Rockwell Logix 5000 software configuration."]
[null,"Note:  To assist the user of this tool, please reference the comments inserted in various cells for more information."]
["Follow the Steps below to Determine the correct Profile Configuration for your application:"]
[]
["Step 1","What ABB VFD are you configuring for Ethernet IP Communications?",null,null,null,null,null,null,"ACH580",null,"What Control Mode are you utilizing with the VFD?",null,null,null,null,"Vector"]
[]
[]
[null,null,null,null,null,null,null,null,null,null,null,null,{"$f":"IF(G12=\"Customized by the PLC Programmer - 32bit\", \"32 Bit\", \"16 Bit\")","v":"16 Bit"},"= Word Size"]
[]
["Step 3","A 2nd reference \"Torque Reference\" for VFD Control/Torque feeback is required.",null,null,null,null,null,null,null,"YES"]
[]
[]
["Step 2","What Rockwell VFD are you configuring for Ethernet IP Communications?",null,null,null,null,null,null,"Powerflex525"]
[]
["Step 3","Define the Rockwell Output and Input data used.  Note: Logic Command/FreqCommand/ DriveStatus/DriveFreq are automatically mapped so no need to map here",null,null,null,null,null,null,null,null,null,null,null,null,null,null,"Input Data (Read)                                                                                               (Data Read by the PLC from the VFD)                                                             The Data Shown in the Input Data Table below is exactly the order in which it will appear in the PLC and the scaling for each input signal being communicated.                                                                                                                                                                                                                                                                                                                                                                                                                                                     ",null,null,"Output Data (Write)                                                                                                (Data Sent From PLC to the VFD)                                                      "]
[null,null,null,null,null,null,null,null,null,null,null,null,null,null,null,null,"Input Word #","Input Description",null,"Output Word #","Output Description"]
[null,"Input Data sent to the PLC from the VFD","Input 1","DC Bus Volts",null,null,null,"Output Data sent from the PLC to the VFD","Output 1",null,null,null,null,null,null,null,{"$f":"IF($M$12= \"16 Bit\", \"Word 1 (16bit)\",\"Word 1 (32bit)\")","v":"Word 1 (16bit)"},"Status Word",null,{"$f":"IF($M$12= \"16 Bit\", \"Word 1 (16bit)\",\"Word 1 (32bit)\")","v":"Word 1 (16bit)"},"Control Word"]
[null,null,"Input 2","Output Current",null,null,null,null,"Output 2",null,null,null,null,null,null,null,{"$f":"IF($M$12= \"16 Bit\", \"Word 2 (16bit)\",\"Word 2 (32bit)\")","v":"Word 2 (16bit)"},{"$f":"IF(AO9=\"Scalar (V/Hz)\",\"Actual Frequency\",\"Actual Speed\")","v":"Actual Speed"},null,{"$f":"IF($M$12= \"16 Bit\", \"Word 2 (16bit)\",\"Word 2 (32bit)\")","v":"Word 2 (16bit)"},{"$f":"IF(AO9=\"Scalar (V/Hz)\",\"Frequency Reference\",\"Speed Reference\")","v":"Speed Reference"}]
[null,null,"Input 3",null,null,null,null,null,"Output 3",null,null,null,null,null,null,null,{"$f":"IF($M$12= \"16 Bit\", \"Word 3 (16bit)\",\"Word 3 (32bit)\")","v":"Word 3 (16bit)"},{"$f":"IF($J$14=\"YES\", \"Actual Torque\", E21)","v":"Actual Torque"},null,{"$f":"IF($M$12= \"16 Bit\", \"Word 3 (16bit)\",\"Word 3 (32bit)\")","v":"Word 3 (16bit)"},{"$f":"IF(J14=\"YES\", \"Torque Reference\", K21)","v":"Torque Reference"}]
[null,null,"Input 4",null,null,null,null,null,"Output 4",null,null,null,null,null,null,null,"Custom In 1 (Word 4 16 bit)",{"$f":"IF($M$12=\"32 Bit\",IF($J$14=\"Yes\",D21,D23),IF($J$14=\"Yes\",D21,D22))","v":"DC Bus Volts"},null,"Custom Out 1 (Word 4 16 bit)",{"$f":"IF($M$12=\"32 Bit\",IF($J$14=\"Yes\",J21,J23),IF($J$14=\"Yes\",J21,J22))","v":0}]
[null,null,"Input 5",null,null,null,null,null,"Output 5",null,null,null,null,null,null,null,"Custom In 2 (Word 5 16 bit)",{"$f":"IF($M$12=\"32 Bit\",IF($J$14=\"Yes\",D23,D25),IF($J$14=\"Yes\",D22,D23))","v":"Output Current"},null,"Custom Out 2 (Word 5 16 bit)",{"$f":"IF($M$12=\"32 Bit\",IF($J$14=\"Yes\",J23,J25),IF($J$14=\"Yes\",J22,J23))","v":0}]
[null,null,"Input 6",null,null,null,null,null,"Output 6",null,null,null,null,null,null,null,"Custom In 3 (Word 6 16 bit)",{"$f":"IF($M$12=\"32 Bit\",IF($J$14=\"Yes\",D25,D27),IF($J$14=\"Yes\",D23,D24))","v":0},null,"Custom Out 3 (Word 6 16 bit)",{"$f":"IF($M$12=\"32 Bit\",IF($J$14=\"Yes\",J25,J27),IF($J$14=\"Yes\",J23,J24))","v":0}]
[null,null,"Input 7",null,null,null,null,null,"Output 7",null,null,null,null,null,null,null,"Custom In 4 (Word 7 16 bit)",{"$f":"IF($M$12=\"32 Bit\",IF($J$14=\"Yes\",D27,D29),IF($J$14=\"Yes\",D24,D25))","v":0},null,"Custom Out 4 (Word 7 16 bit)",{"$f":"IF($M$12=\"32 Bit\",IF($J$14=\"Yes\",J27,J29),IF($J$14=\"Yes\",J24,J25))","v":0}]
[null,null,"Input 8",null,null,null,null,null,"Output 8",null,null,null,null,null,null,null,"Custom In 5 (Word 8 16 bit)",{"$f":"IF($M$12=\"32 Bit\",IF($J$14=\"Yes\",D29,\"NA\"),IF($J$14=\"Yes\",D25,D26))","v":0},null,"Custom Out 5 (Word 8 16 bit)",{"$f":"IF($M$12=\"32 Bit\",IF($J$14=\"Yes\",J29,\"NA\"),IF($J$14=\"Yes\",J25,J26))","v":0}]
[null,null,"Input 9",null,null,null,null,null,"Output 9",null,null,null,null,null,null,null,"Custom In 6 (Word 9 16 bit)",{"$f":"IF($M$12=\"32 Bit\", \"NA\",IF($J$14=\"YES\",D26,D27))","v":0},null,"Custom Out 6 (Word 9 16 bit)",{"$f":"IF($M$12=\"32 Bit\", \"NA\",IF($J$14=\"YES\",J26,J27))","v":0}]
[null,null,"Input 10",null,null,null,null,null,"Output 10",null,null,null,null,null,null,null,"Custom In 7 (Word 10 16 bit)",{"$f":"IF($M$12=\"32 Bit\", \"NA\",IF($J$14=\"YES\",D27,D28))","v":0},null,"Custom Out 7 (Word 10 16 bit)",{"$f":"IF($M$12=\"32 Bit\", \"NA\",IF($J$14=\"YES\",J27,J28))","v":0}]
[null,null,null,null,null,null,null,null,null,null,null,null,null,null,null,null,"Custom In 8 (Word 11 16 bit)",{"$f":"IF($M$12=\"32 Bit\", \"NA\",IF($J$14=\"YES\",D28,D29))","v":0},null,"Custom Out 8 (Word 11 16 bit)",{"$f":"IF($M$12=\"32 Bit\", \"NA\",IF($J$14=\"YES\",J28,J29))","v":0}]
[null,null,null,null,null,null,null,null,null,null,null,null,null,null,null,null,"Custom In 9 (Word 12 16 bit)",{"$f":"IF($M$12=\"32 Bit\", \"NA\",IF($J$14=\"YES\",D29,D30))","v":0},null,"Custom Out 9 (Word 12 16 bit)",{"$f":"IF($M$12=\"32 Bit\", \"NA\",IF($J$14=\"YES\",J29,J30))","v":0}]
[null,null,null,null,null,null,null,null,null,null,null,null,null,null,null,null,"Custom In 10 (Word 13 16 bit)",{"$f":"IF($M$12=\"32 Bit\", \"NA\",IF($J$14=\"YES\",D30,\"NA\"))","v":0},null,"Custom Out 10 (Word 13 16 bit)",{"$f":"IF($M$12=\"32 Bit\", \"NA\",IF($J$14=\"YES\",J30,\"NA\"))","v":0}]
[]
[]
[]
[]
[]
[]
[]
["Step 4","Define the IP Address of the VFD =",null,null,null,192,168,3,3,null,"Select the Required Subnet",null,null,"255.255.255.0"]
[null,"Define the Required Gateway =",null,null,null,0,0,0,0]
[]
["Step 7","Only if Step 2 = \"Predefined by the VFD\", then complete Step 6.  Select the required VFD Control Word Profile based on the available Control Bits that are available for each Profile.  **Note:  ODVA Extended is default, unselect if another Profile is desired."]
[null,"ODVA AC/DC Basic Profile Control Bits Consisting of:  Run Forward, Fault Reset ",null,null,null,null,null,null,null,null,null,"Not Selected"]
[null,"ODVA AC/DC Extended Profile Control Word Bits Consisting of:   Run Fwd, Run Reverse, Fault Reset ",null,null,null,null,null,null,null,null,null,"Not Selected"]
[null,"ABB Drives Profile Control Word Bits Consisting of:  Run Command, Various Stopping Method Bits, Ramp Controls, Fault Reset, VFD Enable, Switch between 2 references or 2 Control Locations (i.e. Hand/Auto)  ",null,null,null,null,null,null,null,null,null,"ABB Drives"]
[]
["Step 5","Click on the Tab below labeled ABB Drives Setup:",null,null,null,null,null,null,null,null,null,"ABB Drives Setup"]
[]
[]
[null,"**Important AOI Information**                                                                                                                                                                                                                  ABB has Add-On Instructions available for all ABB VFDs.  Add-On Instructions (also known as AOIs) allow for a simplified way of importing predefined Data Tags into the Rockwell PLC to ease the integration of ABB VFDs into the ControlLogix or CompacLogix PLCs on Ethernet IP.  The AOI's can be accessed from the ABB website, please use the provided link below to access the ABB Ethernet IP Connectivity Web page where the Add-On Instructions may be downloaded as a zip file.  Once downloaded, unzip and run the Install.exe utility.  The files are organized under folders for every ABB VFD that supports AOIs, along with the Communication Module being utilized (Note:  1-Port and 2-Port Ethernet IP Communication Modules utilized for the ACSx80 Series of \"All Compatible VFDs\" are identical as it pertains to configuration and use of AOIs.  When running the Install utility, if default directory structures are utilized, the files for all ACSx80 series of drives are found under the following directory:                                C:/ABB/Add On Instructions for RSLogix 5000       "]
[]
[]
[]
[]
[]
[]
[]
[null,null,"https://www.abbnow.com/abbconnectivity"]
[]
[]
[]
[null,null,null,null,null,null,null,null,null,null,null,null,null,null,null,null,null,null,null,null,null,null,"Inputs","Input Param","Input Scaling","Outputs","Output Param","Output Scaling","Inputs","Input Param","Input Scaling","Outputs","Output Param","Output Scaling","Inputs","Input Param","Input Scaling","Outputs","Output Param","Output Scaling","Inputs","Input Param","Input Scaling16","Input Scaling32","Outputs","Output Param","Output Scaling16","Output Scaling32","Inputs","Input Param","Input Scaling16","Input Scaling32","Outputs","Output Param","Output Scaling16","Output Scaling32"]
[null,null,null,null,null,null,null,null,null,null,null,null,null,null,null,null,null,null,null,null,null,null,"ACS380",null,null,"ACS380",null,null,"ACS480",null,null,"ACS480",null,null,"ACS580",null,null,"ACS580",null,null,"ACS880",null,null,null,"ACS880",null,null,null,"DCS880",null,null,null,"DCS880"]
[]
[null,null,null,null,null,null,null,null,null,null,null,null,null,null,null,null,null,null,null,null,null,null,"Other",null,null,"Other",null,null,"Other",null,null,"Other",null,null,"Other",null,null,"Other",null,null,"Other",null,null,null,"Other",null,null,null,"Other",null,null,null,"Other"]
[null,null,null,null,null,null,null,null,null,null,null,null,null,null,null,null,null,null,null,null,null,null,"Motor speed used",1.01,"20000=Par46.01","RO/DIO control word",10.99,"1=1","Motor speed used",1.01,"20000=Par46.01","RO/DIO control word",10.99,"1=1","Motor speed used",1.01,"20000=Par46.01","RO/DIO control word",10.99,"1=1","Motor speed used",1.01,"20000=Par46.01","100=1rpm","RO/DIO control word",10.99,"1=1","1=1","Used motor spd filt",1.01,"20000=Par46.01","FW Manual","User control word1","6.100","1=1","FW Manual"]
[null,null,null,null,null,null,null,null,null,null,null,null,null,null,null,null,null,null,null,null,null,null,"Motor speed estimated",1.02,"20000=Par46.01","AO1 data storage",13.91,"100=1mA","Motor speed estimated",1.02,"20000=Par46.01","AO1 data storage",13.91,"100=1mA","Motor speed estimated",1.02,"20000=Par46.01","AO1 data storage",13.91,"100=1mA","Motor speed estimated",1.02,"20000=Par46.01","100=1rpm","AO1 data storage",13.91,"100=1","100=1","EMF spd filtered",1.02,"20000=Par46.01","FW Manual","User control word2","6.101","1=1","FW Manual"]
[null,null,null,null,null,null,null,null,null,null,null,null,null,null,null,null,null,null,{"$f":"VLOOKUP(N41,P71:Q101,2)","v":24},null,null,null,"Motor speed %",1.03,"20000=Par46.01","Speed ref safe",22.41,"20000=Par46.01","Motor speed %",1.03,"20000=Par46.01","Speed ref safe",22.41,"20000=Par46.01","Motor speed %",1.03,"20000=Par46.01","AO2 data storage",13.92,"100=1mA","Motor speed %",1.03,"20000=Par46.01","100=1%","AO2 data storage",13.92,"100=1","100=1","Tacho spd filtered",1.03,"20000=Par46.01","FW Manual","RO/DIO control word",10.99,"1=1","FW Manual"]
[null,null,null,null,null,null,null,null,null,null,null,null,null,null,null,"128.0.0.0",1,null,null,"Rockwell Drives",null,null,"Encoder 1 speed filtered",1.04,"1=1","Jogging 1 ref",22.42,"20000=Par46.01","Encoder 1 speed filtered",1.04,"1=1","Jogging 1 ref",22.42,"20000=Par46.01","Output frequency",1.06,"20000=Par46.02","Speed ref safe",22.41,"20000=Par46.01","Encoder 1 speed filtered",1.04,"20000=Par46.01","100=1rpm","Cont mag command",21.12,"1=On","1=On","OnBoard enc spd filt",1.04,"20000=Par46.01","FW Manual","AO1 data storage",13.91,"100=1","FW Manual"]
[null,null,null,null,null,null,null,null,null,null,null,null,null,null,null,"192.0.0.0",2,null,null,"Powerflex755",null,null,"Output frequency",1.06,"20000=Par46.02","Jogging 2 ref",22.43,"20000=Par46.01","Output frequency",1.06,"20000=Par46.02","Jogging 2 ref",22.43,"20000=Par46.01","Motor current",1.07,"10000=Par46.05","Jogging 1 ref",22.42,"20000=Par46.01","Encoder 2 speed filtered",1.05,"20000=Par46.01","100=1rpm","Speed share",22.16,"1000=1","1000=1","Encoder 1 spd filt",1.05,"20000=Par46.01","FW Manual","AO2 data storage",13.92,"100=1","FW Manual"]
[null,1,"Predefined by the VFD - 16bit",null,null,null,null,null,null,null,null,null,"Outputs","Inputs",null,"224.0.0.0",3,null,null,"Powerflex525",null,null,"Motor current",1.07,"10000=Par46.05","Acceleration time 1",23.12,"10=1s","Motor current",1.07,"10000=Par46.05","Acceleration time 1",23.12,"10=1s","Motor current % of motor nom",1.08,"1=1%","Jogging 2 ref",22.43,"20000=Par46.01","Output frequency",1.06,"20000=Par46.02","100=1Hz","Speed ref safe",22.41,"20000=Par46.01","100=1rpm","Encoder 2 spd filt",1.06,"20000=Par46.01","FW Manual","Speed reference","22.07","20000=Par46.01","FW Manual"]
[null,2,"Customized by the PLC Programmer - 16bit",null,null,null,null,null,null,"Speed",null,null,{"$f":"IF(#REF!>1,1,0)","v":{"$error":"#REF!"}},{"$f":"IF(#REF!>1,1,0)","v":{"$error":"#REF!"}},null,"240.0.0.0",4,null,null,null,null,null,"Motor current % of motor nom",1.08,"1=1%","Deceleration time 1",23.13,"10=1s","Motor current % of motor nom",1.08,"1=1%","Deceleration time 1",23.13,"10=1s","Motor current % of drive nom",1.0900000000000001,"1=1%","Acceleration time 1",23.12,"10=1s","Motor current",1.07,"10000=Par46.05","100=1A","Jogging 1 ref",22.42,"20000=Par46.01","100=1rpm","Speed change rate",1.07,"1=1rpm/s","FW Manual","Aux speed reference","22.08","20000=Par46.01","FW Manual"]
[null,null,"Customized by the PLC Programmer - 32bit",null,null,null,null,null,"Vector","DTC",null,null,{"$f":"IF($M$12=\"32 Bit\", 0, IF(#REF!>1,1,0))","v":{"$error":"#REF!"}},{"$f":"IF($M$12=\"32 Bit\", 0, IF(#REF!>1,1,0))","v":{"$error":"#REF!"}},null,"248.0.0.0",5,null,null,null,null,null,"Motor current % of drive nom",1.0900000000000001,"1=1%","Acc time jogging","23.20","10=1s","Motor current % of drive nom",1.0900000000000001,"1=1%","Acc time jogging","23.20","10=1s","Motor torque","1.10","10000=Par46.03","Deceleration time 1",23.13,"10=1s","Motor current % of motor nom",1.08,"1=1%","10=1%","Jogging 2 ref",22.43,"20000=Par46.01","100=1rpm","Motor current Amp","1.10","1=1A","FW Manual","Speed share","22.16","1000=1","FW Manual"]
[null,null,null,null,null,null,null,null,"Scalar (V/Hz)","Scalar (V/Hz)",null,null,{"$f":"IF(#REF!>1,1,0)","v":{"$error":"#REF!"}},{"$f":"IF(#REF!>1,1,0)","v":{"$error":"#REF!"}},null,"252.0.0.0",6,null,null,null,null,null,"Motor torque","1.10","10000=Par46.03","Dec time jogging",23.21,"10=1s","Motor torque","1.10","10000=Par46.03","Dec time jogging",23.21,"10=1s","DC voltage",1.1100000000000001,"10=1V","Acc time jogging","23.20","10=1s","Motor torque","1.10","10000=Par46.03","10=1%","Acceleration time 1",23.12,"10=1s","1000=1s","Motor torque filt","1.17","10000=Par46.03","FW Manual","Jogging 1 reference","22.42","20000=Par46.01","FW Manual"]
[null,null,50.01,51.27,"Control Mode","Direction","Dir Param",null,null,"Vector",null,null,{"$f":"IF($M$12=\"32 Bit\", 0, IF(#REF!>1,1,0))","v":{"$error":"#REF!"}},{"$f":"IF($M$12=\"32 Bit\", 0, IF(#REF!>1,1,0))","v":{"$error":"#REF!"}},null,"254.0.0.0",7,null,null,null,null,null,"DC voltage",1.1100000000000001,"10=1V","Shape time 1",23.32,"10=1s","DC voltage",1.1100000000000001,"10=1V","Shape time 1",23.32,"10=1s","Output voltage",1.1299999999999999,"1=1V","Dec time jogging",23.21,"10=1s","DC voltage",1.1100000000000001,"10=1V","100=1V","Deceleration time 1",23.13,"10=1s","1000=1s","Mains voltage","1.20","10=1V","FW Manual","Jogging 2 reference","22.43","20000=Par46.01","FW Manual"]
[null,"ACS380","Enable","Configure","Scalar (V/Hz)","Request",20.21,1,"ODVA ACDC Basic Profile",null,null,null,{"$f":"IF(#REF!>1,1,0)","v":{"$error":"#REF!"}},{"$f":"IF(#REF!>1,1,0)","v":{"$error":"#REF!"}},null,"255.0.0.0",8,null,null,null,null,null,"Output voltage",1.1299999999999999,"1=1V","Speed correction",24.11,"20000=Par46.01","Output voltage",1.1299999999999999,"1=1V","Speed correction",24.11,"20000=Par46.01","Output power",1.1399999999999999,"10000=Par46.04","Shape time 1",23.32,"10=1s","Output voltage",1.1299999999999999,"1=1V","1=1V","Shape time acc 1",23.16,"10=1s","1000=1s","Armature voltage","1.21","10=1V","FW Manual","Speed ref safe","22.46","20000=Par46.01","FW Manual"]
[null,"ACS480","Enable","Configure","Scalar (V/Hz)","Request",20.21,2,"ODVA ACDC Extended Profile",null,null,null,{"$f":"IF($M$12=\"32 Bit\", 0, IF(#REF!>1,1,0))","v":{"$error":"#REF!"}},{"$f":"IF($M$12=\"32 Bit\", 0, IF(#REF!>1,1,0))","v":{"$error":"#REF!"}},null,"255.128.0.0",9,null,null,null,null,null,"Output power",1.1399999999999999,"10000=Par46.04","Freq acceleration time 1",28.72,"10=1s","Output power",1.1399999999999999,"10000=Par46.04","Freq acceleration time 1",28.72,"10=1s","Output power % of motor nom",1.1499999999999999,"10=1%","Speed correction",24.11,"20000=Par46.01","Output power",1.1399999999999999,"10000=Par46.04","100=1unit","Shape time dec 1",23.18,"10=1s","1000=1s","Output power","1.24","1=1kworHp","FW Manual","Accleration time1","23.12","10=1s","FW Manual"]
[null,"ACS580","Enable","Configure","Scalar (V/Hz)","Request",20.21,3,"ABB Drives Profile",null,null,null,{"$f":"IF(#REF!>1,1,0)","v":{"$error":"#REF!"}},{"$f":"IF(#REF!>1,1,0)","v":{"$error":"#REF!"}},null,"255.192.0.0",10,null,null,null,null,null,"Output power % of motor nom",1.1499999999999999,"10=1%","Freq deceleration time 1",28.73,"10=1s","Output power % of motor nom",1.1499999999999999,"10=1%","Freq deceleration time 1",28.73,"10=1s","Output power % of drive nom",1.1599999999999999,"10=1%","Freq acceleration time 1",28.72,"10=1s","Output power % of motor nom",1.1499999999999999,"10=1%","10=1%","Acc time jogging","23.20","10=1s","1000=1s","Output power %","1.25","100=1%","FW Manual","Decleration time1","23.13","10=1s","FW Manual"]
[null,"ACS880","Option Slot 1","Refresh","DTC","Selected",20.239999999999998,4,"Transparent 16 Profile",null,null,null,{"$f":"IF($M$12=\"32 Bit\", 0, IF(#REF!>1,1,0))","v":{"$error":"#REF!"}},{"$f":"IF($M$12=\"32 Bit\", 0, IF(#REF!>1,1,0))","v":{"$error":"#REF!"}},null,"255.224.0.0",11,null,null,null,null,null,"Output power % of drive nom",1.1599999999999999,"10=1%","Shape time 1",28.82,"10=1s","Output power % of drive nom",1.1599999999999999,"10=1%","Shape time 1",28.82,"10=1s","Motor shaft power",1.17,"10000=Par46.04","Freq deceleration time 1",28.73,"10=1s","Motor shaft power",1.17,"1=1unit","100=1unit","Dec time jogging",23.21,"10=1s","1000=1s","Reactive power %","1.26","100=1%","FW Manual","Shape time acc 1",23.16,"10=1s","FW Manual"]
[null,"DCS880","Option Slot 1","Refresh","Speed","Enable Neg Spd",20.239999999999998,5,"Transparent 32 Profile",null,null,null,{"$f":"IF(#REF!>1,1,0)","v":{"$error":"#REF!"}},{"$f":"IF(#REF!>1,1,0)","v":{"$error":"#REF!"}},null,"255.240.0.0",12]
[null,"ACH580","Enable","Configure","Scalar (V/Hz)","Request",20.21,null,null,null,null,null,{"$f":"IF($M$12=\"32 Bit\", 0, IF(#REF!>1,1,0))","v":{"$error":"#REF!"}},{"$f":"IF($M$12=\"32 Bit\", 0, IF(#REF!>1,1,0))","v":{"$error":"#REF!"}},null,"255.248.0.0",13]
[null,"ACQ580","Enable","Configure","Scalar (V/Hz)","Request",20.21,null,"Vector",null,null,null,{"$f":"IF($J$14=\"YES\", 1, 0)","v":1},{"$f":"IF($J$14=\"YES\", 1, 0)","v":1},null,"255.252.0.0",14,null,null,null,null,null,"Inverter MWh motoring",1.19,"1=1MWh","Minimum frequency",30.13,"20000=Par46.02","Inverter MWh motoring",1.19,"1=1MWh","Minimum frequency",30.13,"20000=Par46.02","Inverter kWh motoring","1.20","10=1kWh","Maximum speed",30.12,"20000=Par46.01","Inverter kWh motoring","1.20","10=1kWh","10=1kWh","Freq deceleration time 1",28.73,"10=1s","1000=1s","Drive current","1.40","100=1%","FW Manual","Dec time jogging",23.21,"10=1s","FW Manual"]
[null,null,{"$f":"VLOOKUP($I$9,$B$78:$E$84,2,FALSE)","v":"Enable"},{"$f":"VLOOKUP($I$9,$B$78:$E$84,3,FALSE)","v":"Configure"},{"$f":"VLOOKUP($I$9,$B$78:$E$84,4,FALSE)","v":"Scalar (V/Hz)"},{"$f":"VLOOKUP($I$9,$B$78:$F$84,5,FALSE)","v":"Request"},{"$f":"VLOOKUP($I$9,$B$78:$G$84,6,FALSE)","v":20.21},null,null,null,null,null,2,2,null,"255.254.0.0",15,null,null,null,null,null,"Inverter kWh motoring","1.20","10=1kWh","Maximum frequency",30.14,"20000=Par46.02","Inverter kWh motoring","1.20","10=1kWh","Maximum frequency",30.14,"20000=Par46.02","Flux actual %",1.24,"1=1%","Minimum frequency",30.13,"20000=Par46.02","Flux actual %",1.24,"1=1%","1=1%","Minimum speed",30.11,"20000=Par46.01","100=1rpm","Reactive current","1.41","100=1%","FW Manual","Emergency stop time","23.23","10=1s","FW Manual"]
[null,null,null,null,null,null,null,null,null,null,null,null,{"$f":"SUM(M74:M85)","v":{"$error":"#REF!"}},{"$f":"SUM(N74:N85)","v":{"$error":"#REF!"}},null,"255.255.0.0",16,null,null,null,null,null,"Flux actual %",1.24,"1=1%","Maximum current",30.17,"1=1A","Flux actual %",1.24,"1=1%","Maximum current",30.17,"1=1A","Ambient temperature",1.31,"1=1º","Maximum frequency",30.14,"20000=Par46.02","Ambient temperature",1.31,"1=1º","10=1º","Maximum speed",30.12,"20000=Par46.01","100=1rpm","Current ripple","1.50","100=1%","FW Manual","Speed correction",24.11,"20000=Par46.01","FW Manual"]
[null,null,null,null,null,null,null,null,null,null,null,null,null,null,null,null,null,null,null,null,null,null,"Nom Torque Scale","1.30","1=100","Minimum torque 1",30.19,"10000=Par46.03","Nom Torque Scale","1.30","1=100","Minimum torque 1",30.19,"10000=Par46.03","Cumulative inverter energy",1.54,"10=1kWh","Maximum current",30.17,"1=1A","Inverter GWh regenerating",1.32,"1=1GWh","1=1GWh","Minimum frequency",30.13,"20000=Par46.02","100=1Hz","12pulse serial arm V","1.60","10=1V","FW Manual","Ext torque ref 1","26.07","10000=Par46.03","FW Manual"]
[null,"ACS380","ACS480","ACS580","ACS880","DCS880","ACH580","ACQ580",null,null,null,null,null,null,null,null,null,null,null,null,null,null,"Cumulative inverter energy",1.54,"10=1kWh","Maximum torque 1","30.20","10000=Par46.03","Cumulative inverter energy",1.54,"10=1kWh","Maximum torque 1","30.20","10000=Par46.03","Inverter GWh counter",1.55,"1=1GWh","Minimum torque 1",30.19,"10000=Par46.03","Inverter MWh regenerating",1.33,"1=1MWh","1=1MWh","Maximum frequency",30.14,"20000=Par46.02","100=1Hz","12pulse parallel Amp","1.61","1=1A","FW Manual","Ext torque ref 2","26.08","10000=Par46.03","FW Manual"]
[null,"Predefined by the VFD - 16bit","Predefined by the VFD - 16bit","Predefined by the VFD - 16bit","Predefined by the VFD - 16bit","Predefined by the VFD - 16bit","Predefined by the VFD - 16bit","Predefined by the VFD - 16bit",null,null,null,null,null,null,null,"255.255.224.0",19,null,null,null,null,null,"Inverter GWh counter",1.55,"1=1GWh","Power motoring limit",30.26,"1=1%","Inverter GWh counter",1.55,"1=1GWh","Power motoring limit",30.26,"1=1%","Inverter MWh counter",1.56,"1=1MWh","Maximum torque 1","30.20","10000=Par46.03","Inverter kWh regenerating",1.34,"10=1kWh","1=1kWh","Maximum start current",30.16,"1=1A","100=1A","Mains voltage fast","1.70","100=1%","FW Manual","Arm cur ref external","27.23","100=1%","FW Manual"]
[null,null,null,null,null,null,null,null,null,null,null,null,null,null,null,"255.255.240.0",20,null,null,null,null,null,"Inverter MWh counter",1.56,"1=1MWh","Power generating limit",30.27,"1=1%","Inverter MWh counter",1.56,"1=1MWh","Power generating limit",30.27,"1=1%","Inverter kWh counter",1.57,"10=1kWh","Power motoring limit",30.26,"1=1%","Mot - regen energy GWh",1.35,"1=1GWh","1=1GWh","Maximum current",30.17,"1=1A","100=1A","Arm voltage fast","1.71","100=1%","FW Manual","EMF volt ext ref","28.19","100=1%","FW Manual"]
[null,null,null,null,null,null,null,null,null,null,null,null,null,null,null,"255.255.248.0",21,null,null,null,null,null,"Inverter kWh counter",1.57,"10=1kWh","Motor ambient temperature","35.50","1=1º","Inverter kWh counter",1.57,"10=1kWh","Motor ambient temperature","35.50","1=1º","Cumulative inverter energy rst",1.58,"10=1kWh","Power generating limit",30.27,"1=1%","Mot - regen energy MWh",1.36,"1=1mWh","1=1mWh","Minimum torque 1",30.19,"10000=Par46.03","10=1%","Used spd ref fast","1.72","20000=Par46.01","FW Manual","Minimum speed",30.11,"20000=Par46.01","FW Manual"]
[null,null,null,null,null,null,null,null,null,null,null,null,null,null,null,"255.255.252.0",22,null,null,null,null,null,"Cumulative inverter energy rst",1.58,"10=1kWh","Set 1 internal setpoint 1",40.21,"1=1unit","Cumulative inverter energy rst",1.58,"10=1kWh","Set 1 internal setpoint 1",40.21,"1=1unit","Abs motor speed used",1.61,"1=1rpm","Motor ambient temperature","35.50","1=1º","Mot - regen energy kWh",1.37,"10=1kWh","1=1kWh","Maximum torque 1","30.20","10000=Par46.03","10=1%","Used spd fdbk fast","1.73","20000=Par46.01","FW Manual","Maximum speed",30.12,"20000=Par46.01","FW Manual"]
[null,null,null,null,null,null,null,null,null,null,"50.01 selections:",null,null,null,null,"255.255.254.0",23,null,null,null,null,null,"Abs motor speed used",1.61,"1=1rpm","Set 1 internal setpoint 2",40.22,"1=1unit","Abs motor speed used",1.61,"1=1rpm","Set 1 internal setpoint 2",40.22,"1=1unit","Abs motor speed %",1.62,"10=1%","Set 1 internal setpoint 1",40.21,"1=1unit","Abs motor speed used",1.61,"20000=Par46.01","100=1rpm","Power motoring limit",30.26,"1=1%","100=1%","Used current ref fast","1.74","100=1%","FW Manual","Spd control min torq",30.13,"10000=Par46.03","FW Manual"]
[null,1,"ODVA ACDC Basic Profile",null,null,4,null,null,null,null,"Option Slot 1",null,null,null,null,"255.255.255.0",24,null,null,null,null,null,"Abs motor speed %",1.62,"10=1%","Set 1 internal setpoint 3",40.229999999999997,"1=1unit","Abs motor speed %",1.62,"10=1%","Set 1 internal setpoint 3",40.229999999999997,"1=1unit","Abs output frequency",1.63,"1=1Hz","Set 1 internal setpoint 2",40.22,"1=1unit","Abs motor speed %",1.62,"10=1%","100=1%","Power generating limit",30.27,"1=1%","100=1%","Motor current fast","1.75","100=1%","FW Manual","Spd control max torq",30.14,"10000=Par46.03","FW Manual"]
[null,2,"ODVA ACDC Extended Profile",null,null,5,null,null,null,null,"Option Slot 2",null,null,null,null,"255.255.255.128",25,null,null,null,null,null,"Abs output frequency",1.63,"1=1Hz","Set 1 internal setpoint 0",40.24,"1=1unit","Abs output frequency",1.63,"1=1Hz","Set 1 internal setpoint 0",40.24,"1=1unit","Abs motor torque",1.64,"1=1%","Set 1 internal setpoint 3",40.229999999999997,"1=1unit","Abs output frequency",1.63,"20000=Par46.02","100=1Hz","Motor ambient temperature","35.50","1=1º","1=1º","Firing Angle fast","1.76","100=1°","FW Manual","Minimum torque 1",30.19,"10000=Par46.03","FW Manual"]
[null,3,"ABB Drives Profile",null,null,6,null,null,null,null,"Option Slot 3",null,null,null,null,"255.255.255.192",26,null,null,null,null,null,"Abs motor torque",1.64,"1=1%","Feedback data storage",40.909999999999997,"100=1","Abs motor torque",1.64,"1=1%","Feedback data storage",40.909999999999997,"100=1","Abs output power",1.65,"1=1kW","Set 1 internal setpoint 0",40.24,"1=1unit","Abs motor torque",1.64,"10000=Par46.03","10=1%","Set 1 internal setpoint 1",40.21,"1=1unit","100=1unit","M1 fld cur ref fast","1.77","100=1%","FW Manual","Maximum torque 1","30.20","10000=Par46.03","FW Manual"]
[null,4,"Transparent 16 Profile",null,null,2,null,null,null,null,"Enable",null,null,null,null,"255.255.255.224",27,null,null,null,null,null,"Abs output power",1.65,"1=1kW","Setpoint data storage",40.92,"100=1","Abs output power",1.65,"1=1kW","Setpoint data storage",40.92,"100=1","Abs output power % motor nom",1.66,"1=1%","Feedback data storage",40.909999999999997,"100=1","Abs output power",1.65,"1=1unit","100=1unit","Set 1 internal setpoint 2",40.22,"1=1unit","100=1unit","M1 fld current fast","1.78","100=1%","FW Manual","M1 cur lim bridge2","30.34","100=1%","FW Manual"]
[null,5,"Transparent 32 Profile",null,null,3,null,null,null,null,null,null,null,null,null,"255.255.255.240",28,null,null,null,null,null,"Abs output power % motor nom",1.66,"1=1%","Brake open torque","44.10","10000=Par46.03","Abs output power % motor nom",1.66,"1=1%","Brake open torque","44.10","10000=Par46.03","Abs output power % drive nom",1.67,"1=1%","Setpoint data storage",40.92,"100=1","Abs output power % motor nom",1.66,"10=1%","10=1%","Set 1 internal setpoint 3",40.229999999999997,"1=1unit","100=1unit","M2 fld cur ref fast","1.79","100=1%","FW Manual","M1 cur lim bridge1","30.35","100=1%","FW Manual"]
[null,null,null,null,null,null,null,null,null,null,null,null,null,null,null,"255.255.255.248",29,null,null,null,null,null,"Abs output power % drive nom",1.67,"1=1%","DataStorage 1 int32",47.11,"1=1","Abs output power % drive nom",1.67,"1=1%","DataStorage 1 int32",47.11,"1=1","Abs motor shaft power",1.68,"1=1kW","DataStorage 1 int32",47.11,"1=1","Abs motor shaft power",1.68,"1=1unit","100=1unit","Set 1 internal setpoint 4",40.24,"1=1unit","100=1unit","M2 fld current fast","1.80","100=1%","FW Manual","Motor ambient temp1","35.50","1=1°C or F","FW Manual"]
[null,null,null,null,null,null,null,null,null,null,null,null,null,null,null,"255.255.255.252",30,null,null,null,null,null,"Abs motor shaft power",1.68,"1=1kW","DataStorage 2 int32",47.12,"1=1","Abs motor shaft power",1.68,"1=1kW","DataStorage 2 int32",47.12,"1=1","Tripping fault",4.01,"1=1","DataStorage 2 int32",47.12,"1=1","U-phase RMS current",1.72,"10000=Par46.05","100=1A","Feedback data storage",40.909999999999997,"100=1","100=1","Tripping Fault","4.01","1=1","FW Manual","Motor ambient temp2","35.58","1=1°C or F","FW Manual"]
[null,null,null,null,null,null,null,null,null,null,null,null,null,null,null,"255.255.255.254",31,null,null,null,null,null,"Tripping fault",4.01,"1=1","DataStorage 3 int32",47.13,"1=1","Tripping fault",4.01,"1=1","DataStorage 3 int32",47.13,"1=1","Active warning 1",4.0599999999999996,"1=1","DataStorage 3 int32",47.13,"1=1","V-phase RMS current",1.73,"10000=Par46.05","100=1A","Setpoint data storage",40.92,"100=1","100=1","Active Warning","4.06","1=1","FW Manual","Set 1 internal setpoint 1",40.21,"1=1unit","FW Manual"]
[null,null,null,null,null,null,null,null,null,null,null,null,null,null,null,null,null,null,null,null,null,null,"Active warning 1",4.0599999999999996,"1=1","DataStorage 4 int32",47.14,"1=1","Active warning 1",4.0599999999999996,"1=1","DataStorage 4 int32",47.14,"1=1","Latest fault",4.1100000000000003,"1=1","DataStorage 4 int32",47.14,"1=1","W-phase RMS current",1.74,"10000=Par46.05","100=1A","Brake open torque","44.10","10000=Par46.03","10=1%","Latest fault","4.11","1=1","FW Manual","Set 1 internal setpoint 2",40.22,"1=1unit","FW Manual"]
[null,null,null,null,null,null,null,null,null,null,null,null,null,null,null,null,null,null,null,null,null,null,"Latest fault",4.1100000000000003,"1=1","DataStorage 1 int16",47.21,"1=1","Latest fault",4.1100000000000003,"1=1","DataStorage 1 int16",47.21,"1=1","Latest warning",4.16,"1=1","DataStorage 1 int16",47.21,"1=1","Tripping fault",4.01,"1=1","1=1","DataStorage 1 int32",47.11,"1=1","1=1","Latest warning","4.16","1=1","FW Manual","Set 1 internal setpoint 3",40.229999999999997,"1=1unit","FW Manual"]
[null,null,null,null,null,null,null,null,null,null,null,null,null,null,null,null,null,null,null,null,null,null,"Latest warning",4.16,"1=1","DataStorage 2 int16",47.22,"1=1","Latest warning",4.16,"1=1","DataStorage 2 int16",47.22,"1=1","On-time counter",5.01,"1=1day","DataStorage 2 int16",47.22,"1=1","Active warning 1",4.0599999999999996,"1=1","1=1","DataStorage 2 int32",47.12,"1=1","1=1","Fault word 1","4.21","1=1","FW Manual","Set 1 internal setpoint 4",40.24,"1=1unit","FW Manual"]
[null,null,null,null,null,null,null,null,null,null,null,null,null,null,null,null,null,null,null,null,null,null,"On-time counter",5.01,"1=1day","DataStorage 3 int16",47.23,"1=1","On-time counter",5.01,"1=1day","DataStorage 3 int16",47.23,"1=1","Run-time counter",5.0199999999999996,"1=1day","DataStorage 3 int16",47.23,"1=1","Latest fault",4.1100000000000003,"1=1","1=1","DataStorage 3 int32",47.13,"1=1","1=1","Fault word 2","4.22","1=1","FW Manual","Feedback data storage",40.909999999999997,"100=1","FW Manual"]
[null,null,null,null,null,null,null,null,null,null,null,null,null,null,null,null,null,null,null,null,null,null,"Run-time counter",5.0199999999999996,"1=1day","DataStorage 4 int16",47.24,"1=1","Run-time counter",5.0199999999999996,"1=1day","DataStorage 4 int16",47.24,"1=1","Fan on-time counter",5.04,"1=1day","DataStorage 4 int16",47.24,"1=1","Latest warning",4.16,"1=1","1=1","DataStorage 4 int32",47.14,"1=1","1=1","Fault word 3","4.23","1=1","FW Manual","Setpoint data storage",40.92,"100=1","FW Manual"]
[null,null,null,null,null,null,null,null,null,null,"Input Data Selection Formula",null,null,null,null,null,null,null,null,null,null,null,"Fan on-time counter",5.04,"1=1day","Clear fault and event logger",96.51,"1=reset","Fan on-time counter",5.04,"1=1day","Clear fault and event logger",96.51,"1=reset","Inverter temperature",5.1100000000000003,"1=1%","Clear fault and event logger",96.51,"1=reset","Fault word 1",4.21,"1=1","1=1","DataStorage 1 int16",47.21,"1=1","1=1","User Fault Word","4.25","1=1","FW Manual","Brake open torque",44.1,"10000=Par46.03","FW Manual"]
[null,null,null,"Speed or Freq Scaling Lookup",null,null,null,null,null,null,{"$f":"IF($I$9=\"ACS880\",$AO$66:$AO$168,IF($I$9=\"DCS880\",$AW$66:$AW$170,IF($I$9=\"ACS580\",$AI$66:$AI$163,IF($I$9=\"ACS480\",$AC$66:$AC$157,IF($I$9=\"ACS380\",$W$66:$W$157,$AI$66:$AI$163)))))","v":"Main status word"},null,null,null,null,null,null,null,null,null,null,null,"Inverter temperature",5.1100000000000003,"1=1%","Disable adaptive program","96.70","1=disable","Inverter temperature",5.1100000000000003,"1=1%","Disable adaptive program","96.70","1=disable","Main status word",6.11,"1=1","Disable adaptive program","96.70","1=disable","Fault word 2",4.22,"1=1","1=1","DataStorage 2 int16",47.22,"1=1","1=1","Warning word 1","4.31","1=1","FW Manual","DataStorage 1 int32",47.11,"1=1","FW Manual"]
[null,null,null,null,null,null,null,null,null,null,"Output Data Selection Formala",null,null,null,null,null,null,null,null,null,null,null,"Main status word",6.11,"1=1","Motor nominal current",99.06,"1=1A","Main status word",6.11,"1=1","Motor nominal current",99.06,"1=1A","Drive status word 1",6.16,"1=1","Motor nominal current",99.06,"1=1A","Warning word 1",4.3099999999999996,"1=1","1=1","DataStorage 3 int16",47.23,"1=1","1=1","Warning word 2","4.32","1=1","FW Manual","DataStorage 2 int32",47.12,"1=1","FW Manual"]
[null,null,"CtrlMode","T16","T32","ODVA Basic","ODVA Ext","ABB",null,null,{"$f":"IF($I$9=\"ACS880\",$AS$66:$AS$168,IF($I$9=\"DCS880\",$BA$66:$BA$168,IF($I$9=\"ACS580\",$AL$66:$AL$163,IF($I$9=\"ACS480\",$AF$66:$AF$157,IF($I$9=\"ACS380\",$Z$66:$Z$157,$AL$66:$AL$163)))))","v":"Motor nominal voltage"},null,null,null,null,null,null,null,null,null,null,null,"Drive status word 1",6.16,"1=1","Motor nominal voltage",99.07,"10=1V","Drive status word 1",6.16,"1=1","Motor nominal voltage",99.07,"10=1V","Drive status word 2",6.17,"1=1","Motor nominal voltage",99.07,"10=1V","Warning word 2",4.32,"1=1","1=1","DataStorage 4 int16",47.24,"1=1","1=1","Warning word 3","4.33","1=1","FW Manual","DataStorage 3 int32",47.13,"1=1","FW Manual"]
[null,null,"Scalar (V/Hz)","1=1Hz","100=1Hz","1=1Hz","1=1Hz","20000=Par46.02",null,null,null,null,null,null,null,null,null,null,null,null,null,null,"Drive status word 2",6.17,"1=1","Motor nominal frequency",99.08,"10=1Hz","Drive status word 2",6.17,"1=1","Motor nominal frequency",99.08,"10=1Hz","Start inhibit status word",6.18,"1=1","Motor nominal frequency",99.08,"10=1Hz","On-time counter",5.01,"1=1day","1=1day","DataStorage 5 int16",47.25,"1=1","1=1","User warning word","4.35","1=1","FW Manual","DataStorage 4 int32",47.14,"1=1","FW Manual"]
[null,null,"Vector","1=1rpm","100=1rpm","1=1rpm","1=1rpm","20000=Par46.01",null,null,null,null,null,null,null,null,null,null,null,null,null,null,"Start inhibit status word",6.18,"1=1","Motor nominal speed",99.09,"1=1rpm","Start inhibit status word",6.18,"1=1","Motor nominal speed",99.09,"1=1rpm","Speed control status word",6.19,"1=1","Motor nominal speed",99.09,"1=1rpm","Run-time counter",5.0199999999999996,"1=1day","1=1day","DataStorage 6 int16",47.26,"1=1","1=1","On-time counter",5.01,"1=1day","FW Manual","DataStorage 1 int16",47.21,"1=1","FW Manual"]
[null,null,"DTC","1=1rpm","100=1rpm","1=1rpm","1=1rpm","20000=Par46.01",null,null,null,null,null,null,null,null,null,null,null,null,null,null,"Speed control status word",6.19,"1=1","Motor nominal power","99.10","1=1unit","Speed control status word",6.19,"1=1","Motor nominal power","99.10","1=1unit","Drive status word 3",6.21,"1=1","Motor nominal power","99.10","1=1unit","Fan on-time counter",5.04,"1=1day","1=1day","DataStorage 7 int16",47.27,"1=1","1=1","Run-time counter",5.0199999999999996,"1=1day","FW Manual","DataStorage 2 int16",47.22,"1=1","FW Manual"]
[null,null,"Speed","1=1rpm","100=1rpm","1=1rpm","1=1rpm","20000=Par46.01",null,null,null,null,null,null,null,null,null,null,null,null,null,null,"Drive status word 3",6.21,"1=1","ID run requested",99.13,"1=1","Drive status word 3",6.21,"1=1","ID run requested",99.13,"1=1","Drive rating id",7.03,"\"  \"","ID run requested",99.13,"1=1","Inverter temperature",5.1100000000000003,"1=1%","10=1%","DataStorage 8 int16",47.28,"1=1","1=1","Fan on-time counter",5.04,"1=1day","FW Manual","DataStorage 3 int16",47.23,"1=1","FW Manual"]
[null,null,null,null,null,null,null,null,null,null,null,null,null,null,null,null,null,null,null,null,null,null,"Drive rating id",7.03,"\"  \"",null,null,null,"Drive rating id",7.03,"\"  \"",null,null,null,"Firmware version",7.05,"\"  \"",null,null,null,"Main fan service counter",5.41,"1=1%","1=1%","Force master",60.15,"1=True","1=True","Control board temp","5.10","1=1°C or F","FW Manual","DataStorage 4 int16",47.24,"1=1","FW Manual"]
[null,null,null,null,null,null,null,null,null,null,null,null,null,null,null,null,null,null,null,null,null,null,"Firmware version",7.05,"\"  \"",null,null,null,"Firmware version",7.05,"\"  \"",null,null,null,"Adaptive program status","7.30","1=1",null,null,null,"Aux. fan service counter",5.42,"1=1%","1=1%","Force follower",60.16,"1=True","1=True","Ch1 bridge temp","5.11","1=1°C or F","FW Manual","DataStorage 5 int16",47.25,"1=1","FW Manual"]
[null,null,"Column #",{"$f":"VLOOKUP($L$49,C94:F98,4,FALSE)","v":{"$error":"#N/A"}},null,null,null,null,null,null,null,null,null,null,null,null,null,null,null,null,null,null,"Adaptive program status","7.30","1=1",null,null,null,"Adaptive program status","7.30","1=1",null,null,null,"DI delayed status",10.02,"1=1",null,null,null,"Main status word",6.11,"1=1","1=1","Clear fault and event logger",96.51,"1=reset","1=reset","Main fan service cntr","5.41","1=1%","FW Manual","DataStorage 6 int16",47.26,"1=1","FW Manual"]
[null,null,null,null,null,null,null,null,null,null,null,null,null,null,null,null,null,null,null,null,null,null,"DI delayed status",10.02,"1=1",null,null,null,"DI delayed status",10.02,"1=1",null,null,null,"RO status",10.210000000000001,"1=1",null,null,null,"Drive status word 1",6.16,"1=1","1=1","Disable adaptive program","96.70","1=disable","1=disable","Main status word","6.15","1=1","FW Manual","DataStorage 7 int16",47.27,"1=1","FW Manual"]
[null,null,null,{"$f":"VLOOKUP(P9,C111:H114,D117,FALSE)","v":{"$error":"#REF!"}},null,null,null,null,null,null,null,null,null,null,null,null,null,null,null,null,null,null,"RO status",10.210000000000001,"1=1",null,null,null,"RO status",10.210000000000001,"1=1",null,null,null,"AI1 actual value",12.11,"1000=1mAorV",null,null,null,"Drive status word 2",6.17,"1=1","1=1","Motor nominal current",99.06,"1=1A","10=1A","Drive status word1","6.16","1=1","FW Manual","DataStorage 8 int16",47.28,"1=1","FW Manual"]
[null,null,null,null,null,null,null,null,null,null,null,null,null,null,null,null,null,null,null,null,null,null,"AI1 actual value",12.11,"1000=1mAorV",null,null,null,"AI1 actual value",12.11,"1000=1mAorV",null,null,null,"AI2 actual value",12.21,"1000=1mAorV",null,null,null,"Start inhibit status word",6.18,"1=1","1=1","Motor nominal voltage",99.07,"10=1V","10=1V","Drive status word2","6.17","1=1","FW Manual","Force master",60.15,"1=True","FW Manual"]
[null,null,null,null,null,null,null,null,null,null,null,null,null,null,null,null,null,null,null,null,null,null,"AI2 actual value",12.21,"1000=1mAorV",null,null,null,"AI2 actual value",12.21,"1000=1mAorV",null,null,null,"AO1 actual value",13.11,"1=1mA",null,null,null,"Speed control status word",6.19,"1=1","1=1","Motor nominal frequency",99.08,"10=1Hz","10=1Hz","Drive status word3","6.18","1=1","FW Manual","Force follower",60.16,"1=True","FW Manual"]
[null,null,null,null,null,null,null,null,null,null,null,null,null,null,null,null,null,null,null,null,null,null,"AO1 actual value",13.11,"1=1mA",null,null,null,"AO1 actual value",13.11,"1=1mA",null,null,null,"AO2 actual value",13.21,"1=1mA",null,null,null,"Drive status word 3",6.21,"1=1","1=1","Motor nominal speed",99.09,"1=1rpm","1=1rpm","Drive inhibit status","6.19","1=1","FW Manual","Pos cntr init val int","90.76","1=1","FW Manual"]
[null,null,null,null,null,null,null,null,null,null,null,null,null,null,null,null,null,null,null,null,null,null,"Speed ref unlimited",22.01,"20000=Par46.01",null,null,null,"Speed ref unlimited",22.01,"20000=Par46.01",null,null,null,"Speed ref unlimited",22.01,"20000=Par46.01",null,null,null,"User status word 1","6.50","1=1","1=1","Motor nominal power","99.10","1=1unit","100=1unit","Run inhibit status w","6.20","1=1","FW Manual","Pos cntr init cmd","90.86","1=True","FW Manual"]
[null,null,null,null,null,null,null,null,null,null,null,null,null,null,null,null,null,null,null,null,null,null,"Speed ref ramp input",23.01,"20000=Par46.01",null,null,null,"Speed ref ramp input",23.01,"20000=Par46.01",null,null,null,"Speed ref ramp input",23.01,"20000=Par46.01",null,null,null,"Drive rating id",7.03,"\"  \"","\"  \"","ID run requested",99.13,"1=1","1=1","Spd ctrl status word","6.21","1=1","FW Manual","Reset pos cntr init","90.88","1=True","FW Manual"]
[null,null,null,null,null,null,null,null,null,null,null,null,null,null,null,null,null,null,null,null,null,null,"Speed ref ramp output",23.02,"20000=Par46.01",null,null,null,"Speed ref ramp output",23.02,"20000=Par46.01",null,null,null,"Speed ref ramp output",23.02,"20000=Par46.01",null,null,null,"Firmware version",7.05,"\"  \"","\"  \"",null,null,null,null,"User status word 1","6.50","1=1","FW Manual","Parameter save","96.16","1=Save","FW Manual"]
[null,null,null,null,null,null,null,null,null,null,null,null,null,null,null,null,null,null,null,null,null,null,"Used speed reference",24.01,"20000=Par46.01",null,null,null,"Used speed reference",24.01,"20000=Par46.01",null,null,null,"Used speed reference",24.01,"20000=Par46.01",null,null,null,"Adaptive program status","7.30","1=1","1=1",null,null,null,null,"Drive rating ID set","7.03","1=1","FW Manual","Clear fault and event logger",96.51,"1=reset","FW Manual"]
[null,null,null,null,null,null,null,null,null,null,null,null,null,null,null,null,null,null,null,null,null,null,"Used speed feedback",24.02,"20000=Par46.01",null,null,null,"Used speed feedback",24.02,"20000=Par46.01",null,null,null,"Used speed feedback",24.02,"20000=Par46.01",null,null,null,"DI delayed status",10.02,"1=1","1=1",null,null,null,null,"Firmware version","7.05","1=1","FW Manual","Disable adaptive program","96.70","1=disable","FW Manual"]
[null,null,null,null,null,null,null,null,null,null,null,null,null,null,null,null,null,null,null,null,null,null,"Speed error filtered",24.03,"20000=Par46.01",null,null,null,"Speed error filtered",24.03,"20000=Par46.01",null,null,null,"Speed error filtered",24.03,"20000=Par46.01",null,null,null,"RO status",10.210000000000001,"1=1","1=1",null,null,null,null,"Adaptive program status","7.30","1=1","FW Manual","Nom Mains Volt","99.10","10=1V","FW Manual"]
[null,null,null,null,null,null,null,null,null,null,null,null,null,null,null,null,null,null,null,null,null,null,"Frequency ref ramp input",28.01,"20000=Par46.02",null,null,null,"Frequency ref ramp input",28.01,"20000=Par46.02",null,null,null,"Frequency ref ramp input",28.01,"20000=Par46.02",null,null,null,"DIO delayed status",11.02,"1=1","1=1",null,null,null,null,"DI delayed status","10.02","1=1","FW Manual","M1 nom Arm Amp","99.11","1=1A","FW Manual"]
[null,null,null,null,null,null,null,null,null,null,null,null,null,null,null,null,null,null,null,null,null,null,"Frequency ref ramp output",28.02,"20000=Par46.02",null,null,null,"Frequency ref ramp output",28.02,"20000=Par46.02",null,null,null,"Frequency ref ramp output",28.02,"20000=Par46.02",null,null,null,"AI1 actual value",12.11,"1000=1mAorV","1000=1",null,null,null,null,"RO status","10.21","1=1","FW Manual","M1 nom voltage","99.12","10=1V","FW Manual"]
[null,null,null,null,null,null,null,null,null,null,null,null,null,null,null,null,null,null,null,null,null,null,"Frequency ref unlimited",28.97,"20000=Par46.02",null,null,null,"Frequency ref unlimited",28.97,"20000=Par46.02",null,null,null,"Frequency ref unlimited",28.97,"20000=Par46.02",null,null,null,"AI2 actual value",12.21,"1000=1mAorV","1000=1",null,null,null,null,"DIO delayed status","11.02","1=1","FW Manual","M1 nom field Amp","99.13","10=1A","FW Manual"]
[null,null,null,null,null,null,null,null,null,null,null,null,null,null,null,null,null,null,null,null,null,null,"Limit word 1",30.01,"1=1",null,null,null,"Limit word 1",30.01,"1=1",null,null,null,"Limit word 1",30.01,"1=1",null,null,null,"AO1 actual value",13.11,"1=1mA","1000=1mA",null,null,null,null,"AI1 actual value",12.11,"1000=1mAorV","FW Manual","M1 nom speed","99.14","20000=Par46.01","FW Manual"]
[null,null,null,null,null,null,null,null,null,null,null,null,null,null,null,null,null,null,null,null,null,null,"Torque limit status",30.02,"1=1",null,null,null,"Torque limit status",30.02,"1=1",null,null,null,"Torque limit status",30.02,"1=1",null,null,null,"AO2 actual value",13.21,"1=1mA","1000=1mA",null,null,null,null,"AI2 actual value",12.21,"1000=1mAorV","FW Manual","Tuning Request","99.20","1=1","FW Manual"]
[null,null,null,null,null,null,null,null,null,null,null,null,null,null,null,null,null,null,null,null,null,null,"Supervision status",32.01,"1=1",null,null,null,"Supervision status",32.01,"1=1",null,null,null,"Supervision status",32.01,"1=1",null,null,null,"Speed ref unlimited",22.01,"20000=Par46.01","100=1rpm",null,null,null,null,"AO1 actual value",13.11,"1000=1mAorV","FW Manual"]
[null,null,null,null,null,null,null,null,null,null,null,null,null,null,null,null,null,null,null,null,null,null,"Motor estimated temperature",35.01,"1=1º",null,null,null,"Motor estimated temperature",35.01,"1=1º",null,null,null,"Motor estimated temperature",35.01,"1=1º",null,null,null,"Speed ref ramp input",23.01,"20000=Par46.01","100=1rpm",null,null,null,null,"AO2 actual value",13.21,"1000=1V","FW Manual"]
[null,null,null,null,null,null,null,null,null,null,null,null,null,null,null,null,null,null,null,null,null,null,"Measured temperature 1",35.020000000000003,"1=1º",null,null,null,"Measured temperature 1",35.020000000000003,"1=1º",null,null,null,"Measured temperature 1",35.020000000000003,"1=1º",null,null,null,"Speed ref ramp output",23.02,"20000=Par46.01","100=1rpm",null,null,null,null,"Speed ref unlimited",22.01,"20000=Par46.01","FW Manual"]
[null,null,null,null,null,null,null,null,null,null,null,null,null,null,null,null,null,null,null,null,null,null,"Measured temperature 2",35.03,"1=1º",null,null,null,"Measured temperature 2",35.03,"1=1º",null,null,null,"Measured temperature 2",35.03,"1=1º",null,null,null,"Used speed reference",24.01,"20000=Par46.01","100=1rpm",null,null,null,null,"Speed ref ramp input",23.01,"20000=Par46.01","FW Manual"]
[null,null,null,null,null,null,null,null,null,null,null,null,null,null,null,null,null,null,null,null,null,null,"ULC output status word",37.01,"1=1",null,null,null,"ULC output status word",37.01,"1=1",null,null,null,"ULC output status word",37.01,"1=1",null,null,null,"Used speed feedback",24.02,"20000=Par46.01","100=1rpm",null,null,null,null,"Speed ref ramp output",23.02,"20000=Par46.01","FW Manual"]
[null,null,null,null,null,null,null,null,null,null,null,null,null,null,null,null,null,null,null,null,null,null,"Process PID output actual",40.01,"1=1%",null,null,null,"Process PID output actual",40.01,"1=1%",null,null,null,"Process PID output actual",40.01,"1=1%",null,null,null,"Speed error filtered",24.03,"20000=Par46.01","100=1rpm",null,null,null,null,"Used speed reference",24.01,"20000=Par46.01","FW Manual"]
[null,null,null,null,null,null,null,null,null,null,null,null,null,null,null,null,null,null,null,null,null,null,"Process PID feedback actual",40.020000000000003,"1=1unit",null,null,null,"Process PID feedback actual",40.020000000000003,"1=1unit",null,null,null,"Process PID feedback actual",40.020000000000003,"1=1unit",null,null,null,"Frequency ref ramp input",28.01,"20000=Par46.02","100=1Hz",null,null,null,null,"Used speed feedback",24.02,"20000=Par46.01","FW Manual"]
[null,null,null,null,null,null,null,null,null,null,null,null,null,null,null,null,null,null,null,null,null,null,"Process PID setpoint actual",40.03,"1=1unit",null,null,null,"Process PID setpoint actual",40.03,"1=1unit",null,null,null,"Process PID setpoint actual",40.03,"1=1unit",null,null,null,"Frequency ref ramp output",28.02,"20000=Par46.02","100=1Hz",null,null,null,null,"Speed error filtered",24.03,"20000=Par46.01","FW Manual"]
[null,null,null,null,null,null,null,null,null,null,null,null,null,null,null,null,null,null,null,"Custom Input","Custom Output",null,"Process PID status word",40.06,"1=1",null,null,null,"Process PID status word",40.06,"1=1",null,null,null,"Process PID status word",40.06,"1=1",null,null,null,"Frequency ref unlimited",28.97,"20000=Par46.02","100=1Hz",null,null,null,null,"Torque reference used","26.02","10000=Par46.03","FW Manual"]
[null,null,null,null,null,null,null,null,null,null,null,null,null,null,null,null,null,null,null,{"$f":"IF($J$14=\"NO\",#REF!,#REF!)","v":{"$error":"#REF!"}},{"$f":"IF($J$14=\"NO\",#REF!,#REF!)","v":{"$error":"#REF!"}},null,"Braking resistor temperature",43.01,"1=1%",null,null,null,"Braking resistor temperature",43.01,"1=1%",null,null,null,"Braking resistor temperature",43.01,"1=1%",null,null,null,"Limit word 1",30.01,"1=1","1=1",null,null,null,null,"Motor peak current","27.06","100=1%","FW Manual"]
[null,null,null,null,null,null,null,null,null,null,null,null,null,null,null,null,null,null,null,{"$f":"IF($J$14=\"NO\",#REF!,#REF!)","v":{"$error":"#REF!"}},{"$f":"IF($J$14=\"NO\",#REF!,#REF!)","v":{"$error":"#REF!"}},null,"Brake control status",44.01,"1=1",null,null,null,"Brake control status",44.01,"1=1",null,null,null,"Brake control status",44.01,"1=1",null,null,null,"Torque limit status",30.02,"1=1","1=1",null,null,null,null,"Limit word 1",30.01,"1=1","FW Manual"]
[null,null,null,null,null,null,null,null,null,null,null,null,null,null,null,null,null,null,null,{"$f":"IF($J$14=\"NO\",#REF!,#REF!)","v":{"$error":"#REF!"}},{"$f":"IF($J$14=\"NO\",#REF!,#REF!)","v":{"$error":"#REF!"}},null,"DataStorage 1 int32",47.11,"1=1",null,null,null,"DataStorage 1 int32",47.11,"1=1",null,null,null,"DataStorage 1 int32",47.11,"1=1",null,null,null,"Supervision status",32.01,"1=1","1=1",null,null,null,null,"Torque limit status",30.02,"1=1","FW Manual"]
[null,null,null,null,null,null,null,null,null,null,null,null,null,null,null,null,null,null,null,{"$f":"IF($J$14=\"NO\",#REF!,#REF!)","v":{"$error":"#REF!"}},{"$f":"IF($J$14=\"NO\",#REF!,#REF!)","v":{"$error":"#REF!"}},null,"DataStorage 2 int32",47.12,"1=1",null,null,null,"DataStorage 2 int32",47.12,"1=1",null,null,null,"DataStorage 2 int32",47.12,"1=1",null,null,null,"Motor estimated temperature",35.01,"1=1º","1=1º",null,null,null,null,"Supervision status",32.01,"1=1","FW Manual"]
[null,null,null,null,null,null,null,null,null,null,null,null,null,null,null,null,null,null,null,{"$f":"IF($J$14=\"NO\",#REF!,#REF!)","v":{"$error":"#REF!"}},{"$f":"IF($J$14=\"NO\",#REF!,#REF!)","v":{"$error":"#REF!"}},null,"DataStorage 3 int32",47.13,"1=1",null,null,null,"DataStorage 3 int32",47.13,"1=1",null,null,null,"DataStorage 3 int32",47.13,"1=1",null,null,null,"Measured temperature 1",35.020000000000003,"1=1º","1=1º",null,null,null,null,"Motor estimated temperature",35.01,"1=1ºCorF","FW Manual"]
[null,null,null,null,null,null,null,null,null,null,null,null,null,null,null,null,null,null,null,{"$f":"IF($J$14=\"NO\",#REF!,#REF!)","v":{"$error":"#REF!"}},{"$f":"IF($J$14=\"NO\",#REF!,#REF!)","v":{"$error":"#REF!"}},null,"DataStorage 4 int32",47.14,"1=1",null,null,null,"DataStorage 4 int32",47.14,"1=1",null,null,null,"DataStorage 4 int32",47.14,"1=1",null,null,null,"Measured temperature 2",35.03,"1=1º","1=1º",null,null,null,null,"Measured temperature 1",35.020000000000003,"1=1ºCorF","FW Manual"]
[null,null,null,null,null,null,null,null,null,null,null,null,null,null,null,null,null,null,null,{"$f":"IF($J$14=\"NO\",#REF!,#REF!)","v":{"$error":"#REF!"}},{"$f":"IF($J$14=\"NO\",#REF!,#REF!)","v":{"$error":"#REF!"}},null,"DataStorage 1 int16",47.21,"1=1",null,null,null,"DataStorage 1 int16",47.21,"1=1",null,null,null,"DataStorage 1 int16",47.21,"1=1",null,null,null,"ULC output status word",37.01,"1=1","1=1",null,null,null,null,"Measured temperature 2","35.04","1=1ºCorF","FW Manual"]
[null,null,null,null,null,null,null,null,null,null,null,null,null,null,null,null,null,null,null,{"$f":"IF($J$14=\"NO\",#REF!,#REF!)","v":{"$error":"#REF!"}},{"$f":"IF($J$14=\"NO\",#REF!,#REF!)","v":{"$error":"#REF!"}},null,"DataStorage 2 int16",47.22,"1=1",null,null,null,"DataStorage 2 int16",47.22,"1=1",null,null,null,"DataStorage 2 int16",47.22,"1=1",null,null,null,"Process PID output actual",40.01,"1=1%","100=1unit",null,null,null,null,"Motor ambient temp","35.50","1=1ºCorF","FW Manual"]
[null,null,null,null,null,null,null,null,null,null,null,null,null,null,null,null,null,null,null,{"$f":"IF($J$14=\"NO\",#REF!,#REF!)","v":{"$error":"#REF!"}},{"$f":"IF($J$14=\"NO\",#REF!,#REF!)","v":{"$error":"#REF!"}},null,"DataStorage 3 int16",47.23,"1=1",null,null,null,"DataStorage 3 int16",47.23,"1=1",null,null,null,"DataStorage 3 int16",47.23,"1=1",null,null,null,"Process PID feedback actual",40.020000000000003,"1=1unit","100=1unit",null,null,null,null,"ULC output status word",37.01,"1=1","FW Manual"]
[null,null,null,null,null,null,null,null,null,null,null,null,null,null,null,null,null,null,null,{"$f":"IF($J$14=\"NO\",#REF!,#REF!)","v":{"$error":"#REF!"}},{"$f":"IF($J$14=\"NO\",#REF!,#REF!)","v":{"$error":"#REF!"}},null,"DataStorage 4 int16",47.24,"1=1",null,null,null,"DataStorage 4 int16",47.24,"1=1",null,null,null,"DataStorage 4 int16",47.24,"1=1",null,null,null,"Process PID setpoint actual",40.03,"1=1unit","100=1unit",null,null,null,null,"Process PID output actual",40.01,"1=1%","FW Manual"]
[null,null,null,null,null,null,null,null,null,null,null,null,null,null,null,null,null,null,null,null,null,null,"Limit to limit control status",76.010000000000005,"1=1",null,null,null,"Limit to limit control status",76.010000000000005,"1=1",null,null,null,"PFC status",76.010000000000005,"1=1",null,null,null,"Process PID status word",40.06,"1=1","1=1",null,null,null,null,"Process PID feedback actual",40.020000000000003,"1=1unit","FW Manual"]
[null,null,null,null,null,null,null,null,null,null,null,null,null,null,null,null,null,null,null,null,null,null,"Motor Position",90.02,"32767=1rev",null,null,null,"Motor Position",90.02,"32767=1rev",null,null,null,"Multipump system status",76.02,"1=1",null,null,null,"Braking resistor temperature",43.01,"1=1%","10=1%",null,null,null,null,"Process PID setpoint actual",40.03,"1=1unit","FW Manual"]
[null,null,null,null,null,null,null,null,null,null,null,null,null,null,null,null,null,null,null,null,null,null,"Encoder 1 position",90.11,"32767=1rev",null,null,null,"Encoder 1 position",90.11,"32767=1rev",null,null,null,"Pump status 1",76.11,"1=1",null,null,null,"Brake control status",44.01,"1=1","1=1",null,null,null,null,"Process PID status word",40.06,"1=1","FW Manual"]
[null,null,null,null,null,null,null,null,null,null,null,null,null,null,null,null,null,null,null,null,null,null,"Encoder 1 revol extension",90.13,"1=1rev",null,null,null,"Encoder 1 revol extension",90.13,"1=1rev",null,null,null,"Pump status 2",76.12,"1=1",null,null,null,"DataStorage 1 int32",47.11,"1=1","1=1",null,null,null,null,"Brake control status",44.01,"1=1","FW Manual"]
[null,null,null,null,null,null,null,null,null,null,null,null,null,null,null,null,null,null,null,null,null,null,"Last ID run performed",99.14,"1=1",null,null,null,"Last ID run performed",99.14,"1=1",null,null,null,"Pump status 3",76.13,"1=1",null,null,null,"DataStorage 2 int32",47.12,"1=1","1=1",null,null,null,null,"M1 spd scaling act","46.02","1=1rpm ","FW Manual"]
[null,null,null,null,null,null,null,null,null,null,null,null,null,null,null,null,null,null,null,null,null,null,null,null,null,null,null,null,null,null,null,null,null,null,"Pump status 4",76.14,"1=1",null,null,null,"DataStorage 3 int32",47.13,"1=1","1=1",null,null,null,null,"M1 torq scaling act","46.04","100=1%","FW Manual"]
[null,null,null,null,null,null,null,null,null,null,null,null,null,null,null,null,null,null,null,null,null,null,null,null,null,null,null,null,null,null,null,null,null,null,"Pump/fan 1 run time",77.11,"1=1h",null,null,null,"DataStorage 4 int32",47.14,"1=1","1=1",null,null,null,null,"DataStorage 1 int32",47.11,"1=1","FW Manual"]
[null,null,null,null,null,null,null,null,null,null,null,null,null,null,null,null,null,null,null,null,null,null,null,null,null,null,null,null,null,null,null,null,null,null,"Pump/fan 2 run time",77.12,"1=1h",null,null,null,"DataStorage 1 int16",47.21,"1=1","1=1",null,null,null,null,"DataStorage 2 int32",47.12,"1=1","FW Manual"]
[null,null,null,null,null,null,null,null,null,null,null,null,null,null,null,null,null,null,null,null,null,null,null,null,null,null,null,null,null,null,null,null,null,null,"Pump/fan 3 run time",77.13,"1=1h",null,null,null,"DataStorage 2 int16",47.22,"1=1","1=1",null,null,null,null,"DataStorage 3 int32",47.13,"1=1","FW Manual"]
[null,null,null,null,null,null,null,null,null,null,null,null,null,null,null,null,null,null,null,null,null,null,null,null,null,null,null,null,null,null,null,null,null,null,"Pump/fan 4 run time",77.14,"1=1h",null,null,null,"DataStorage 3 int16",47.23,"1=1","1=1",null,null,null,null,"DataStorage 4 int32",47.14,"1=1","FW Manual"]
[null,null,null,null,null,null,null,null,null,null,null,null,null,null,null,null,null,null,null,null,null,null,null,null,null,null,null,null,null,null,null,null,null,null,"Last ID run performed",99.14,"1=1",null,null,null,"DataStorage 4 int16",47.24,"1=1","1=1",null,null,null,null,"DataStorage 1 int16",47.21,"1=1","FW Manual"]
[null,null,null,null,null,null,null,null,null,null,null,null,null,null,null,null,null,null,null,null,null,null,null,null,null,null,null,null,null,null,null,null,null,null,null,null,null,null,null,null,"Motor Position",90.02,"32767=1rev","100000000=1rev",null,null,null,null,"DataStorage 2 int16",47.22,"1=1","FW Manual"]
[null,null,null,null,null,null,null,null,null,null,null,null,null,null,null,null,null,null,null,null,null,null,null,null,null,null,null,null,null,null,null,null,null,null,null,null,null,null,null,null,"Encoder 1 position",90.11,"32767=1rev","100000000=1rev",null,null,null,null,"DataStorage 3 int16",47.23,"1=1","FW Manual"]
[null,null,null,null,null,null,null,null,null,null,null,null,null,null,null,null,null,null,null,null,null,null,null,null,null,null,null,null,null,null,null,null,null,null,null,null,null,null,null,null,"Encoder 1 revol extension",90.13,"1=1rev","1=1rev",null,null,null,null,"DataStorage 4 int16",47.24,"1=1","FW Manual"]
[null,null,null,null,null,null,null,null,null,null,null,null,null,null,null,null,null,null,null,null,null,null,null,null,null,null,null,null,null,null,null,null,null,null,null,null,null,null,null,null,"Actual checksum",96.53,"1=1","1=1",null,null,null,null,"Motor Position",90.02,"32767=1rev","FW Manual"]
[null,null,null,null,null,null,null,null,null,null,null,null,null,null,null,null,null,null,null,null,null,null,null,null,null,null,null,null,null,null,null,null,null,null,null,null,null,null,null,null,"Last ID run performed",99.14,"1=1","1=1",null,null,null,null,"Load Position scaled","90.05","1=1","FW Manual"]
[null,null,null,null,null,null,null,null,null,null,null,null,null,null,null,null,null,null,null,null,null,null,null,null,null,null,null,null,null,null,null,null,null,null,null,null,null,null,null,null,null,null,null,null,null,null,null,null,"Motor Position scaled","90.06","1=1","FW Manual"]
[null,null,null,null,null,null,null,null,null,null,null,null,null,null,null,null,null,null,null,null,null,null,null,null,null,null,null,null,null,null,null,null,null,null,null,null,null,null,null,null,null,null,null,null,null,null,null,null,"Load pos scaled int","90.07","1=1","FW Manual"]
[]
[]
[]
[]
[null,null,null,null,null,null,null,null,null,null,null,null,null,null,null,null,null,null,null,null,null,null,"ACS380",null,null,null,null,null,"ACS480",null,null,null,null,null,"ACS580",null,null,null,null,null,"ACS880",null,null,null,null,null,null,null,"DCS880"]
[null,null,null,null,null,null,null,null,null,null,null,null,null,null,null,null,null,null,null,null,null,null,"Input Signal #",null,null,"Output Signal #",null,null,"Input Signal #",null,null,"Output Signal #",null,null,"Input Signal #",null,null,"Output Signal #",null,null,"Input Signal #",null,"In Scaling16or32",null,"Output Signal #",null,"Out Scaling16or32",null,"Input Signal #",null,"In Scaling16or32",null,"Output Signal #",null,"Out Scaling16or32"]
[null,null,null,null,null,null,null,null,null,null,null,null,null,null,null,null,null,null,null,null,null,null,"52.01=",{"$f":"IFERROR(VLOOKUP(T143,$W$66:$Y$157,2,FALSE),T143)","v":{"$error":"#REF!"}},{"$f":"IF(X177=0,\"NA\",IF(X177=\"NA\",\"NA\",IFERROR(VLOOKUP(T143,$W$66:$Y$157,3,FALSE),\"FW Manual\")))","v":{"$error":"#REF!"}},"53.01=",{"$f":"IFERROR(VLOOKUP(U143,$Z$66:$AB$157,2,FALSE),U143)","v":{"$error":"#REF!"}},{"$f":"IF(AA177=0,\"NA\",IF(AA177=\"NA\",\"NA\",IFERROR(VLOOKUP(U143,$Z$66:$AB$157,3,FALSE),\"FW Manual\")))","v":{"$error":"#REF!"}},"52.01=",{"$f":"IFERROR(VLOOKUP(T143,$AC$66:$AE$157,2,FALSE),T143)","v":{"$error":"#REF!"}},{"$f":"IF(AD177=0,\"NA\",IF(AD177=\"NA\",\"NA\",IFERROR(VLOOKUP(T143,$AC$66:$AE$157,3,FALSE),\"FW Manual\")))","v":{"$error":"#REF!"}},"53.01=",{"$f":"IFERROR(VLOOKUP(U143,$AF$66:$AH$157,2,FALSE),U143)","v":{"$error":"#REF!"}},{"$f":"IF(AG177=0,\"NA\",IF(AG177=\"NA\",\"NA\",IFERROR(VLOOKUP(U143,$AF$66:$AH$157,3,FALSE),\"FW Manual\")))","v":{"$error":"#REF!"}},"52.01=",{"$f":"IFERROR(VLOOKUP(T143,$AI$66:$AK$163,2,FALSE),T143)","v":{"$error":"#REF!"}},{"$f":"IF(AJ177=0,\"NA\",IF(AJ177=\"NA\",\"NA\",IFERROR(VLOOKUP(T143,$AI$66:$AK$163,3,FALSE),\"FW Manual\")))","v":{"$error":"#REF!"}},"53.01=",{"$f":"IFERROR(VLOOKUP(U143,$AL$66:$AN$163,2,FALSE),U143)","v":{"$error":"#REF!"}},{"$f":"IF(AM177=0,\"NA\",IF(AM177=\"NA\",\"NA\",IFERROR(VLOOKUP(U143,$AL$66:$AN$163,3,FALSE),\"FW Manual\")))","v":{"$error":"#REF!"}},"52.01=",{"$f":"IFERROR(VLOOKUP(T143,$AO$66:$AQ$168,2,FALSE),T143)","v":{"$error":"#REF!"}},{"$f":"IF(AP177=0,\"NA\",IF(AP177=\"NA\",\"NA\",IFERROR(VLOOKUP(T143,$AO$66:$AR$168,$AQ$188,FALSE),\"FW Manual\")))","v":{"$error":"#REF!"}},null,"53.01=",{"$f":"IFERROR(VLOOKUP(U143,$AS$66:$AU$168,2,FALSE),U143)","v":{"$error":"#REF!"}},{"$f":"IF(AT177=0,\"NA\",IF(AT177=\"NA\",\"NA\",IFERROR(VLOOKUP(U143,$AS$66:$AV$168,$AQ$188,FALSE),\"FW Manual\")))","v":{"$error":"#REF!"}},null,"52.01=",{"$f":"IFERROR(VLOOKUP(T143,$AW$66:$AY$170,2,FALSE),T143)","v":{"$error":"#REF!"}},{"$f":"IF(AX177=0,\"NA\",IF(AX177=\"NA\",\"NA\",IFERROR(VLOOKUP(T143,$AW$66:$AZ$170,$AQ$188,FALSE),\"FW Manual\")))","v":{"$error":"#REF!"}},null,"53.01=",{"$f":"IFERROR(VLOOKUP(U143,$BA$66:$BC$168,2,FALSE),U143)","v":{"$error":"#REF!"}},{"$f":"IF(BB177=0,\"NA\",IF(BB177=\"NA\",\"NA\",IFERROR(VLOOKUP(U143,$BA$66:$BD$168,$AQ$188,FALSE),\"FW Manual\")))","v":{"$error":"#REF!"}}]
[null,null,null,null,null,null,null,null,null,null,null,null,null,null,null,null,null,null,null,null,null,null,"52.02=",{"$error":"#REF!"},{"$error":"#REF!"},"53.02=",{"$error":"#REF!"},{"$error":"#REF!"},"52.02=",{"$error":"#REF!"},{"$error":"#REF!"},"53.02=",{"$error":"#REF!"},{"$error":"#REF!"},"52.02=",{"$error":"#REF!"},{"$error":"#REF!"},"53.02=",{"$error":"#REF!"},{"$error":"#REF!"},"52.02=",{"$error":"#REF!"},{"$error":"#REF!"},null,"53.02=",{"$error":"#REF!"},{"$error":"#REF!"},null,"52.02=",{"$f":"IFERROR(VLOOKUP(T144,$AW$66:$AY$168,2,FALSE),T144)","v":{"$error":"#REF!"}},{"$error":"#REF!"},null,"53.02=",{"$error":"#REF!"},{"$error":"#REF!"}]
[null,null,null,null,null,null,null,null,null,null,null,null,null,null,null,null,null,null,null,null,null,null,"52.03=",{"$error":"#REF!"},{"$error":"#REF!"},"53.03=",{"$error":"#REF!"},{"$error":"#REF!"},"52.03=",{"$error":"#REF!"},{"$error":"#REF!"},"53.03=",{"$error":"#REF!"},{"$error":"#REF!"},"52.03=",{"$error":"#REF!"},{"$error":"#REF!"},"53.03=",{"$error":"#REF!"},{"$error":"#REF!"},"52.03=",{"$error":"#REF!"},{"$error":"#REF!"},null,"53.03=",{"$error":"#REF!"},{"$error":"#REF!"},null,"52.03=",{"$error":"#REF!"},{"$error":"#REF!"},null,"53.03=",{"$error":"#REF!"},{"$error":"#REF!"}]
[null,null,null,null,null,null,null,null,null,null,null,null,null,null,null,null,null,null,null,null,null,null,"52.04=",{"$error":"#REF!"},{"$error":"#REF!"},"53.04=",{"$error":"#REF!"},{"$error":"#REF!"},"52.04=",{"$error":"#REF!"},{"$error":"#REF!"},"53.04=",{"$error":"#REF!"},{"$error":"#REF!"},"52.04=",{"$error":"#REF!"},{"$error":"#REF!"},"53.04=",{"$error":"#REF!"},{"$error":"#REF!"},"52.04=",{"$error":"#REF!"},{"$error":"#REF!"},null,"53.04=",{"$error":"#REF!"},{"$error":"#REF!"},null,"52.04=",{"$error":"#REF!"},{"$error":"#REF!"},null,"53.04=",{"$error":"#REF!"},{"$error":"#REF!"}]
[null,null,null,null,null,null,null,null,null,null,null,null,null,null,null,null,null,null,null,null,null,null,"52.05=",{"$error":"#REF!"},{"$error":"#REF!"},"53.05=",{"$error":"#REF!"},{"$error":"#REF!"},"52.05=",{"$error":"#REF!"},{"$error":"#REF!"},"53.05=",{"$error":"#REF!"},{"$error":"#REF!"},"52.05=",{"$error":"#REF!"},{"$error":"#REF!"},"53.05=",{"$error":"#REF!"},{"$error":"#REF!"},"52.05=",{"$error":"#REF!"},{"$error":"#REF!"},null,"53.05=",{"$error":"#REF!"},{"$error":"#REF!"},null,"52.05=",{"$error":"#REF!"},{"$error":"#REF!"},null,"53.05=",{"$error":"#REF!"},{"$error":"#REF!"}]
[null,null,null,null,null,null,null,null,null,null,null,null,null,null,null,null,null,null,null,null,null,null,"52.06=",{"$error":"#REF!"},{"$error":"#REF!"},"53.06=",{"$error":"#REF!"},{"$error":"#REF!"},"52.06=",{"$error":"#REF!"},{"$error":"#REF!"},"53.06=",{"$error":"#REF!"},{"$error":"#REF!"},"52.06=",{"$error":"#REF!"},{"$error":"#REF!"},"53.06=",{"$error":"#REF!"},{"$error":"#REF!"},"52.06=",{"$error":"#REF!"},{"$error":"#REF!"},null,"53.06=",{"$error":"#REF!"},{"$error":"#REF!"},null,"52.06=",{"$error":"#REF!"},{"$error":"#REF!"},null,"53.06=",{"$error":"#REF!"},{"$error":"#REF!"}]
[null,null,null,null,null,null,null,null,null,null,null,null,null,null,null,null,null,null,null,null,null,null,"52.07=",{"$error":"#REF!"},{"$error":"#REF!"},"53.07=",{"$error":"#REF!"},{"$error":"#REF!"},"52.07=",{"$error":"#REF!"},{"$error":"#REF!"},"53.07=",{"$error":"#REF!"},{"$error":"#REF!"},"52.07=",{"$error":"#REF!"},{"$error":"#REF!"},"53.07=",{"$error":"#REF!"},{"$error":"#REF!"},"52.07=",{"$error":"#REF!"},{"$error":"#REF!"},null,"53.07=",{"$error":"#REF!"},{"$error":"#REF!"},null,"52.07=",{"$error":"#REF!"},{"$error":"#REF!"},null,"53.07=",{"$error":"#REF!"},{"$error":"#REF!"}]
[null,null,null,null,null,null,null,null,null,null,null,null,null,null,null,null,null,null,null,null,null,null,"52.08=",{"$error":"#REF!"},{"$error":"#REF!"},"53.08=",{"$error":"#REF!"},{"$error":"#REF!"},"52.08=",{"$error":"#REF!"},{"$error":"#REF!"},"53.08=",{"$error":"#REF!"},{"$error":"#REF!"},"52.08=",{"$error":"#REF!"},{"$error":"#REF!"},"53.08=",{"$error":"#REF!"},{"$error":"#REF!"},"52.08=",{"$error":"#REF!"},{"$error":"#REF!"},null,"53.08=",{"$error":"#REF!"},{"$error":"#REF!"},null,"52.08=",{"$error":"#REF!"},{"$error":"#REF!"},null,"53.08=",{"$error":"#REF!"},{"$error":"#REF!"}]
[null,null,null,null,null,null,null,null,null,null,null,null,null,null,null,null,null,null,null,null,null,null,"52.09=",{"$error":"#REF!"},{"$error":"#REF!"},"53.09=",{"$error":"#REF!"},{"$error":"#REF!"},"52.09=",{"$error":"#REF!"},{"$error":"#REF!"},"53.09=",{"$error":"#REF!"},{"$error":"#REF!"},"52.09=",{"$error":"#REF!"},{"$error":"#REF!"},"53.09=",{"$error":"#REF!"},{"$error":"#REF!"},"52.09=",{"$error":"#REF!"},{"$error":"#REF!"},null,"53.09=",{"$error":"#REF!"},{"$error":"#REF!"},null,"52.09=",{"$error":"#REF!"},{"$error":"#REF!"},null,"53.09=",{"$error":"#REF!"},{"$error":"#REF!"}]
[null,null,null,null,null,null,null,null,null,null,null,null,null,null,null,null,null,null,null,null,null,null,"52.10=",{"$error":"#REF!"},{"$error":"#REF!"},"53.10=",{"$error":"#REF!"},{"$error":"#REF!"},"52.10=",{"$error":"#REF!"},{"$error":"#REF!"},"53.10=",{"$error":"#REF!"},{"$error":"#REF!"},"52.10=",{"$error":"#REF!"},{"$error":"#REF!"},"53.10=",{"$error":"#REF!"},{"$error":"#REF!"},"52.10=",{"$error":"#REF!"},{"$error":"#REF!"},null,"53.10=",{"$error":"#REF!"},{"$error":"#REF!"},null,"52.10=",{"$error":"#REF!"},{"$error":"#REF!"},null,"53.10=",{"$error":"#REF!"},{"$error":"#REF!"}]
[]
[null,null,null,null,null,null,null,null,null,null,null,null,null,null,null,null,null,null,null,null,null,null,null,"Below are the Inputs and Outputs based on the selected VFD in cell I9",null,null,null,null,null,null,null,null,null,null,null,null,null,null,null,null,null,null,{"$f":"IF($M$12=\"32 Bit\",4,3)","v":3}]
[null,null,null,null,null,null,null,null,null,null,null,null,null,null,null,null,null,null,null,null,null,null,"Inputs",null,"Scaling",null,null,null,"Outputs",null,"Scaling"]
[null,null,null,null,null,null,null,null,null,null,null,null,null,null,null,null,null,null,null,null,null,null,"Input 1",{"$f":"IF($I$9=\"ACS380\",X177,IF($I$9=\"ACS480\",AD177,IF($I$9=\"ACS580\",AJ177,IF($I$9=\"ACS880\",AP177,IF($I$9=\"DCS800\",AX177,AJ177)))))","v":{"$error":"#REF!"}},{"$f":"IF($I$9=\"ACS380\",Y177,IF($I$9=\"ACS480\",AE177,IF($I$9=\"ACS580\",AK177,IF($I$9=\"ACS880\",AQ177,IF($I$9=\"DCS880\",AY177,AK177)))))","v":{"$error":"#REF!"}},null,null,null,"Output 1",{"$f":"IF($I$9=\"ACS380\",AA177,IF($I$9=\"ACS480\",AG177,IF($I$9=\"ACS580\",AM177,IF($I$9=\"ACS880\",AT177,IF($I$9=\"DCS880\",BB177,AM177)))))","v":{"$error":"#REF!"}},{"$f":"IF($I$9=\"ACS380\",AB177,IF($I$9=\"ACS480\",AH177,IF($I$9=\"ACS580\",AN177,IF($I$9=\"ACS880\",AU177,IF($I$9=\"DCS880\",BC177,AN177)))))","v":{"$error":"#REF!"}}]
[null,null,null,null,null,null,null,null,null,null,null,null,null,null,null,null,null,null,null,null,null,null,"Input 2",{"$error":"#REF!"},{"$error":"#REF!"},null,null,null,"Output 2",{"$error":"#REF!"},{"$error":"#REF!"}]
[null,null,null,null,null,null,null,null,null,null,null,null,null,null,null,null,null,null,null,null,null,null,"Input 3",{"$error":"#REF!"},{"$error":"#REF!"},null,null,null,"Output 3",{"$error":"#REF!"},{"$error":"#REF!"}]
[null,null,null,null,null,null,null,null,null,null,null,null,null,null,null,null,null,null,null,null,null,null,"Input 4",{"$f":"IF($I$9=\"ACS380\",X180,IF($I$9=\"ACS480\",AD180,IF($I$9=\"ACS580\",AJ180,IF($I$9=\"ACS880\",AP180,IF($I$9=\"DCS800\",AX180,AJ180)))))","v":{"$error":"#REF!"}},{"$error":"#REF!"},null,null,null,"Output 4",{"$error":"#REF!"},{"$error":"#REF!"}]
[null,null,null,null,null,null,null,null,null,null,null,null,null,null,null,null,null,null,null,null,null,null,"Input 5",{"$error":"#REF!"},{"$error":"#REF!"},null,null,null,"Output 5",{"$error":"#REF!"},{"$error":"#REF!"}]
[null,null,null,null,null,null,null,null,null,null,null,null,null,null,null,null,null,null,null,null,null,null,"Input 6",{"$error":"#REF!"},{"$error":"#REF!"},null,null,null,"Output 6",{"$error":"#REF!"},{"$error":"#REF!"}]
[null,null,null,null,null,null,null,null,null,null,null,null,null,null,null,null,null,null,null,null,null,null,"Input 7",{"$error":"#REF!"},{"$error":"#REF!"},null,null,null,"Output 7",{"$error":"#REF!"},{"$error":"#REF!"}]
[null,null,null,null,null,null,null,null,null,null,null,null,null,null,null,null,null,null,null,null,null,null,"Input 8",{"$error":"#REF!"},{"$error":"#REF!"},null,null,null,"Output 8",{"$error":"#REF!"},{"$error":"#REF!"}]
[null,null,null,null,null,null,null,null,null,null,null,null,null,null,null,null,null,null,null,null,null,null,"Input 9",{"$error":"#REF!"},{"$error":"#REF!"},null,null,null,"Output 9",{"$error":"#REF!"},{"$error":"#REF!"}]
[null,null,null,null,null,null,null,null,null,null,null,null,null,null,null,null,null,null,null,null,null,null,"Input 10",{"$error":"#REF!"},{"$error":"#REF!"},null,null,null,"Output 10",{"$error":"#REF!"},{"$error":"#REF!"}]
[]
[]
[]
[]
[]
[null,null,null,null,null,null,null,null,null,null,null,null,null,null,null,null,null,null,null,null,null,null,null,null,null,null,null,null,null,"input #","input param conversion",null,"Output #","output param conversion"]
[null,null,null,null,null,null,null,null,null,null,null,null,null,null,null,null,null,null,null,null,null,"Rockwell Parameter Name","Input Parameters","Input Scaling","755 Output Parameter Name","Output Parameters","Output scaling",null,null,"input 1",{"$f":"VLOOKUP(R24,V207:W248,2,)","v":1.1100000000000001},null,"output 1",{"$f":"VLOOKUP(U24,Y207:Z236,2,)","v":{"$error":"#N/A"}}]
[null,null,null,null,null,null,null,null,null,null,null,null,null,null,null,null,"IF('Profile Selection'!$P$9=\"Scalar (V/Hz)\",28.72,23.12)",null,null,null,755,"Output Frequency",1.06,"100=1Hz","Accel Time 1",{"$f":"IF('Profile Selection'!$P$9=\"Scalar (V/Hz)\",28.72,23.12)","v":23.12},"10=1s",null,null,"input 2",{"$f":"VLOOKUP(R25,V207:W248,2,)","v":1.07},null,"output 2 ",{"$f":"VLOOKUP(U25,Y207:Z236,2,)","v":{"$error":"#N/A"}}]
[null,null,null,null,null,null,null,null,null,null,null,null,null,null,null,null,null,null,null,null,null,"Commanded SpdRef",3.05,"100=1rpm","Accel Time 2",{"$f":"IF('Profile Selection'!$P$9=\"Scalar (V/Hz)\",28.73,23.13)","v":23.13},"10=1s",null,null,"input 3",{"$f":"VLOOKUP(R26,V207:W248,2,)","v":{"$error":"#N/A"}},null,"output 3",{"$f":"VLOOKUP(U26,Y207:Z236,2,)","v":{"$error":"#N/A"}}]
[null,null,null,null,null,null,null,null,null,null,null,null,null,null,null,null,"IF($F$17=\"Powerflex525\",$Y$225:$Y$235,$Y$207:$Y220)",null,null,null,null,"Mtr Vel Fdbk",1.01,"None","Decel Time 1",23.13,"10=1s",null,null,"input 4",{"$f":"VLOOKUP(R27,V207:W248,2,)","v":{"$error":"#N/A"}},null,"output 4",{"$f":"VLOOKUP(U27,Y207:Z236,2,)","v":{"$error":"#N/A"}}]
[null,null,null,null,null,null,null,null,null,null,null,null,null,null,null,null,null,null,null,null,null,"Output Current",1.07,"100=1A","Decel Time 2",23.15,"10=1s",null,null,"input 5",{"$f":"VLOOKUP(R28,V207:W248,2,)","v":{"$error":"#N/A"}},null,"output 5",{"$f":"VLOOKUP(U28,Y207:Z236,2,)","v":{"$error":"#N/A"}}]
[null,null,null,null,null,null,null,null,null,null,null,null,null,null,null,null,null,null,null,null,null,"Output Voltage",1.1299999999999999,"1=1V","Preset Speed 1",{"$f":"IF('Profile Selection'!$P$9=\"Scalar (V/Hz)\",28.22,22.26)","v":22.26},"100=1rpm",null,null,"input 6",{"$f":"VLOOKUP(R29,V207:W248,2,)","v":{"$error":"#N/A"}},null,"output 6",{"$f":"VLOOKUP(U29,Y207:Z236,2,)","v":{"$error":"#N/A"}}]
[null,null,null,null,null,null,null,null,null,null,null,null,null,null,null,null,null,null,null,null,null,"Output Power",1.1399999999999999,"100=1unit","Preset Speed 2",{"$f":"IF('Profile Selection'!$P$9=\"Scalar (V/Hz)\",28.23,22.27)","v":22.27},"100=1rpm",null,null,"input 7",{"$f":"VLOOKUP(R30,V207:W248,2,)","v":{"$error":"#N/A"}},null,"output 7",{"$f":"VLOOKUP(U30,Y207:Z236,2,)","v":{"$error":"#N/A"}}]
[null,null,null,null,null,null,null,null,null,null,null,null,null,null,null,null,null,null,null,null,null,"Elapsed kWH",1.2,"1=1kWh","Preset Speed 3",{"$f":"IF('Profile Selection'!$P$9=\"Scalar (V/Hz)\",28.24,22.28)","v":22.28},"100=1rpm",null,null,"input 8",{"$f":"VLOOKUP(R31,V207:W248,2,)","v":{"$error":"#N/A"}},null,"output 8",{"$f":"VLOOKUP(U31,Y207:Z236,2,)","v":{"$error":"#N/A"}}]
[null,null,null,null,null,null,null,null,null,null,null,null,null,null,null,null,null,null,null,null,null,"Elapsed mWH",1.19,"1=1MWh","Preset Speed 4",{"$f":"IF('Profile Selection'!$P$9=\"Scalar (V/Hz)\",28.25,22.29)","v":22.29},"100=1rpm",null,null,"input 9",{"$f":"VLOOKUP(R32,V207:W248,2,)","v":{"$error":"#N/A"}},null,"output 9",{"$f":"VLOOKUP(U32,Y207:Z236,2,)","v":{"$error":"#N/A"}}]
[null,null,null,null,null,null,null,null,null,null,null,null,null,null,null,null,null,null,null,null,null,"Elapsed Run Time",5.0199999999999996,"1=1d","Preset Speed 5",{"$f":"IF('Profile Selection'!$P$9=\"Scalar (V/Hz)\",28.26,22.3)","v":22.3},"100=1rpm",null,null,"input 10",{"$f":"VLOOKUP(R33,V207:W248,2,)","v":{"$error":"#N/A"}},null,"output 10",{"$f":"VLOOKUP(U33,Y207:Z236,2,)","v":{"$error":"#N/A"}}]
[null,null,null,null,null,null,null,null,null,null,null,null,null,null,null,null,null,null,null,null,null,"Motor NP Volts",99.07,"10=1V","Preset Speed 6",{"$f":"IF('Profile Selection'!$P$9=\"Scalar (V/Hz)\",28.27,22.31)","v":22.31},"100=1rpm"]
[null,null,null,null,null,null,null,null,null,null,null,null,null,null,null,null,null,null,null,null,null,"Motor NP Amps",99.06,"1=1A","Preset Speed 7",{"$f":"IF('Profile Selection'!$P$9=\"Scalar (V/Hz)\",28.28,22.32)","v":22.32},"100=1rpm"]
[null,null,null,null,null,null,null,null,null,null,null,null,null,null,null,null,null,null,null,null,null,"Motor NP Hertz",99.08,"10=1Hz","Jog Speed 1",20.260000000000002,"1=1"]
[null,null,null,null,null,null,null,null,null,null,null,null,null,null,null,null,null,null,null,null,null,"Motor NP RPM",99.09,"1=1rpm","Jog Speed 2",20.27,"1=1"]
[null,null,null,null,null,null,null,null,null,null,null,null,null,null,null,null,null,null,null,null,null,"Digital In Sts",10.01,"1=1","Jog Acc Dec Time","23.20/23.21","10=1s"]
[null,null,null,null,null,null,null,null,null,null,null,null,null,null,null,null,null,null,null,null,null,"Drive Temp C.",5.1100000000000003,"1=1%"]
[null,null,null,null,null,null,null,null,null,null,null,null,null,null,null,null,null,null,null,null,null,"Maximum Frequency",30.14,"1=1Hz"]
[null,null,null,null,null,null,null,null,null,null,null,null,null,null,null,null,null,null,null,null,null,"DC Bus Volts",1.1100000000000001,"1=1V"]
[null,null,null,null,null,null,null,null,null,null,null,null,null,null,null,null,null,null,null,null,null,"Rockwell Parameters","Input Parameters","Input Scaling","525 Output Parameter Name","Output Parameters","Output scaling"]
[null,null,null,null,null,null,null,null,null,null,null,null,null,null,null,null,null,null,null,null,525,"Output Freq",1.06,"100=1Hz","Accel Time 1",{"$f":"IF('Profile Selection'!$P$9=\"Scalar (V/Hz)\",28.72,23.12)","v":23.12},"10=1s"]
[null,null,null,null,null,null,null,null,null,null,null,null,null,null,null,null,null,null,null,null,null,"Commanded Freq",3.05,"100=1Hz","Decel Time 1",{"$f":"IF('Profile Selection'!$P$9=\"Scalar (V/Hz)\",28.73,23.13)","v":23.13},"10=1s"]
[null,null,null,null,null,null,null,null,null,null,null,null,null,null,null,null,null,null,null,null,null,"Output Current",1.07,"100=1A","Preset Freq 1",{"$f":"IF('Profile Selection'!$P$9=\"Scalar (V/Hz)\",28.22,22.26)","v":22.26},"100=1rpm"]
[null,null,null,null,null,null,null,null,null,null,null,null,null,null,null,null,null,null,null,null,null,"Output Voltage",1.1299999999999999,"1=1V","Preset Freq 2",{"$f":"IF('Profile Selection'!$P$9=\"Scalar (V/Hz)\",28.23,22.27)","v":22.27},"100=1rpm"]
[null,null,null,null,null,null,null,null,null,null,null,null,null,null,null,null,null,null,null,null,null,"DC Bus Voltage",1.1100000000000001,"1=1V","Preset Freq 3",{"$f":"IF('Profile Selection'!$P$9=\"Scalar (V/Hz)\",28.24,22.28)","v":22.28},"100=1rpm"]
[null,null,null,null,null,null,null,null,null,null,null,null,null,null,null,null,null,null,null,null,null,"Drive Status","6.16/6.17","1=1","Preset Freq 4",{"$f":"IF('Profile Selection'!$P$9=\"Scalar (V/Hz)\",28.25,22.29)","v":22.29},"100=1rpm"]
[null,null,null,null,null,null,null,null,null,null,null,null,null,null,null,null,null,null,null,null,null,"Fault 1 Code",4.01,"1=1","Preset Freq 5",{"$f":"IF('Profile Selection'!$P$9=\"Scalar (V/Hz)\",28.26,22.3)","v":22.3},"100=1rpm"]
[null,null,null,null,null,null,null,null,null,null,null,null,null,null,null,null,null,null,null,null,null,"Fault 2 Code",4.0199999999999996,"1=1","Preset Freq 6",{"$f":"IF('Profile Selection'!$P$9=\"Scalar (V/Hz)\",28.27,22.31)","v":22.31},"100=1rpm"]
[null,null,null,null,null,null,null,null,null,null,null,null,null,null,null,null,null,null,null,null,null,"Fault 3 Code",4.03,"1=1","Preset Freq 45454",{"$f":"IF('Profile Selection'!$P$9=\"Scalar (V/Hz)\",28.28,22.32)","v":22.32},"100=1rpm"]
[null,null,null,null,null,null,null,null,null,null,null,null,null,null,null,null,null,null,null,null,null,"Control Source",20.11,"1=1","Jog Frequency",22.42,"100=1rpm"]
[null,null,null,null,null,null,null,null,null,null,null,null,null,null,null,null,null,null,null,null,null,"Dig In Status",10.01,"1=1","Jog Accel/Decel","23.20/23.21","10=1s"]
[null,null,null,null,null,null,null,null,null,null,null,null,null,null,null,null,null,null,null,null,null,"Output Speed",1.01,"100=1rpm"]
[null,null,null,null,null,null,null,null,null,null,null,null,null,null,null,null,null,null,null,null,null,"Output Power",1.1399999999999999,"100=1kWh"]
[null,null,null,null,null,null,null,null,null,null,null,null,null,null,null,null,null,null,null,null,null,"Elapsed Run Time",5.0199999999999996,"1=1d"]
[null,null,null,null,null,null,null,null,null,null,null,null,null,null,null,null,null,null,null,null,null,"Elapsed kWH",1.2,"10=1kWh"]
[null,null,null,null,null,null,null,null,null,null,null,null,null,null,null,null,null,null,null,null,null,"Elapsed MWH",1.33,"1=1MWh"]
[null,null,null,null,null,null,null,null,null,null,null,null,null,null,null,null,null,null,null,null,null,"Drive Temp",5.1100000000000003,"1=1%"]
[null,null,null,null,null,null,null,null,null,null,null,null,null,null,null,null,null,null,null,null,null,"Motor NP Volts",99.07,"10=1V"]
[null,null,null,null,null,null,null,null,null,null,null,null,null,null,null,null,null,null,null,null,null,"Motor NP Hertz",99.08,"10=1Hz"]
[null,null,null,null,null,null,null,null,null,null,null,null,null,null,null,null,null,null,null,null,null,"Motor NP RPM",99.09,"1=1rpm"]
[null,null,null,null,null,null,null,null,null,null,null,null,null,null,null,null,null,null,null,null,null,"Motor NP Power",99.1,"1=1unit"]
[null,null,null,null,null,null,null,null,null,null,null,null,null,null,null,null,null,null,null,null,null,"Minimum Freq",30.13,"1=1Hz"]
[null,null,null,null,null,null,null,null,null,null,null,null,null,null,null,null,null,null,null,null,null,"Maximum Freq",30.14,"1=1Hz"]
[null,null,null,null,null,null,null,null,null,null,null,null,null,null,null,null,null,null,null,null,null,null,"  "," "]
[]
[]
[]
[]
[]
[]
[null,null,null,null,null,null,null,null,null,null,null,null,null,null,null,null,null,null,null,null,null,null,null,null,"output table for dropdown**","Output Scaling"]
[]
[null,null,null,null,null,null,null,null,null,null,null,null,null,null,null,null,null,null,null,null,null,null,null,null,"Accel Time 1","10=1s"]
[null,null,null,null,null,null,null,null,null,null,null,null,null,null,null,null,null,null,null,null,null,null,null,null,"Accel Time 2","10=1s"]
[null,null,null,null,null,null,null,null,null,null,null,null,null,null,null,null,null,null,null,null,null,null,null,null,"Decel Time 1","10=1s"]
[null,null,null,null,null,null,null,null,null,null,null,null,null,null,null,null,null,null,null,null,null,null,null,null,"Decel Time 2","10=1s"]
[null,null,null,null,null,null,null,null,null,null,null,null,null,null,null,null,null,null,null,null,null,null,null,null,"Preset Speed 1","100=1rpm"]
[null,null,null,null,null,null,null,null,null,null,null,null,null,null,null,null,null,null,null,null,null,null,null,null,"Preset Speed 2","100=1rpm"]
[null,null,null,null,null,null,null,null,null,null,null,null,null,null,null,null,null,null,null,null,null,null,null,null,"Preset Speed 3","100=1rpm"]
[null,null,null,null,null,null,null,null,null,null,null,null,null,null,null,null,null,null,null,null,null,null,null,null,"Preset Speed 4","100=1rpm"]
[null,null,null,null,null,null,null,null,null,null,null,null,null,null,null,null,null,null,null,null,null,null,null,null,"Preset Speed 5","100=1rpm"]
[null,null,null,null,null,null,null,null,null,null,null,null,null,null,null,null,null,null,null,null,null,null,null,null,"Preset Speed 6","100=1rpm"]
[null,null,null,null,null,null,null,null,null,null,null,null,null,null,null,null,null,null,null,null,null,null,null,null,"Preset Speed 7","100=1rpm"]
[null,null,null,null,null,null,null,null,null,null,null,null,null,null,null,null,null,null,null,null,null,null,null,null,"Preset Freq 1","100=1rpm"]
[null,null,null,null,null,null,null,null,null,null,null,null,null,null,null,null,null,null,null,null,null,null,null,null,"Preset Freq 2","100=1rpm"]
[null,null,null,null,null,null,null,null,null,null,null,null,null,null,null,null,null,null,null,null,null,null,null,null,"Preset Freq 3","100=1rpm"]
[null,null,null,null,null,null,null,null,null,null,null,null,null,null,null,null,null,null,null,null,null,null,null,null,"Preset Freq 4","100=1rpm"]
[null,null,null,null,null,null,null,null,null,null,null,null,null,null,null,null,null,null,null,null,null,null,null,null,"Preset Freq 5","100=1rpm"]
[null,null,null,null,null,null,null,null,null,null,null,null,null,null,null,null,null,null,null,null,null,null,null,null,"Preset Freq 6","100=1rpm"]
[null,null,null,null,null,null,null,null,null,null,null,null,null,null,null,null,null,null,null,null,null,null,null,null,"Preset Freq 7","100=1rpm"]
[null,null,null,null,null,null,null,null,null,null,null,null,null,null,null,null,null,null,null,null,null,null,null,null,"Jog Speed 1","1=1"]
[null,null,null,null,null,null,null,null,null,null,null,null,null,null,null,null,null,null,null,null,null,null,null,null,"Jog Speed 2","1=1"]
[null,null,null,null,null,null,null,null,null,null,null,null,null,null,null,null,null,null,null,null,null,null,null,null,"Jog Accel/Decel","10=1s"]
[null,null,null,null,null,null,null,null,null,null,null,null,null,null,null,null,null,null,null,null,null,null,null,null,"Jog Frequency","100=1rpm"]
[]
[]
[]
[]
[]
[]
[]
[]
[null,null,null,null,null,null,null,null,null,"Revision A"]
[]
[]
[]
[]
[]
[]
[]
[]
[]
[]
[]
[]
[]
[]
[]
[]
[]
[]
[]
[]
[]
[]
[]
[]
[]
[]
[]
[]
[]
[]
[]
[]
[]
[]
[]
[]
[]
[]
[]
[]
[]
[]
[]
[]
[]
[]
[]
[]
[]
[]
[]
[]
[]
[]
[]
[]
[]
[]
[]
[]
[]
[]
[]
[]
[]
[]
[]
[]
[]
[]
[]
[]
[]
[]
[]
[]
[]
[]
[]
[]
[]
[]
[]
[]
[]
[]
[]
[]
[]
[]
[]
[]
[]
[]
[]
[]
[]
[]
[]
[]
[]
[]
[]
[]
[]
[]
[]
[]
[]
[]
[]
[]
["ABBDrives"]

{"sheet":"ODVA ACDC Basic Profile","index":1,"n_rows":76,"n_cols":20,"rows_kept":76,"cut":false,"hidden":true,"merged":[[24,9,24,19],[29,9,29,19],[2,0,2,3],[0,5,0,7],[9,0,9,3],[10,2,10,3],[10,0,10,1]]}
["Ethernet IP ODVA AC/DC Drive Basic Profile",null,null,null,null,"FENA-11/21 Configuration Parameters (Group 50 & 51)"]
[null,null,null,null,null,"Parameter Name","Parameter","Parameter Setting",null,"Rockwell Logix 5000 Software Configuration to add ABB VFDs as a new Ethernet IP Device"]
["VFD Signals Controlled by PLC over EIP",null,null,null,null,"FBA A enable",50.01,"Please Select..",null,"Note:  The configuration below is specific to the ODVA AC/DC Profile and the data "]
["Signal","No/Yes","Parameter","Parameter Setting",null,"FBA A comm loss func",50.02,"Fault",null,"supplied on the \"Profile Selection\" Tab of this Spreadsheet Tool.  This PLC configuration "]
["Run Command","YES",20.010000000000002,{"$f":"VLOOKUP($B$5,$B$69:$D$70,$C$66)","v":"Fieldbus A"},null,"FBA ref1 type",50.04,"Auto",null,"matches the parameters defined on this page and will deliver successful Communications"]
["Fault Reset","YES",{"$f":"IF('Profile Selection'!I9=\"DCS880\",20.13,31.11)","v":31.11},{"$f":"VLOOKUP($B$6,$B$71:$D$72,$C$66)","v":"\"No Setting Required\""},null,"FBA ref2 type",50.05,"Auto",null,"between the PLC and the ABB VFD via Ethernet IP"]
[{"$f":"IF('Profile Selection'!$P$9=\"Scalar (V/Hz)\",\"Frequency Reference\",\"Speed Reference\")","v":"Speed Reference"},"YES",{"$f":"IF('Profile Selection'!$P$9=\"Scalar (V/Hz)\",28.11,22.11)","v":22.11},{"$f":"VLOOKUP($B$7,$B$73:$D$74,$C$66)","v":"FB A ref1"},null,"FBA actual 1 type",50.07,{"$f":"IF($B$7=\"YES\", \"Auto\", \"Speed\")","v":"Auto"}]
["Torque Reference","NO",26.11,{"$f":"VLOOKUP($B$8,$B$75:$D$76,$C$66)","v":"\"User Defines Setting\""},null,"FBA actual 2 type",50.08,{"$f":"IF(AND($B$8=\"NO\", 'Profile Selection'!J14=\"YES\"),\"Torque\",\"Auto\")","v":"Torque"}]
[null,null,null,null,null,{"$f":"IF('Profile Selection'!$I$9=\"DCS880\",\"FBA A profile\",\" \")","v":" "},{"$f":"IF('Profile Selection'!$I$9=\"DCS880\",\"50.29\",\" \")","v":" "},{"$f":"IF('Profile Selection'!$I$9=\"DCS880\",\"DCP\",\" \")","v":" "}]
["Parameters for Configuring User Defined Data Words",null,null,null,null,"FBA A Type",51.01,"Ethernet"]
["Inputs (Read) to PLC from VFD",null,"Outputs (Write) from PLC to VFD",null,null,"Protocol / Profile",51.02,"100 (EIP AC/DC)"]
["Parameter","Parameter Setting","Parameter","Parameter Setting",null,"IP configuration",51.04,"0 (Static)"]
["52.01 (16bit)",{"$f":"IF($I$62=\"NA\",\"NA\", IF($J$62>169,'Profile Selection'!X190, \"NA\"))","v":"NA"},"53.01 (16bit)",{"$f":"IF($I$62=\"NA\",\"NA\", IF($I$62>119,'Profile Selection'!AD190, \"NA\"))","v":"NA"},null,"IP Address 1",51.05,{"$f":"'Profile Selection'!F41","v":192}]
["52.02 (16bit)",{"$f":"IF($I$62=\"NA\",\"NA\", IF($J$62>169,'Profile Selection'!X191, \"NA\"))","v":"NA"},"53.02 (16bit)",{"$f":"IF($I$62=\"NA\",\"NA\", IF($I$62>119,'Profile Selection'!AD191, \"NA\"))","v":"NA"},null,"IP Address 2",51.06,{"$f":"'Profile Selection'!G41","v":168}]
["52.03 (16bit)",{"$f":"IF($I$62=\"NA\",\"NA\", IF($J$62>169,'Profile Selection'!X192, \"NA\"))","v":"NA"},"53.03 (16bit)",{"$f":"IF($I$62=\"NA\",\"NA\", IF($I$62>119,'Profile Selection'!AD192, \"NA\"))","v":"NA"},null,"IP Address 3",51.07,{"$f":"'Profile Selection'!H41","v":3},null,null,null,null,null,null,null,null,null,{"$f":"J62","v":"NA"},null,{"$f":"K62","v":"NA"}]
["52.04 (16bit)",{"$f":"IF($I$62=\"NA\",\"NA\", IF($J$62>169,'Profile Selection'!X193, \"NA\"))","v":"NA"},"53.04 (16bit)",{"$f":"IF($I$62=\"NA\",\"NA\", IF($I$62>119,'Profile Selection'!AD193, \"NA\"))","v":"NA"},null,"IP Address 4",51.08,{"$f":"'Profile Selection'!I41","v":3},null,null,null,null,null,null,null,null,null,{"$f":"I62","v":"NA"},null,{"$f":"K62","v":"NA"}]
["52.05 (16bit)",{"$f":"IF($I$62=\"NA\",\"NA\", IF($J$62>169,'Profile Selection'!X194, \"NA\"))","v":"NA"},"53.05 (16bit)",{"$f":"IF($I$62=\"NA\",\"NA\", IF($I$62>119,'Profile Selection'!AD194, \"NA\"))","v":"NA"},null,"Subnet CIDR",51.09,{"$f":"'Profile Selection'!S70","v":24},null,null,null,null,null,null,null,null,null,1,null,0]
["52.06 (16bit)",{"$f":"IF($I$62=\"NA\",\"NA\", IF($J$62>169,'Profile Selection'!X195, \"NA\"))","v":"NA"},"53.06 (16bit)",{"$f":"IF($I$62=\"NA\",\"NA\", IF($I$62>119,'Profile Selection'!AD195, \"NA\"))","v":"NA"},null,"GW Address 1",51.1,{"$f":"'Profile Selection'!F42","v":0},null,null,null,{"$f":"H13","v":192},{"$f":"H14","v":168},{"$f":"H15","v":3},{"$f":"H16","v":3}]
["52.07 (16bit)",{"$f":"IF($I$62=\"NA\",\"NA\", IF($J$62>169,'Profile Selection'!X196, \"NA\"))","v":"NA"},"53.07 (16bit)",{"$f":"IF($I$62=\"NA\",\"NA\", IF($I$62>119,'Profile Selection'!AD196, \"NA\"))","v":"NA"},null,"GW Address 2",51.11,{"$f":"'Profile Selection'!G42","v":0}]
["52.08 (16bit)",{"$f":"IF($I$62=\"NA\",\"NA\", IF($J$62>169,'Profile Selection'!X197, \"NA\"))","v":"NA"},"53.08 (16bit)",{"$f":"IF($I$62=\"NA\",\"NA\", IF($I$62>119,'Profile Selection'!AD197, \"NA\"))","v":"NA"},null,"GW Address 3",51.12,{"$f":"'Profile Selection'!H42","v":0}]
["52.09 (16bit)",{"$f":"IF($I$62=\"NA\",\"NA\", IF($J$62>169,'Profile Selection'!X198, \"NA\"))","v":"NA"},"53.09 (16bit)",{"$f":"IF($I$62=\"NA\",\"NA\", IF($I$62>119,'Profile Selection'!AD198, \"NA\"))","v":"NA"},null,"GW Address 4",51.13,{"$f":"'Profile Selection'!I42","v":0}]
["52.10 (16bit)",{"$f":"IF($I$62=\"NA\",\"NA\", IF($J$62>169,'Profile Selection'!X199, \"NA\"))","v":"NA"},"53.10 (16bit)",{"$f":"IF($I$62=\"NA\",\"NA\", IF($I$62>119,'Profile Selection'!AD199, \"NA\"))","v":"NA"},null,"Control Timeout",51.2,20]
[null,null,null,null,null,"Idle Action",51.21,"0 (Off-line)"]
[null,null,null,null,null,"ODVA Stop Function",51.22,"Ramp"]
[null,null,null,null,null,"ODVA Speed Scale",51.23,128,null,"ODVA Basic Control Word Bit Structure"]
[null,null,null,null,null,"ODVA Torque Scale",51.24,128]
[null,null,null,null,null,"FBA Par Refresh",51.27,{"$f":"'Profile Selection'!$D$85","v":"Configure"}]
[null,null,null,null,null,{"$f":"IF('Profile Selection'!$I$9=\"DCS880\",\"Main CW source\",\" \")","v":" "},{"$f":"IF('Profile Selection'!$I$9=\"DCS880\",\"6.08\",\" \")","v":" "},{"$f":"IF('Profile Selection'!$I$9=\"DCS880\",\"FBA A\",\" \")","v":" "}]
[]
[null,null,null,null,null,"Other VFD Parameters that Accompany Communication Control",null,null,null,"ODVA Basic Status Word Bit Structure"]
[null,null,null,null,null,"Parameter Name","Parameter","Parameter Setting","Units"]
[null,null,null,null,null,{"$f":"IF('Profile Selection'!$P$9=\"Scalar (V/Hz)\",\"Freq Accel Time 1\",\"Acceleration Time 1\")","v":"Acceleration Time 1"},{"$f":"IF('Profile Selection'!$P$9=\"Scalar (V/Hz)\",28.72,23.12)","v":23.12},5,"s"]
[null,null,null,null,null,{"$f":"IF('Profile Selection'!$P$9=\"Scalar (V/Hz)\",\"Freq Decel Time 1\",\"Deceleration Time 1\")","v":"Deceleration Time 1"},{"$f":"IF('Profile Selection'!$P$9=\"Scalar (V/Hz)\",28.73,23.13)","v":23.13},5,"s"]
[null,null,null,null,null,{"$f":"IF('Profile Selection'!$P$9=\"Scalar (V/Hz)\",\"Minimum Frequency\",\"Minimum Speed\")","v":"Minimum Speed"},{"$f":"IF('Profile Selection'!$P$9=\"Scalar (V/Hz)\",30.13,30.11)","v":30.11},0,{"$f":"IF('Profile Selection'!$P$9=\"Scalar (V/Hz)\",\"Hz\",\"rpm\")","v":"rpm"}]
[null,null,null,null,null,{"$f":"IF('Profile Selection'!$P$9=\"Scalar (V/Hz)\",\"Maximum Frequency\",\"Maximum Speed\")","v":"Maximum Speed"},{"$f":"IF('Profile Selection'!$P$9=\"Scalar (V/Hz)\",30.14,30.12)","v":30.12},{"$f":"+MaxFreqORRPMDef","v":1800},{"$f":"IF('Profile Selection'!$P$9=\"Scalar (V/Hz)\",\"Hz\",\"rpm\")","v":"rpm"}]
[null,null,null,null,null,{"$f":"IF('Profile Selection'!$P$9=\"Scalar (V/Hz)\",\"Frequency Scaling\",\"Speed Scaling\")","v":"Speed Scaling"},{"$f":"IF('Profile Selection'!$P$9=\"Scalar (V/Hz)\",46.02,46.01)","v":46.01},{"$f":"+MaxFreqORRPMDef","v":1800},{"$f":"IF('Profile Selection'!$P$9=\"Scalar (V/Hz)\",\"Hz\",\"rpm\")","v":"rpm"}]
[]
[]
[]
[]
[]
[]
[]
[]
[]
[]
[]
[]
[]
[]
[]
[]
[]
[]
[]
[]
[]
[]
[]
[]
[null,null,null,null,null,null,null,null,"Output","Input","Size"]
[null,null,null,null,null,null,null,null,{"$f":"IF('Profile Selection'!L49=\"ODVA ACDC Basic Profile\",IF('Profile Selection'!J14=\"NO\",IF(OR('Profile Selection'!#REF!>2, 'Profile Selection'!#REF!>2),120,20),IF(OR('Profile Selection'!#REF!>3, 'Profile Selection'!#REF!>3),122,22)),\"NA\")","v":"NA"},{"$f":"VLOOKUP(I62,I69:K73,2)","v":"NA"},{"$f":"VLOOKUP(I62,I69:K73,3)","v":"NA"}]
[null,null,null,null,null,{"$f":"'Profile Selection'!I9","v":"ACH580"}]
[]
[]
[null,null,{"$f":"IF('Profile Selection'!$I$9=\"DCS880\",3,2)","v":2}]
[null,null,null,null,null,null,null,null,"Assembly Instances for ODVA ACDC Basic Profile"]
[null,null,"AC settings","DCS880 settings",null,null,null,null,"Output","Input","Size"]
[null,"NO","\"User Defines Setting\"","Local I/O",null,null,null,null,"NA","NA","NA"]
[null,"YES","Fieldbus A","Main control word",null,null,null,null,20,70,2]
[null,"NO","\"User Defines Setting\"","\"User Defines Setting\"",null,null,null,null,22,72,3]
[null,"YES","\"No Setting Required\"","\"No Setting Required\"",null,null,null,null,120,170,12]
[null,"NO","\"User Defines Setting\"","\"User Defines Setting\"",null,null,null,null,122,172,13]
[null,"YES","FB A ref1","FBA A ref1"]
[null,"NO","\"User Defines Setting\"","\"User Defines Setting\""]
[null,"YES","FB A ref2","FBA A ref2"]

{"sheet":"ODVA ACDC Extended Profile","index":2,"n_rows":79,"n_cols":20,"rows_kept":79,"cut":false,"hidden":true,"merged":[[29,9,29,19],[24,9,24,19],[77,0,78,0],[74,0,75,0],[72,0,73,0],[70,0,71,0],[68,0,69,0],[29,5,29,8],[2,0,2,3],[0,5,0,7],[10,0,10,3],[11,2,11,3],[11,0,11,1]]}
["EIP ODVA AC/DC Drive Extended Profile",null,null,null,null,"FENA-11/21 Configuration Parameters (Group 50 & 51)"]
[null,null,null,null,null,"Parameter Name","Parameter","Parameter Setting",null,"Rockwell Logix 5000 Software Configuration to add ABB VFDs as a new Ethernet IP Device"]
["VFD Signals Controlled by PLC over EIP",null,null,null,null,"FBA A enable",50.01,"Please Select..",null,"Note:  The configuration below is specific to the ODVA AC/DC Extended Profile and the data "]
["Signal","No/Yes","Parameter","Parameter Setting",null,"FBA A comm loss func",50.02,"Fault",null,"supplied on the \"Profile Selection\" Tab of this Spreadsheet Tool.  This PLC configuration "]
["Run Command","YES",20.010000000000002,{"$f":"VLOOKUP($B$5,$B$69:$D$70,$C$66)","v":"Fieldbus A"},null,"FBA ref1 type",50.04,"Auto",null,"matches the parameters defined on this page and will deliver successful Communications"]
["Fault Reset","YES",{"$f":"IF('Profile Selection'!I9=\"DCS880\",20.13,31.11)","v":31.11},{"$f":"VLOOKUP($B$6,$B$71:$D$72,$C$66)","v":"\"No Setting Required\""},null,"FBA ref2 type",50.05,"Auto",null,"between the PLC and the ABB VFD via Ethernet IP"]
[{"$f":"IF('Profile Selection'!$P$9=\"Scalar (V/Hz)\",\"Frequency Reference\",\"Speed Reference\")","v":"Speed Reference"},"YES",{"$f":"IF('Profile Selection'!$P$9=\"Scalar (V/Hz)\",28.11,22.11)","v":22.11},{"$f":"VLOOKUP($B$7,$B$73:$D$74,$C$66)","v":"FB A ref1"},null,"FBA actual 1 type",50.07,{"$f":"IF($B$7=\"YES\", \"Auto\", \"Speed\")","v":"Auto"}]
["Direction Command","YES",{"$f":"'Profile Selection'!G85","v":20.21},{"$f":"VLOOKUP($B$8,$B$78:$C$79,2)","v":"Request"},null,"FBA actual 2 type",50.08,{"$f":"IF(AND($B$9=\"NO\", 'Profile Selection'!J14=\"YES\"),\"Torque\",\"Auto\")","v":"Torque"}]
["Torque Reference","NO",26.11,{"$f":"VLOOKUP($B$9,$B$75:$D$76,$C$66)","v":"\"User Defines Setting\""},null,{"$f":"IF('Profile Selection'!$I$9=\"DCS880\",\"FBA A profile\",\" \")","v":" "},{"$f":"IF('Profile Selection'!$I$9=\"DCS880\",\"50.29\",\" \")","v":" "},{"$f":"IF('Profile Selection'!$I$9=\"DCS880\",\"DCP\",\" \")","v":" "}]
[null,null,null,null,null,"FBA A Type",51.01,"Ethernet"]
["Parameters for Configuring User Defined Data Words",null,null,null,null,"Protocol / Profile",51.02,"100 (EIP AC/DC)"]
["Inputs (Read) to PLC from VFD",null,"Outputs (Write) from PLC to VFD",null,null,"IP configuration",51.04,"0 (Static)"]
["Parameter","Parameter Setting","Parameter","Parameter Setting",null,"IP Address 1",51.05,{"$f":"'Profile Selection'!F41","v":192}]
["52.01 (16bit)",{"$f":"IF($I$61=\"NA\",\"NA\", IF($J$61>169,'Profile Selection'!X190, \"NA\"))","v":"NA"},"53.01 (16bit)",{"$f":"IF($I$61=\"NA\",\"NA\", IF($I$61>119,'Profile Selection'!AD190, \"NA\"))","v":"NA"},null,"IP Address 2",51.06,{"$f":"'Profile Selection'!G41","v":168}]
["52.02 (16bit)",{"$f":"IF($I$61=\"NA\",\"NA\", IF($J$61>169,'Profile Selection'!X191, \"NA\"))","v":"NA"},"53.02 (16bit)",{"$f":"IF($I$61=\"NA\",\"NA\", IF($I$61>119,'Profile Selection'!AD191, \"NA\"))","v":"NA"},null,"IP Address 3",51.07,{"$f":"'Profile Selection'!H41","v":3},null,null,null,null,null,null,null,null,null,{"$f":"J61","v":"NA"},null,{"$f":"K61","v":"NA"}]
["52.03 (16bit)",{"$f":"IF($I$61=\"NA\",\"NA\", IF($J$61>169,'Profile Selection'!X192, \"NA\"))","v":"NA"},"53.03 (16bit)",{"$f":"IF($I$61=\"NA\",\"NA\", IF($I$61>119,'Profile Selection'!AD192, \"NA\"))","v":"NA"},null,"IP Address 4",51.08,{"$f":"'Profile Selection'!I41","v":3},null,null,null,null,null,null,null,null,null,{"$f":"I61","v":"NA"},null,{"$f":"K61","v":"NA"}]
["52.04 (16bit)",{"$f":"IF($I$61=\"NA\",\"NA\", IF($J$61>169,'Profile Selection'!X193, \"NA\"))","v":"NA"},"53.04 (16bit)",{"$f":"IF($I$61=\"NA\",\"NA\", IF($I$61>119,'Profile Selection'!AD193, \"NA\"))","v":"NA"},null,"Subnet CIDR",51.09,{"$f":"'Profile Selection'!S70","v":24},null,null,null,null,null,null,null,null,null,1,null,0]
["52.05 (16bit)",{"$f":"IF($I$61=\"NA\",\"NA\", IF($J$61>169,'Profile Selection'!X194, \"NA\"))","v":"NA"},"53.05 (16bit)",{"$f":"IF($I$61=\"NA\",\"NA\", IF($I$61>119,'Profile Selection'!AD194, \"NA\"))","v":"NA"},null,"GW Address 1",51.1,{"$f":"'Profile Selection'!F42","v":0},null,null,null,{"$f":"H13","v":192},{"$f":"H14","v":168},{"$f":"H15","v":3},{"$f":"H16","v":3}]
["52.06 (16bit)",{"$f":"IF($I$61=\"NA\",\"NA\", IF($J$61>169,'Profile Selection'!X195, \"NA\"))","v":"NA"},"53.06 (16bit)",{"$f":"IF($I$61=\"NA\",\"NA\", IF($I$61>119,'Profile Selection'!AD195, \"NA\"))","v":"NA"},null,"GW Address 2",51.11,{"$f":"'Profile Selection'!G42","v":0}]
["52.07 (16bit)",{"$f":"IF($I$61=\"NA\",\"NA\", IF($J$61>169,'Profile Selection'!X196, \"NA\"))","v":"NA"},"53.07 (16bit)",{"$f":"IF($I$61=\"NA\",\"NA\", IF($I$61>119,'Profile Selection'!AD196, \"NA\"))","v":"NA"},null,"GW Address 3",51.12,{"$f":"'Profile Selection'!H42","v":0}]
["52.08 (16bit)",{"$f":"IF($I$61=\"NA\",\"NA\", IF($J$61>169,'Profile Selection'!X197, \"NA\"))","v":"NA"},"53.08 (16bit)",{"$f":"IF($I$61=\"NA\",\"NA\", IF($I$61>119,'Profile Selection'!AD197, \"NA\"))","v":"NA"},null,"GW Address 4",51.13,{"$f":"'Profile Selection'!I42","v":0}]
["52.09 (16bit)",{"$f":"IF($I$61=\"NA\",\"NA\", IF($J$61>169,'Profile Selection'!X198, \"NA\"))","v":"NA"},"53.09 (16bit)",{"$f":"IF($I$61=\"NA\",\"NA\", IF($I$61>119,'Profile Selection'!AD198, \"NA\"))","v":"NA"},null,"Control Timeout",51.2,20]
["52.10 (16bit)",{"$f":"IF($I$61=\"NA\",\"NA\", IF($J$61>169,'Profile Selection'!X199, \"NA\"))","v":"NA"},"53.10 (16bit)",{"$f":"IF($I$61=\"NA\",\"NA\", IF($I$61>119,'Profile Selection'!AD199, \"NA\"))","v":"NA"},null,"Idle Action",51.21,"0 (Off-line)"]
[null,null,null,null,null,"ODVA Stop Function",51.22,"Ramp"]
[null,null,null,null,null,"ODVA Speed Scale",51.23,128,null,"ODVA Extended Control Word Bit Structure"]
[null,null,null,null,null,"ODVA Torque Scale",51.24,128]
[null,null,null,null,null,"FBA Par Refresh",51.27,{"$f":"'Profile Selection'!$D$85","v":"Configure"}]
[null,null,null,null,null,{"$f":"IF('Profile Selection'!$I$9=\"DCS880\",\"Main CW source\",\" \")","v":" "},{"$f":"IF('Profile Selection'!$I$9=\"DCS880\",\"6.08\",\" \")","v":" "},{"$f":"IF('Profile Selection'!$I$9=\"DCS880\",\"FBA A\",\" \")","v":" "}]
[]
[null,null,null,null,null,"Other VFD Parameters that Accompany Communication Control",null,null,null,"ODVA Extended Status Word Bit Structure"]
[null,null,null,null,null,"Parameter Name","Parameter","Parameter Setting","Units"]
[null,null,null,null,null,{"$f":"IF('Profile Selection'!$P$9=\"Scalar (V/Hz)\",\"Freq Accel Time 1\",\"Acceleration Time 1\")","v":"Acceleration Time 1"},{"$f":"IF('Profile Selection'!$P$9=\"Scalar (V/Hz)\",28.72,23.12)","v":23.12},"5.00 s","s"]
[null,null,null,null,null,{"$f":"IF('Profile Selection'!$P$9=\"Scalar (V/Hz)\",\"Freq Decel Time 1\",\"Deceleration Time 1\")","v":"Deceleration Time 1"},{"$f":"IF('Profile Selection'!$P$9=\"Scalar (V/Hz)\",28.73,23.13)","v":23.13},"5.00 s","s"]
[null,null,null,null,null,{"$f":"IF('Profile Selection'!$P$9=\"Scalar (V/Hz)\",\"Minimum Frequency\",\"Minimum Speed\")","v":"Minimum Speed"},{"$f":"IF('Profile Selection'!$P$9=\"Scalar (V/Hz)\",30.13,30.11)","v":30.11},0,{"$f":"IF('Profile Selection'!$P$9=\"Scalar (V/Hz)\",\"Hz\",\"rpm\")","v":"rpm"}]
[null,null,null,null,null,{"$f":"IF('Profile Selection'!$P$9=\"Scalar (V/Hz)\",\"Maximum Frequency\",\"Maximum Speed\")","v":"Maximum Speed"},{"$f":"IF('Profile Selection'!$P$9=\"Scalar (V/Hz)\",30.14,30.12)","v":30.12},{"$f":"+MaxFreqORRPMDef","v":1800},{"$f":"IF('Profile Selection'!$P$9=\"Scalar (V/Hz)\",\"Hz\",\"rpm\")","v":"rpm"}]
[null,null,null,null,null,{"$f":"IF('Profile Selection'!$P$9=\"Scalar (V/Hz)\",\"Frequency Scaling\",\"Speed Scaling\")","v":"Speed Scaling"},{"$f":"IF('Profile Selection'!$P$9=\"Scalar (V/Hz)\",46.02,46.01)","v":46.01},{"$f":"+MaxFreqORRPMDef","v":1800},{"$f":"IF('Profile Selection'!$P$9=\"Scalar (V/Hz)\",\"Hz\",\"rpm\")","v":"rpm"}]
[]
[]
[]
[]
[]
[]
[]
[]
[]
[]
[]
[]
[]
[]
[]
[]
[]
[]
[]
[]
[]
[]
[]
[null,null,null,null,null,null,null,null,"Output","Input","Size"]
[null,null,null,null,null,null,null,null,{"$f":"IF('Profile Selection'!L49=\"ODVA ACDC Extended Profile\",IF('Profile Selection'!J14=\"NO\",IF(OR('Profile Selection'!#REF!>2, 'Profile Selection'!#REF!>2),121,21),IF(OR('Profile Selection'!#REF!>3, 'Profile Selection'!#REF!>3),123,23)),\"NA\")","v":"NA"},{"$f":"VLOOKUP(I61,I68:K72,2)","v":"NA"},{"$f":"VLOOKUP(I61,I68:K72,3)","v":"NA"}]
[]
[]
[]
[]
[null,null,{"$f":"IF('Profile Selection'!$I$9=\"DCS880\",3,2)","v":2},null,null,null,null,null,"Assembly Instances for ODVA ACDC Basic Profile"]
[null,null,null,null,null,null,null,null,"Output","Input","Size"]
[null,null,"AC Settings","DCS880 settings",null,null,null,null,"NA","NA","NA"]
["Run Cmd Selection","NO","\"User Defines Setting\"","Local I/O",null,null,null,null,21,71,2]
[null,"YES","Fieldbus A","Main control word",null,null,null,null,23,73,3]
["Fault Reset Selection","NO","\"User Defines Setting\"","\"User Defines Setting\"",null,null,null,null,121,171,12]
[null,"YES","\"No Setting Required\"","\"No Setting Required\"",null,null,null,null,123,173,13]
["Speed/Freq Ref Selection","NO","\"User Defines Setting\"","\"User Defines Setting\""]
[null,"YES","FB A ref1","FBA A ref1"]
["Torque Selection","NO","\"User Defines Setting\"","\"User Defines Setting\""]
[null,"YES","FB A ref2","FBA A ref2"]
[]
["Direction Selection","NO","\"User Defines Setting\""]
[null,"YES",{"$f":"'Profile Selection'!F85","v":"Request"}]

{"sheet":"ABB Drives Setup","index":3,"n_rows":93,"n_cols":51,"rows_kept":93,"cut":false,"hidden":false,"merged":[[58,20,58,21],[49,23,49,24],[50,23,50,24],[51,23,51,24],[52,23,52,24],[53,23,53,24],[54,23,54,24],[55,23,55,24],[56,23,56,24],[57,23,57,24],[58,23,58,24],[53,20,53,21],[54,20,54,21],[55,20,55,21],[56,20,56,21],[57,20,57,21],[49,20,49,21],[50,20,50,21],[51,20,51,21],[52,20,52,21],[31,9,31,19],[57,0,58,0],[59,0,60,0],[26,5,26,8],[71,0,72,0],[65,0,66,0],[63,0,64,0],[61,0,62,0],[67,0,68,0],[69,0,70,0],[1,24,1,39],[3,24,3,40],[0,5,0,7],[2,0,2,3],[15,0,15,3],[7,35,24,36],[16,2,16,3],[16,0,16,1],[24,9,24,19],[25,35,25,36],[26,35,26,36],[27,35,27,36],[28,35,28,36],[29,35,29,36],[30,35,30,36],[31,35,31,36],[32,35,32,36],[33,35,33,36],[34,35,34,36],[32,50,32,51],[33,50,33,51],[34,50,34,51],[35,50,35,51],[7,50,25,51],[27,50,27,51],[28,50,28,51],[29,50,29,51],[30,50,30,51],[31,50,31,51],[26,50,26,51]]}
["Ethernet IP ABB Drives Profile",null,null,null,null,"FENA-11/21 Configuration Parameters (Group 50 & 51)"]
[null,null,null,null,null,"Parameter Name","Parameter","Parameter Setting",null,"Rockwell Logix 5000 Software Configuration to add ABB VFDs as a new Ethernet IP Device",null,null,null,null,null,null,null,null,null,null,null,null,null,null,"After the import of the Drive Emulation AOI be sure to label the proper data links on the new tags with the proper names associated with the data used.  "]
["VFD Signals Controlled by PLC over EIP",null,null,null,null,"FBA A enable",50.01,"Enable",null,"Note:  The configuration below is specific to the ABB Drives Profile and the data ",null,null,null,null,null,null,null,null,null,null,null,null,null,null,"The Control word and speed reference as well as status word and speed feedback is already premapped.  Any other data mapped will need to be labeled in the description field"]
["Signal","No/Yes","Parameter","Parameter Setting",null,"FBA A comm loss func",50.02,"Fault",null,"supplied on the \"Profile Selection\" Tab of this Spreadsheet Tool.  This PLC configuration ",null,null,null,null,null,null,null,null,null,null,null,null,null,null,"Copy and paste the description name from below into the description field of the tags generated from creating the AOI rung tags for the input and output data"]
["EXT1/EXT2 Select","NO",{"$f":"'ABB Drives Setup'!F83","v":19.11},{"$f":"VLOOKUP(B5,'ABB Drives Setup'!B66:C67,2,FALSE)","v":"EXT1"},null,"FBA ref1 type",50.04,"Auto",null,"matches the parameters defined on this page and will deliver successful Communications"]
["EXT1 Run Command","YES",{"$f":"'ABB Drives Setup'!B83","v":20.010000000000002},{"$f":"VLOOKUP(B6,'ABB Drives Setup'!B58:D59,'ABB Drives Setup'!C56)","v":"Fieldbus A"},null,"FBA ref2 type",50.05,"Auto",null,"between the PLC and the ABB VFD via Ethernet IP"]
["EXT2 Run Command","NO",{"$f":"'ABB Drives Setup'!J83","v":20.059999999999999},{"$f":"VLOOKUP(B7,'ABB Drives Setup'!B58:D59,'ABB Drives Setup'!C56)","v":"\"User Defines Setting\""},null,"FBA actual 1 type",50.07,{"$f":"IF($B$9=\"YES\", \"Auto\", \"Speed\")","v":"Auto"}]
["Direction Command","YES",{"$f":"'Profile Selection'!G85","v":20.21},{"$f":"VLOOKUP(B8,'ABB Drives Setup'!B64:C65,2)","v":"Request"},null,"FBA actual 2 type",50.08,{"$f":"IF(AND($B$12=\"NO\", 'Profile Selection'!J14=\"YES\"),\"Torque\",\"Auto\")","v":"Torque"}]
[{"$f":"IF('Profile Selection'!$P$9=\"Scalar (V/Hz)\",\"Frequency Reference 1\",\"Speed Reference 1\")","v":"Speed Reference 1"},"YES",{"$f":"'ABB Drives Setup'!D83","v":22.11},{"$f":"VLOOKUP(B9,'ABB Drives Setup'!B62:D63,'ABB Drives Setup'!C56)","v":"FB A ref1"},null,{"$f":"IF('Profile Selection'!$I$9=\"DCS880\",\"FBA A profile\",\" \")","v":" "},{"$f":"IF('Profile Selection'!$I$9=\"DCS880\",\"50.29\",\" \")","v":" "},{"$f":"IF('Profile Selection'!$I$9=\"DCS880\",\"DCP\",\" \")","v":" "}]
[{"$f":"IF('Profile Selection'!$P$9=\"Scalar (V/Hz)\",\"Frequency Reference 2\",\"Speed Reference 2\")","v":"Speed Reference 2"},"NO",{"$f":"'ABB Drives Setup'!G83","v":22.18},{"$f":"VLOOKUP(B10,'ABB Drives Setup'!B68:D69,'ABB Drives Setup'!C56)","v":"\"User Defines Setting\""},null,"FBA A Type",51.01,"Ethernet"]
[{"$f":"IF('Profile Selection'!$P$9=\"Scalar (V/Hz)\",\"Freq Ref 1/2 Sel\",\"Speed Ref 1/2 Sel\")","v":"Speed Ref 1/2 Sel"},"NO",{"$f":"'ABB Drives Setup'!H83","v":"See 19.11"},{"$f":"VLOOKUP('Profile Selection'!I9,'ABB Drives Setup'!A86:D92,'ABB Drives Setup'!C93,FALSE)","v":"\"See Ext1/Ext2 Sel\""},null,"Protocol / Profile",51.02,"101 (EIP ABB Pro)"]
["Torque Reference 1","NO",{"$f":"'ABB Drives Setup'!I83","v":26.11},{"$f":"VLOOKUP(B12,'ABB Drives Setup'!B70:D71,'ABB Drives Setup'!C56)","v":"\"User Defines Setting\""},null,"IP configuration",51.04,"0 (Static)"]
["Fault Reset","YES",{"$f":"'ABB Drives Setup'!C83","v":31.11},{"$f":"VLOOKUP(B13,'ABB Drives Setup'!B60:D61,'ABB Drives Setup'!C56)","v":"FBA A MCW bit 7"},null,"IP Address 1",51.05,{"$f":"'Profile Selection'!F41","v":192}]
[null,null,null,null,null,"IP Address 2",51.06,{"$f":"'Profile Selection'!G41","v":168}]
[null,null,null,null,null,"IP Address 3",51.07,{"$f":"'Profile Selection'!H41","v":3},null,null,null,null,null,null,null,null,null,152,null,13]
["Parameters for Configuring User Defined Data Words",null,null,null,null,"IP Address 4",51.08,{"$f":"'Profile Selection'!I41","v":3},null,null,null,null,null,null,null,null,null,102,null,13]
["Inputs (Read) to PLC from VFD",null,"Outputs (Write) from PLC to VFD",null,null,"Subnet CIDR",51.09,{"$f":"'Profile Selection'!S70","v":24},null,null,null,null,null,null,null,null,null,1,null,0]
["Parameter","Parameter Setting","Parameter","Parameter Setting",null,"GW Address 1",51.1,{"$f":"'Profile Selection'!F42","v":0},null,null,null,{"$f":"H13","v":192},{"$f":"H14","v":168},{"$f":"H15","v":3},{"$f":"H16","v":3}]
["52.01 (16bit)",{"$f":"IF($I$51=\"NA\",\"NA\", IF($J$51=1,'Profile Selection'!AE206, \"NA\"))","v":1.1100000000000001},"53.01 (16bit)",{"$f":"IF($I$51=\"NA\",\"NA\", IF($I$51=1,'Profile Selection'!AH206, \"NA\"))","v":{"$error":"#N/A"}},null,"GW Address 2",51.11,{"$f":"'Profile Selection'!G42","v":0}]
["52.02 (16bit)",{"$f":"IF($I$51=\"NA\",\"NA\", IF($J$51=1,'Profile Selection'!AE207, \"NA\"))","v":1.07},"53.02 (16bit)",{"$f":"IF($I$51=\"NA\",\"NA\", IF($I$51=1,'Profile Selection'!AH207, \"NA\"))","v":{"$error":"#N/A"}},null,"GW Address 3",51.12,{"$f":"'Profile Selection'!H42","v":0}]
["52.03 (16bit)",{"$f":"IF($I$51=\"NA\",\"NA\", IF($J$51=1,'Profile Selection'!AE208, \"NA\"))","v":{"$error":"#N/A"}},"53.03 (16bit)",{"$f":"IF($I$51=\"NA\",\"NA\", IF($I$51=1,'Profile Selection'!AH208, \"NA\"))","v":{"$error":"#N/A"}},null,"GW Address 4",51.13,{"$f":"'Profile Selection'!I42","v":0}]
["52.04 (16bit)",{"$f":"IF($I$51=\"NA\",\"NA\", IF($J$51=1,'Profile Selection'!AE209, \"NA\"))","v":{"$error":"#N/A"}},"53.04 (16bit)",{"$f":"IF($I$51=\"NA\",\"NA\", IF($I$51=1,'Profile Selection'!AH209, \"NA\"))","v":{"$error":"#N/A"}},null,"Control Timeout",51.2,20]
["52.05 (16bit)",{"$f":"IF($I$51=\"NA\",\"NA\", IF($J$51=1,'Profile Selection'!AE210, \"NA\"))","v":{"$error":"#N/A"}},"53.05 (16bit)",{"$f":"IF($I$51=\"NA\",\"NA\", IF($I$51=1,'Profile Selection'!AH210, \"NA\"))","v":{"$error":"#N/A"}},null,"Idle Action",51.21,"0 (Off-line)"]
["52.06 (16bit)",{"$f":"IF($I$51=\"NA\",\"NA\", IF($J$51=1,'Profile Selection'!AE211, \"NA\"))","v":{"$error":"#N/A"}},"53.06 (16bit)",{"$f":"IF($I$51=\"NA\",\"NA\", IF($I$51=1,'Profile Selection'!AH211, \"NA\"))","v":{"$error":"#N/A"}},null,"FBA Par Refresh",51.27,{"$f":"'Profile Selection'!$D$85","v":"Configure"}]
["52.07 (16bit)",{"$f":"IF($I$51=\"NA\",\"NA\", IF($J$51=1,'Profile Selection'!AE212, \"NA\"))","v":{"$error":"#N/A"}},"53.07 (16bit)",{"$f":"IF($I$51=\"NA\",\"NA\", IF($I$51=1,'Profile Selection'!AH212, \"NA\"))","v":{"$error":"#N/A"}},null,{"$f":"IF('Profile Selection'!$I$9=\"DCS880\",\"Main CW source\",\" \")","v":" "},{"$f":"IF('Profile Selection'!$I$9=\"DCS880\",\"6.08\",\" \")","v":" "},{"$f":"IF('Profile Selection'!$I$9=\"DCS880\",\"FBA A\",\" \")","v":" "}]
["52.08 (16bit)",{"$f":"IF($I$51=\"NA\",\"NA\", IF($J$51=1,'Profile Selection'!AE213, \"NA\"))","v":{"$error":"#N/A"}},"53.08 (16bit)",{"$f":"IF($I$51=\"NA\",\"NA\", IF($I$51=1,'Profile Selection'!AH213, \"NA\"))","v":{"$error":"#N/A"}},null,null,null,null,null,null,null,null,null,null,null,null,null,null,null,null,null,null,null,null,null,null,null,null,null,null,null,null,null,null,null,{"$f":"U50","v":"DC Bus Volts"}]
["52.09 (16bit)",{"$f":"IF($I$51=\"NA\",\"NA\", IF($J$51=1,'Profile Selection'!AE214, \"NA\"))","v":{"$error":"#N/A"}},"53.09 (16bit)",{"$f":"IF($I$51=\"NA\",\"NA\", IF($I$51=1,'Profile Selection'!AH214, \"NA\"))","v":{"$error":"#N/A"}},null,"Other VFD Parameters that Accompany Communication Control",null,null,null,null,null,null,null,null,null,null,null,null,null,null,null,null,null,null,null,null,null,null,null,null,null,null,null,null,null,"Output Current",null,null,null,null,null,null,null,null,null,null,null,null,null,null,{"$f":"X50","v":""}]
["52.10 (16bit)",{"$f":"IF($I$51=\"NA\",\"NA\", IF($J$51=1,'Profile Selection'!AE215, \"NA\"))","v":{"$error":"#N/A"}},"53.10 (16bit)",{"$f":"IF($I$51=\"NA\",\"NA\", IF($I$51>=1,'Profile Selection'!AH215, \"NA\"))","v":{"$error":"#N/A"}},null,"Parameter Name","Parameter","Parameter Setting","Units",null,null,null,null,null,null,null,null,null,null,null,null,null,null,null,null,null,null,null,null,null,null,null,null,null,null,"",null,null,null,null,null,null,null,null,null,null,null,null,null,null,""]
[null,null,null,null,null,{"$f":"IF('Profile Selection'!$P$9=\"Scalar (V/Hz)\",\"Freq Accel Time 1\",\"Acceleration Time 1\")","v":"Acceleration Time 1"},{"$f":"IF('Profile Selection'!$P$9=\"Scalar (V/Hz)\",28.72,23.12)","v":23.12},"5.00 s","s",null,null,null,null,null,null,null,null,null,null,null,null,null,null,null,null,null,null,null,null,null,null,null,null,null,null,"",null,null,null,null,null,null,null,null,null,null,null,null,null,null,""]
[null,null,null,null,null,{"$f":"IF('Profile Selection'!$P$9=\"Scalar (V/Hz)\",\"Freq Decel Time 1\",\"Deceleration Time 1\")","v":"Deceleration Time 1"},{"$f":"IF('Profile Selection'!$P$9=\"Scalar (V/Hz)\",28.73,23.13)","v":23.13},"5.00 s","s",null,null,null,null,null,null,null,null,null,null,null,null,null,null,null,null,null,null,null,null,null,null,null,null,null,null,"",null,null,null,null,null,null,null,null,null,null,null,null,null,null,""]
[null,null,null,null,null,{"$f":"IF('Profile Selection'!$P$9=\"Scalar (V/Hz)\",\"Minimum Frequency\",\"Minimum Speed\")","v":"Minimum Speed"},{"$f":"IF('Profile Selection'!$P$9=\"Scalar (V/Hz)\",30.13,30.11)","v":30.11},0,{"$f":"IF('Profile Selection'!$P$9=\"Scalar (V/Hz)\",\"Hz\",\"rpm\")","v":"rpm"},null,null,null,null,null,null,null,null,null,null,null,null,null,null,null,null,null,null,null,null,null,null,null,null,null,null,"",null,null,null,null,null,null,null,null,null,null,null,null,null,null,""]
[null,null,null,null,null,{"$f":"IF('Profile Selection'!$P$9=\"Scalar (V/Hz)\",\"Maximum Frequency\",\"Maximum Speed\")","v":"Maximum Speed"},{"$f":"IF('Profile Selection'!$P$9=\"Scalar (V/Hz)\",30.14,30.12)","v":30.12},{"$f":"+MaxFreqORRPMDef","v":1800},{"$f":"IF('Profile Selection'!$P$9=\"Scalar (V/Hz)\",\"Hz\",\"rpm\")","v":"rpm"},null,null,null,null,null,null,null,null,null,null,null,null,null,null,null,null,null,null,null,null,null,null,null,null,null,null,"",null,null,null,null,null,null,null,null,null,null,null,null,null,null,""]
[null,null,null,null,null,{"$f":"IF('Profile Selection'!$P$9=\"Scalar (V/Hz)\",\"Frequency Scaling\",\"Speed Scaling\")","v":"Speed Scaling"},{"$f":"IF('Profile Selection'!$P$9=\"Scalar (V/Hz)\",46.02,46.01)","v":46.01},{"$f":"+MaxFreqORRPMDef","v":1800},{"$f":"IF('Profile Selection'!$P$9=\"Scalar (V/Hz)\",\"Hz\",\"rpm\")","v":"rpm"},null,null,null,null,null,null,null,null,null,null,null,null,null,null,null,null,null,null,null,null,null,null,null,null,null,null,"",null,null,null,null,null,null,null,null,null,null,null,null,null,null,""]
[null,null,null,null,null,"Power Scaling",46.04,1000,"N/A",null,null,null,null,null,null,null,null,null,null,null,null,null,null,null,null,null,null,null,null,null,null,null,null,null,null,"",null,null,null,null,null,null,null,null,null,null,null,null,null,null,""]
[null,null,null,null,null,"Current Scaling",46.05,1000,"A",null,null,null,null,null,null,null,null,null,null,null,null,null,null,null,null,null,null,null,null,null,null,null,null,null,null,"",null,null,null,null,null,null,null,null,null,null,null,null,null,null,""]
[null,null,null,null,null,null,null,null,null,null,null,null,null,null,null,null,null,null,null,null,null,null,null,null,null,null,null,null,null,null,null,null,null,null,null,null,null,null,null,null,null,null,null,null,null,null,null,null,null,null,""]
[]
[]
[]
[]
[]
[]
[]
[]
[]
[]
[]
[]
[]
[null,null,null,null,null,null,null,null,"Output","Input","Size",null,null,null,null,null,null,null,null,null,{"$f":"IF('Profile Selection'!D21=\"\",\"\", 'Profile Selection'!D21)","v":"DC Bus Volts"},null,null,{"$f":"IF('Profile Selection'!J21=\"\",\"\", 'Profile Selection'!J21)","v":""}]
[null,null,null,null,null,null,null,null,1,1,{"$f":"VLOOKUP(I51,I58:K62,3)","v":2},null,null,null,null,null,null,null,null,null,{"$f":"IF('Profile Selection'!D22=\"\",\"\", 'Profile Selection'!D22)","v":"Output Current"},null,null,{"$f":"IF('Profile Selection'!J22=\"\",\"\", 'Profile Selection'!J22)","v":""}]
[null,null,null,null,null,null,null,null,null,null,null,null,null,null,null,null,null,null,null,null,{"$f":"IF('Profile Selection'!D23=\"\",\"\", 'Profile Selection'!D23)","v":""},null,null,{"$f":"IF('Profile Selection'!J23=\"\",\"\", 'Profile Selection'!J23)","v":""}]
[null,null,null,null,null,null,null,null,null,null,null,null,null,null,null,null,null,null,null,null,{"$f":"IF('Profile Selection'!D24=\"\",\"\", 'Profile Selection'!D24)","v":""},null,null,{"$f":"IF('Profile Selection'!J24=\"\",\"\", 'Profile Selection'!J24)","v":""}]
[null,null,null,null,null,null,null,null,null,null,null,null,null,null,null,null,null,null,null,null,{"$f":"IF('Profile Selection'!D25=\"\",\"\", 'Profile Selection'!D25)","v":""},null,null,{"$f":"IF('Profile Selection'!J25=\"\",\"\", 'Profile Selection'!J25)","v":""}]
[null,null,null,null,null,null,null,null,null,null,null,null,null,null,null,null,null,null,null,null,{"$f":"IF('Profile Selection'!D26=\"\",\"\", 'Profile Selection'!D26)","v":""},null,null,{"$f":"IF('Profile Selection'!J26=\"\",\"\", 'Profile Selection'!J26)","v":""}]
[null,null,{"$f":"IF('Profile Selection'!$I$9=\"DCS880\",3,2)","v":2},null,null,null,null,null,"Assembly Instances for ODVA ACDC Basic Profile",null,null,null,null,null,null,null,null,null,null,null,{"$f":"IF('Profile Selection'!D27=\"\",\"\", 'Profile Selection'!D27)","v":""},null,null,{"$f":"IF('Profile Selection'!J27=\"\",\"\", 'Profile Selection'!J27)","v":""}]
[null,null,"AC Settings","DCS880 Settings",null,null,null,null,"Output","Input","Size",null,null,null,null,null,null,null,null,null,{"$f":"IF('Profile Selection'!D28=\"\",\"\", 'Profile Selection'!D28)","v":""},null,null,{"$f":"IF('Profile Selection'!J28=\"\",\"\", 'Profile Selection'!J28)","v":""}]
["Run Cmd Selection","NO","\"User Defines Setting\"","Local I/O",null,null,null,null,"NA","NA","NA",null,null,null,null,null,null,null,null,null,{"$f":"IF('Profile Selection'!D29=\"\",\"\", 'Profile Selection'!D29)","v":""},null,null,{"$f":"IF('Profile Selection'!J29=\"\",\"\", 'Profile Selection'!J29)","v":""}]
[null,"YES","Fieldbus A","Main control word",null,null,null,null,1,51,2,null,null,null,null,null,null,null,null,null,{"$f":"IF('Profile Selection'!D30=\"\",\"\", 'Profile Selection'!D30)","v":""},null,null,{"$f":"IF('Profile Selection'!J30=\"\",\"\", 'Profile Selection'!J30)","v":""}]
["Fault Reset Selection","NO","\"User Defines Setting\"","\"User Defines Setting\"",null,null,null,null,2,52,3]
[null,"YES","FBA A MCW bit 7","\"No Setting Required\"",null,null,null,null,101,151,12]
["Spd/Freq Ref1 Selection","NO","\"User Defines Setting\"","\"User Defines Setting\"",null,null,null,null,102,152,13]
[null,"YES","FB A ref1","FBA A ref1"]
["Direction Selection","NO","\"User Defines Setting\""]
[null,"YES",{"$f":"'Profile Selection'!F85","v":"Request"}]
["EXT1/EXT2 Sel","NO","EXT1"]
[null,"YES",{"$f":"VLOOKUP('Profile Selection'!$I$9,'ABB Drives Setup'!$A$86:$C$92,2,FALSE)","v":"FBA A MCW bit 11"}]
["Spd/Freq Ref2 Selecton","NO","\"User Defines Setting\"","\"User Defines Setting\""]
[null,"YES","FB A ref2","FBA A ref2"]
["Torque Selection","NO","\"User Defines Setting\"","\"User Defines Setting\""]
[null,"YES","FB A ref2","FBA A ref2"]
["Spd/Freq Ref1/2 Sel","NO"]
[null,"YES"]
[]
[null,"Ext1 Run Cmd Param","Flt Reset Param","Spd/Freq Ref1 Sel","NA","EXT1/EXT2 Sel","Spd/Freq Ref2 Sel","Ref 1/2 Selection","Torq Ref","Ext2 Run Cmd"]
["ACS380",20.010000000000002,31.11,{"$f":"IF('Profile Selection'!$P$9=\"Scalar (V/Hz)\",28.11,22.11)","v":22.11},"NA",19.11,{"$f":"IF('Profile Selection'!$P$9=\"Scalar (V/Hz)\",28.15,22.18)","v":22.18},"See 19.11",26.11,20.059999999999999]
["ACS480",20.010000000000002,31.11,{"$f":"IF('Profile Selection'!$P$9=\"Scalar (V/Hz)\",28.11,22.11)","v":22.11},"NA",19.11,{"$f":"IF('Profile Selection'!$P$9=\"Scalar (V/Hz)\",28.15,22.18)","v":22.18},"See 19.11",26.11,20.059999999999999]
["ACS580",20.010000000000002,31.11,{"$f":"IF('Profile Selection'!$P$9=\"Scalar (V/Hz)\",28.11,22.11)","v":22.11},"NA",19.11,{"$f":"IF('Profile Selection'!$P$9=\"Scalar (V/Hz)\",28.15,22.18)","v":22.18},"See 19.11",26.11,20.059999999999999]
["ACS880",20.010000000000002,31.11,{"$f":"IF('Profile Selection'!$P$9=\"Scalar (V/Hz)\",28.11,22.11)","v":22.11},"NA",19.11,{"$f":"IF('Profile Selection'!$P$9=\"Scalar (V/Hz)\",28.12,22.12)","v":22.12},{"$f":"IF('Profile Selection'!$P$9=\"Scalar (V/Hz)\",28.14,22.14)","v":22.14},26.11,20.059999999999999]
["DCS880",20.010000000000002,20.13,22.11,"NA",19.11,22.12,22.14,26.11,20.149999999999999]
["ACH580",20.010000000000002,31.11,{"$f":"IF('Profile Selection'!$P$9=\"Scalar (V/Hz)\",28.11,22.11)","v":22.11},"NA",19.11,{"$f":"IF('Profile Selection'!$P$9=\"Scalar (V/Hz)\",28.15,22.18)","v":22.18},"See 19.11",26.11,20.059999999999999]
["ACQ580",20.010000000000002,31.11,{"$f":"IF('Profile Selection'!$P$9=\"Scalar (V/Hz)\",28.11,22.11)","v":22.11},"NA",19.11,{"$f":"IF('Profile Selection'!$P$9=\"Scalar (V/Hz)\",28.15,22.18)","v":22.18},"See 19.11",26.11,20.059999999999999]
[null,{"$f":"VLOOKUP('Profile Selection'!$I$9,'ABB Drives Setup'!$A$76:$J$82,2,FALSE)","v":20.010000000000002},{"$f":"VLOOKUP('Profile Selection'!$I$9,'ABB Drives Setup'!$A$76:$J$82,3,FALSE)","v":31.11},{"$f":"VLOOKUP('Profile Selection'!$I$9,'ABB Drives Setup'!$A$76:$J$82,4,FALSE)","v":22.11},"NA",{"$f":"VLOOKUP('Profile Selection'!$I$9,'ABB Drives Setup'!$A$76:$J$82,6,FALSE)","v":19.11},{"$f":"VLOOKUP('Profile Selection'!$I$9,'ABB Drives Setup'!$A$76:$J$82,7,FALSE)","v":22.18},{"$f":"VLOOKUP('Profile Selection'!$I$9,'ABB Drives Setup'!$A$76:$J$82,8,FALSE)","v":"See 19.11"},{"$f":"VLOOKUP('Profile Selection'!$I$9,'ABB Drives Setup'!$A$76:$J$82,9,FALSE)","v":26.11},{"$f":"VLOOKUP('Profile Selection'!$I$9,'ABB Drives Setup'!$A$76:$J$82,10,FALSE)","v":20.059999999999999}]
[]
[null,"Ext1/2 Sel Setting","Spd Ref1/2 Sel (yes)","Spd Ref1/2 Sel (No)",null,{"$f":"OR('Profile Selection'!I9=\"ACS880\",'Profile Selection'!I9=\"DCS880\")","v":false}]
["ACS380","FBA A MCW bit 11","\"See Ext1/Ext2 Sel\"","\"See Ext1/Ext2 Sel\""]
["ACS480","FBA A MCW bit 11","\"See Ext1/Ext2 Sel\"","\"See Ext1/Ext2 Sel\""]
["ACS580","FBA A MCW bit 11","\"See Ext1/Ext2 Sel\"","\"See Ext1/Ext2 Sel\""]
["ACS880","FBA A MCW bit 11","Other (Define bit)","Follow Ext1/Ext2 Sel"]
["DCS880","Other (6.01 bit11)","Other (Define bit)","Speed Reference 1"]
["ACH580","FBA A MCW bit 11","\"See Ext1/Ext2 Sel\"","\"See Ext1/Ext2 Sel\""]
["ACQ580","FBA A MCW bit 11","\"See Ext1/Ext2 Sel\"","\"See Ext1/Ext2 Sel\""]
[null,null,{"$f":"IF(B11=\"NO\",4,3)","v":4}]

{"sheet":"Transparent 16 Profile","index":4,"n_rows":93,"n_cols":20,"rows_kept":93,"cut":false,"hidden":true,"merged":[[24,0,24,1],[25,0,25,1],[0,5,0,7],[2,0,2,3],[14,0,14,3],[15,0,15,1],[16,0,16,1],[17,0,17,1],[18,0,18,1],[19,0,19,1],[20,0,20,1],[21,0,21,1],[22,0,22,1],[23,0,23,1],[33,0,33,3],[34,2,34,3],[34,0,34,1],[31,0,31,1],[30,5,30,8],[26,0,26,1],[27,0,27,1],[28,0,28,1],[29,0,29,1],[30,0,30,1]]}
["Ethernet IP Transparent 16 (Bit) Profile",null,null,null,null,"FENA-11/21 Configuration Parameters (Group 50 & 51)"]
[null,null,null,null,null,"Parameter Name","Parameter","Parameter Setting",null,"Rockwell Logix 5000 Software Configuration to add ABB VFDs as a new Ethernet IP Device"]
["VFD Signals Controlled by PLC over EIP",null,null,null,null,"FBA A enable",50.01,"Please Select..",null,"Note:  The configuration below is specific to the Transparent 16 Profile and the data "]
["Signal","No/Yes","Parameter","Parameter Setting",null,"FBA A comm loss func",50.02,"Fault Always",null,"supplied on the \"Profile Selection\" Tab of this Spreadsheet Tool.  This PLC configuration "]
["EXT1/EXT2 Select","NO",{"$f":"'ABB Drives Setup'!F83","v":19.11},{"$f":"VLOOKUP(B5,'ABB Drives Setup'!B66:C67,2,FALSE)","v":"EXT1"},null,"FBA ref1 type",50.04,"Auto",null,"matches the parameters defined on this page and will deliver successful Communications"]
["EXT1 Run Command","YES",{"$f":"'ABB Drives Setup'!B83","v":20.010000000000002},{"$f":"VLOOKUP(B6,'ABB Drives Setup'!B58:D59,'ABB Drives Setup'!C56)","v":"Fieldbus A"},null,"FBA ref2 type",50.05,"Auto",null,"between the PLC and the ABB VFD via Ethernet IP"]
["EXT2 Run Command","NO",{"$f":"'ABB Drives Setup'!J83","v":20.059999999999999},{"$f":"VLOOKUP(B7,'ABB Drives Setup'!B58:D59,'ABB Drives Setup'!C56)","v":"\"User Defines Setting\""},null,"FBA actual 1 type",50.07,{"$f":"IF($B$9=\"YES\", \"Auto\", \"Speed\")","v":"Auto"}]
["Direction Command","YES",{"$f":"'Profile Selection'!G85","v":20.21},{"$f":"VLOOKUP(B8,'ABB Drives Setup'!B64:C65,2)","v":"Request"},null,"FBA actual 2 type",50.08,{"$f":"IF(AND($B$12=\"NO\", 'Profile Selection'!J14=\"YES\"),\"Torque\",\"Auto\")","v":"Torque"}]
[{"$f":"IF('Profile Selection'!$P$9=\"Scalar (V/Hz)\",\"Frequency Reference 1\",\"Speed Reference 1\")","v":"Speed Reference 1"},"YES",{"$f":"'ABB Drives Setup'!D83","v":22.11},{"$f":"VLOOKUP(B9,'ABB Drives Setup'!B62:D63,'ABB Drives Setup'!C56)","v":"FB A ref1"},null,"FBA A SW transparent source",50.09,"User Status Word 1"]
[{"$f":"IF('Profile Selection'!$P$9=\"Scalar (V/Hz)\",\"Frequency Reference 2\",\"Speed Reference 2\")","v":"Speed Reference 2"},"NO",{"$f":"'ABB Drives Setup'!G83","v":22.18},{"$f":"VLOOKUP(B10,'ABB Drives Setup'!B68:D69,'ABB Drives Setup'!C56)","v":"\"User Defines Setting\""},null,"FBA A act1 transparent source",50.1,"Not selected"]
[{"$f":"IF('Profile Selection'!$P$9=\"Scalar (V/Hz)\",\"Freq Ref 1/2 Sel\",\"Speed Ref 1/2 Sel\")","v":"Speed Ref 1/2 Sel"},"NO",{"$f":"'ABB Drives Setup'!H83","v":"See 19.11"},{"$f":"VLOOKUP('Profile Selection'!I9,'ABB Drives Setup'!A86:D92,C93,FALSE)","v":"\"See Ext1/Ext2 Sel\""},null,"FBA A act2 transparent source",50.11,"Not selected"]
["Torque Reference 1","NO",{"$f":"'ABB Drives Setup'!I83","v":26.11},{"$f":"VLOOKUP(B12,'ABB Drives Setup'!B70:D71,'ABB Drives Setup'!C56)","v":"\"User Defines Setting\""},null,{"$f":"IF('Profile Selection'!$I$9=\"DCS880\",\"FBA A profile\",\" \")","v":" "},{"$f":"IF('Profile Selection'!$I$9=\"DCS880\",\"50.29\",\" \")","v":" "},{"$f":"IF('Profile Selection'!$I$9=\"DCS880\",\"DCP\",\" \")","v":" "}]
["Fault Reset","YES",{"$f":"'ABB Drives Setup'!C83","v":31.11},{"$f":"VLOOKUP(B13,'ABB Drives Setup'!B60:D61,'ABB Drives Setup'!C56)","v":"FBA A MCW bit 7"},null,"FBA A Type",51.01,"Ethernet"]
[null,null,null,null,null,"Protocol / Profile",51.02,"102 (EIP T16)"]
["Parameters for Configuring User Defined Status Word",null,null,null,null,"IP configuration",51.04,"0 (Static)",null,null,null,null,null,null,null,null,null,{"$f":"J60","v":"NA"},null,{"$f":"K60","v":"NA"}]
["Signal",null,"Parameter","Parameter Setting",null,"IP Address 1",51.05,{"$f":"'Profile Selection'!F41","v":192},null,null,null,null,null,null,null,null,null,{"$f":"I60","v":"NA"},null,{"$f":"K60","v":"NA"}]
["User Status Word Bit 0 Sel",null,6.6,"\"User Selects Bit Source\"",null,"IP Address 2",51.06,{"$f":"'Profile Selection'!G41","v":168},null,null,null,null,null,null,null,null,null,1,null,0]
["User Status Word Bit 1 Sel",null,6.61,"\"User Selects Bit Source\"",null,"IP Address 3",51.07,{"$f":"'Profile Selection'!H41","v":3},null,null,null,{"$f":"H16","v":192},{"$f":"H17","v":168},{"$f":"H18","v":3},{"$f":"H19","v":3}]
["User Status Word Bit 2 Sel",null,6.62,"\"User Selects Bit Source\"",null,"IP Address 4",51.08,{"$f":"'Profile Selection'!I41","v":3}]
["User Status Word Bit 3 Sel",null,6.63,"\"User Selects Bit Source\"",null,"Subnet CIDR",51.09,{"$f":"'Profile Selection'!S70","v":24}]
["User Status Word Bit 4 Sel",null,6.64,"\"User Selects Bit Source\"",null,"GW Address 1",51.1,{"$f":"'Profile Selection'!F42","v":0}]
["User Status Word Bit 5 Sel",null,6.65,"\"User Selects Bit Source\"",null,"GW Address 2",51.11,{"$f":"'Profile Selection'!G42","v":0}]
["User Status Word Bit 6 Sel",null,6.66,"\"User Selects Bit Source\"",null,"GW Address 3",51.12,{"$f":"'Profile Selection'!H42","v":0}]
["User Status Word Bit 7 Sel",null,6.67,"\"User Selects Bit Source\"",null,"GW Address 4",51.13,{"$f":"'Profile Selection'!I42","v":0}]
["User Status Word Bit 8 Sel",null,6.68,"\"User Selects Bit Source\"",null,"T16 Scale",51.19,99]
["User Status Word Bit 9 Sel",null,6.69,"\"User Selects Bit Source\"",null,"Control Timeout",51.2,20]
["User Status Word Bit 10 Sel",null,6.7,"\"User Selects Bit Source\"",null,"Idle Action",51.21,"0 (Off-line)"]
["User Status Word Bit 11 Sel",null,6.71,"\"User Selects Bit Source\"",null,"FBA Par Refresh",51.27,{"$f":"'Profile Selection'!$D$85","v":"Configure"}]
["User Status Word Bit 12 Sel",null,6.72,"\"User Selects Bit Source\"",null,{"$f":"IF('Profile Selection'!$I$9=\"DCS880\",\"Main CW source\",\" \")","v":" "},{"$f":"IF('Profile Selection'!$I$9=\"DCS880\",\"6.08\",\" \")","v":" "},{"$f":"IF('Profile Selection'!$I$9=\"DCS880\",\"FBA A\",\" \")","v":" "}]
["User Status Word Bit 13 Sel",null,6.73,"\"User Selects Bit Source\""]
["User Status Word Bit 14 Sel",null,6.74,"\"User Selects Bit Source\"",null,"Other VFD Parameters that Accompany Communication Control"]
["User Status Word Bit 15 Sel",null,6.75,"\"User Selects Bit Source\"",null,"Parameter Name","Parameter","Parameter Setting","Units"]
[null,null,null,null,null,{"$f":"IF('Profile Selection'!$P$9=\"Scalar (V/Hz)\",\"Freq Accel Time 1\",\"Acceleration Time 1\")","v":"Acceleration Time 1"},{"$f":"IF('Profile Selection'!$P$9=\"Scalar (V/Hz)\",28.72,23.12)","v":23.12},"5.00 s","s"]
["Parameters for Configuring User Defined Data Words",null,null,null,null,{"$f":"IF('Profile Selection'!$P$9=\"Scalar (V/Hz)\",\"Freq Decel Time 1\",\"Deceleration Time 1\")","v":"Deceleration Time 1"},{"$f":"IF('Profile Selection'!$P$9=\"Scalar (V/Hz)\",28.73,23.13)","v":23.13},"5.00 s","s"]
["Inputs (Read) to PLC from VFD",null,"Outputs (Write) from PLC to VFD",null,null,{"$f":"IF('Profile Selection'!$P$9=\"Scalar (V/Hz)\",\"Minimum Frequency\",\"Minimum Speed\")","v":"Minimum Speed"},{"$f":"IF('Profile Selection'!$P$9=\"Scalar (V/Hz)\",30.13,30.11)","v":30.11},0,{"$f":"IF('Profile Selection'!$P$9=\"Scalar (V/Hz)\",\"Hz\",\"rpm\")","v":"rpm"}]
["Parameter","Parameter Setting","Parameter","Parameter Setting",null,{"$f":"IF('Profile Selection'!$P$9=\"Scalar (V/Hz)\",\"Maximum Frequency\",\"Maximum Speed\")","v":"Maximum Speed"},{"$f":"IF('Profile Selection'!$P$9=\"Scalar (V/Hz)\",30.14,30.12)","v":30.12},{"$f":"+MaxFreqORRPMDef","v":1800},{"$f":"IF('Profile Selection'!$P$9=\"Scalar (V/Hz)\",\"Hz\",\"rpm\")","v":"rpm"}]
["52.01 (16bit)",{"$f":"IF($I$60=\"NA\",\"NA\", IF($J$60>150,'Profile Selection'!X190, \"NA\"))","v":"NA"},"53.01 (16bit)",{"$f":"IF($I$60=\"NA\",\"NA\", IF($I$60>100,'Profile Selection'!AD190, \"NA\"))","v":"NA"},null,{"$f":"IF('Profile Selection'!$P$9=\"Scalar (V/Hz)\",\"Frequency Scaling\",\"Speed Scaling\")","v":"Speed Scaling"},{"$f":"IF('Profile Selection'!$P$9=\"Scalar (V/Hz)\",46.02,46.01)","v":46.01},{"$f":"+MaxFreqORRPMDef","v":1800},{"$f":"IF('Profile Selection'!$P$9=\"Scalar (V/Hz)\",\"Hz\",\"rpm\")","v":"rpm"}]
["52.02 (16bit)",{"$f":"IF($I$60=\"NA\",\"NA\", IF($J$60>150,'Profile Selection'!X191, \"NA\"))","v":"NA"},"53.02 (16bit)",{"$f":"IF($I$60=\"NA\",\"NA\", IF($I$60>100,'Profile Selection'!AD191, \"NA\"))","v":"NA"}]
["52.03 (16bit)",{"$f":"IF($I$60=\"NA\",\"NA\", IF($J$60>150,'Profile Selection'!X192, \"NA\"))","v":"NA"},"53.03 (16bit)",{"$f":"IF($I$60=\"NA\",\"NA\", IF($I$60>100,'Profile Selection'!AD192, \"NA\"))","v":"NA"}]
["52.04 (16bit)",{"$f":"IF($I$60=\"NA\",\"NA\", IF($J$60>150,'Profile Selection'!X193, \"NA\"))","v":"NA"},"53.04 (16bit)",{"$f":"IF($I$60=\"NA\",\"NA\", IF($I$60>100,'Profile Selection'!AD193, \"NA\"))","v":"NA"}]
["52.05 (16bit)",{"$f":"IF($I$60=\"NA\",\"NA\", IF($J$60>150,'Profile Selection'!X194, \"NA\"))","v":"NA"},"53.05 (16bit)",{"$f":"IF($I$60=\"NA\",\"NA\", IF($I$60>100,'Profile Selection'!AD194, \"NA\"))","v":"NA"}]
["52.06 (16bit)",{"$f":"IF($I$60=\"NA\",\"NA\", IF($J$60>150,'Profile Selection'!X195, \"NA\"))","v":"NA"},"53.06 (16bit)",{"$f":"IF($I$60=\"NA\",\"NA\", IF($I$60>100,'Profile Selection'!AD195, \"NA\"))","v":"NA"}]
["52.07 (16bit)",{"$f":"IF($I$60=\"NA\",\"NA\", IF($J$60>150,'Profile Selection'!X196, \"NA\"))","v":"NA"},"53.07 (16bit)",{"$f":"IF($I$60=\"NA\",\"NA\", IF($I$60>100,'Profile Selection'!AD196, \"NA\"))","v":"NA"}]
["52.08 (16bit)",{"$f":"IF($I$60=\"NA\",\"NA\", IF($J$60>150,'Profile Selection'!X197, \"NA\"))","v":"NA"},"53.08 (16bit)",{"$f":"IF($I$60=\"NA\",\"NA\", IF($I$60>100,'Profile Selection'!AD197, \"NA\"))","v":"NA"}]
["52.09 (16bit)",{"$f":"IF($I$60=\"NA\",\"NA\", IF($J$60>150,'Profile Selection'!X198, \"NA\"))","v":"NA"},"53.09 (16bit)",{"$f":"IF($I$60=\"NA\",\"NA\", IF($I$60>100,'Profile Selection'!AD198, \"NA\"))","v":"NA"}]
["52.10 (16bit)",{"$f":"IF($I$60=\"NA\",\"NA\", IF($J$60>150,'Profile Selection'!X199, \"NA\"))","v":"NA"},"53.10 (16bit)",{"$f":"IF($I$60=\"NA\",\"NA\", IF($I$60>100,'Profile Selection'!AD199, \"NA\"))","v":"NA"}]
[]
[]
[]
[]
[]
[]
[]
[]
[]
[]
[]
[]
[null,null,null,null,null,null,null,null,"Output","Input","Size"]
[null,null,null,null,null,null,null,null,{"$f":"IF('Profile Selection'!L49=\"Transparent 16 Profile\",IF('Profile Selection'!J14=\"NO\",IF(OR('Profile Selection'!#REF!>2, 'Profile Selection'!#REF!>2),111,11),IF(OR('Profile Selection'!#REF!>3, 'Profile Selection'!#REF!>3),112,12)),\"NA\")","v":"NA"},{"$f":"VLOOKUP(I60,I67:K71,2)","v":"NA"},{"$f":"VLOOKUP(I60,I67:K71,3)","v":"NA"}]
[]
[]
[]
[]
[null,null,null,null,null,null,null,null,"Assembly Instances for ODVA ACDC Basic Profile"]
[null,null,null,null,null,null,null,null,"Output","Input","Size"]
[null,"NO","\"User Defines Setting\"",null,null,null,null,null,"NA","NA","NA"]
[null,"YES","\"Define Bit in User CW 6.03\"",null,null,null,null,null,11,61,2]
[null,"NO","\"User Defines Setting\"",null,null,null,null,null,12,62,3]
[null,"YES","\"Define Bit in User CW 6.03\"",null,null,null,null,null,111,161,12]
[null,"NO","\"User Defines Setting\"",null,null,null,null,null,112,162,13]
[null,"YES","FB A ref1"]
[null,"NO","\"User Defines Setting\""]
[null,"YES","\"Define Bit in User CW 6.03\""]
[null,"NO","EXT1"]
[null,"YES","\"Define Bit in User CW 6.03\""]
[null,"NO","\"User Defines Setting\""]
[null,"YES","FB A ref2"]
[null,"NO","\"User Defines Setting\""]
[null,"YES","FB A ref2"]
[]
[]
[]
[]
[]
[]
[]
[]
[]
[]
[]
[]
[null,null,{"$f":"IF(B11=\"NO\",4,3)","v":4}]

{"sheet":"Transparent 32 Profile","index":5,"n_rows":93,"n_cols":20,"rows_kept":93,"cut":false,"hidden":true,"merged":[[17,0,17,1],[0,5,0,7],[2,0,2,3],[14,0,14,3],[15,0,15,1],[16,0,16,1],[23,0,23,1],[18,0,18,1],[19,0,19,1],[20,0,20,1],[21,0,21,1],[22,0,22,1],[24,0,24,1],[25,0,25,1],[26,0,26,1],[27,0,27,1],[28,0,28,1],[30,5,30,8],[33,0,33,3],[34,2,34,3],[34,0,34,1],[29,0,29,1],[30,0,30,1],[31,0,31,1]]}
["Ethernet IP Transparent 32 (Bit) Profile",null,null,null,null,"FENA-11/21 Configuration Parameters (Group 50 & 51)"]
[null,null,null,null,null,"Parameter Name","Parameter","Parameter Setting",null,"Rockwell Logix 5000 Software Configuration to add ABB VFDs as a new Ethernet IP Device"]
["VFD Signals Controlled by PLC over EIP",null,null,null,null,"FBA A enable",50.01,"Please Select..",null,"Note:  The configuration below is specific to the Transparent 32 Profile and the data "]
["Signal","No/Yes","Parameter","Parameter Setting",null,"FBA A comm loss func",50.02,"Fault Always",null,"supplied on the \"Profile Selection\" Tab of this Spreadsheet Tool.  This PLC configuration "]
["EXT1/EXT2 Select","NO",{"$f":"'ABB Drives Setup'!F83","v":19.11},{"$f":"VLOOKUP(B5,'ABB Drives Setup'!B66:C67,2,FALSE)","v":"EXT1"},null,"FBA ref1 type",50.04,"Auto",null,"matches the parameters defined on this page and will deliver successful Communications"]
["EXT1 Run Command","YES",{"$f":"'ABB Drives Setup'!B83","v":20.010000000000002},{"$f":"VLOOKUP(B6,'ABB Drives Setup'!B58:D59,'ABB Drives Setup'!C56)","v":"Fieldbus A"},null,"FBA ref2 type",50.05,"Auto",null,"between the PLC and the ABB VFD via Ethernet IP"]
["EXT2 Run Command","NO",{"$f":"'ABB Drives Setup'!J83","v":20.059999999999999},{"$f":"VLOOKUP(B7,'ABB Drives Setup'!B58:D59,'ABB Drives Setup'!C56)","v":"\"User Defines Setting\""},null,"FBA actual 1 type",50.07,{"$f":"IF($B$9=\"YES\", \"Auto\", \"Speed\")","v":"Auto"}]
["Direction Command","YES",{"$f":"'Profile Selection'!G85","v":20.21},{"$f":"VLOOKUP(B8,'ABB Drives Setup'!B64:C65,2)","v":"Request"},null,"FBA actual 2 type",50.08,{"$f":"IF(AND($B$12=\"NO\", 'Profile Selection'!J14=\"YES\"),\"Torque\",\"Auto\")","v":"Torque"}]
[{"$f":"IF('Profile Selection'!$P$9=\"Scalar (V/Hz)\",\"Frequency Reference 1\",\"Speed Reference 1\")","v":"Speed Reference 1"},"YES",{"$f":"'ABB Drives Setup'!D83","v":22.11},{"$f":"VLOOKUP(B9,'ABB Drives Setup'!B62:D63,'ABB Drives Setup'!C56)","v":"FB A ref1"},null,"FBA A SW transparent source",50.09,"User Status Word 1"]
[{"$f":"IF('Profile Selection'!$P$9=\"Scalar (V/Hz)\",\"Frequency Reference 2\",\"Speed Reference 2\")","v":"Speed Reference 2"},"NO",{"$f":"'ABB Drives Setup'!G83","v":22.18},{"$f":"VLOOKUP(B10,'ABB Drives Setup'!B68:D69,'ABB Drives Setup'!C56)","v":"\"User Defines Setting\""},null,"FBA A act1 transparent source",50.1,"Not selected"]
[{"$f":"IF('Profile Selection'!$P$9=\"Scalar (V/Hz)\",\"Freq Ref 1/2 Sel\",\"Speed Ref 1/2 Sel\")","v":"Speed Ref 1/2 Sel"},"NO",{"$f":"'ABB Drives Setup'!H83","v":"See 19.11"},{"$f":"VLOOKUP('Profile Selection'!I9,'ABB Drives Setup'!A86:D92,C93,FALSE)","v":"\"See Ext1/Ext2 Sel\""},null,"FBA A act2 transparent source",50.11,"Not selected"]
["Torque Reference 1","NO",{"$f":"'ABB Drives Setup'!I83","v":26.11},{"$f":"VLOOKUP(B12,'ABB Drives Setup'!B70:D71,'ABB Drives Setup'!C56)","v":"\"User Defines Setting\""},null,{"$f":"IF('Profile Selection'!$I$9=\"DCS880\",\"FBA A profile\",\" \")","v":" "},{"$f":"IF('Profile Selection'!$I$9=\"DCS880\",\"50.29\",\" \")","v":" "},{"$f":"IF('Profile Selection'!$I$9=\"DCS880\",\"DCP\",\" \")","v":" "}]
["Fault Reset","YES",{"$f":"'ABB Drives Setup'!C83","v":31.11},{"$f":"VLOOKUP(B13,'ABB Drives Setup'!B60:D61,'ABB Drives Setup'!C56)","v":"FBA A MCW bit 7"},null,"FBA A Type",51.01,"Ethernet"]
[null,null,null,null,null,"Protocol / Profile",51.02,"103 (EIP T32)"]
["Parameters for Configuring User Defined Status Word",null,null,null,null,"IP configuration",51.04,"0 (Static)",null,null,null,null,null,null,null,null,null,{"$f":"J60","v":"NA"},null,{"$f":"L60","v":"NA"}]
["Signal",null,"Parameter","Parameter Setting",null,"IP Address 1",51.05,{"$f":"'Profile Selection'!F41","v":192},null,null,null,null,null,null,null,null,null,{"$f":"I60","v":"NA"},null,{"$f":"L60","v":"NA"}]
["User Status Word Bit 0 Sel",null,6.6,"\"User Selects Bit Source\"",null,"IP Address 2",51.06,{"$f":"'Profile Selection'!G41","v":168},null,null,null,null,null,null,null,null,null,1,null,0]
["User Status Word Bit 1 Sel",null,6.61,"\"User Selects Bit Source\"",null,"IP Address 3",51.07,{"$f":"'Profile Selection'!H41","v":3},null,null,null,{"$f":"H16","v":192},{"$f":"H17","v":168},{"$f":"H18","v":3},{"$f":"H19","v":3}]
["User Status Word Bit 2 Sel",null,6.62,"\"User Selects Bit Source\"",null,"IP Address 4",51.08,{"$f":"'Profile Selection'!I41","v":3}]
["User Status Word Bit 3 Sel",null,6.63,"\"User Selects Bit Source\"",null,"Subnet CIDR",51.09,{"$f":"'Profile Selection'!S70","v":24}]
["User Status Word Bit 4 Sel",null,6.64,"\"User Selects Bit Source\"",null,"GW Address 1",51.1,{"$f":"'Profile Selection'!F42","v":0}]
["User Status Word Bit 5 Sel",null,6.65,"\"User Selects Bit Source\"",null,"GW Address 2",51.11,{"$f":"'Profile Selection'!G42","v":0}]
["User Status Word Bit 6 Sel",null,6.66,"\"User Selects Bit Source\"",null,"GW Address 3",51.12,{"$f":"'Profile Selection'!H42","v":0}]
["User Status Word Bit 7 Sel",null,6.67,"\"User Selects Bit Source\"",null,"GW Address 4",51.13,{"$f":"'Profile Selection'!I42","v":0}]
["User Status Word Bit 8 Sel",null,6.68,"\"User Selects Bit Source\"",null,"T16 Scale",51.19,99]
["User Status Word Bit 9 Sel",null,6.69,"\"User Selects Bit Source\"",null,"Control Timeout",51.2,20]
["User Status Word Bit 10 Sel",null,6.7,"\"User Selects Bit Source\"",null,"Idle Action",51.21,"0 (Off-line)"]
["User Status Word Bit 11 Sel",null,6.71,"\"User Selects Bit Source\"",null,"FBA Par Refresh",51.27,{"$f":"'Profile Selection'!$D$85","v":"Configure"}]
["User Status Word Bit 12 Sel",null,6.72,"\"User Selects Bit Source\"",null,{"$f":"IF('Profile Selection'!$I$9=\"DCS880\",\"Main CW source\",\" \")","v":" "},{"$f":"IF('Profile Selection'!$I$9=\"DCS880\",\"6.08\",\" \")","v":" "},{"$f":"IF('Profile Selection'!$I$9=\"DCS880\",\"FBA A\",\" \")","v":" "}]
["User Status Word Bit 13 Sel",null,6.73,"\"User Selects Bit Source\""]
["User Status Word Bit 14 Sel",null,6.74,"\"User Selects Bit Source\"",null,"Other VFD Parameters that Accompany Communication Control"]
["User Status Word Bit 15 Sel",null,6.75,"\"User Selects Bit Source\"",null,"Parameter Name","Parameter","Parameter Setting","Units"]
[null,null,null,null,null,{"$f":"IF('Profile Selection'!$P$9=\"Scalar (V/Hz)\",\"Freq Accel Time 1\",\"Acceleration Time 1\")","v":"Acceleration Time 1"},{"$f":"IF('Profile Selection'!$P$9=\"Scalar (V/Hz)\",28.72,23.12)","v":23.12},"5.00 s","s"]
["Parameters for Configuring User Defined Data Words",null,null,null,null,{"$f":"IF('Profile Selection'!$P$9=\"Scalar (V/Hz)\",\"Freq Decel Time 1\",\"Deceleration Time 1\")","v":"Deceleration Time 1"},{"$f":"IF('Profile Selection'!$P$9=\"Scalar (V/Hz)\",28.73,23.13)","v":23.13},"5.00 s","s"]
["Inputs (Read) to PLC from VFD",null,"Outputs (Write) from PLC to VFD",null,null,{"$f":"IF('Profile Selection'!$P$9=\"Scalar (V/Hz)\",\"Minimum Frequency\",\"Minimum Speed\")","v":"Minimum Speed"},{"$f":"IF('Profile Selection'!$P$9=\"Scalar (V/Hz)\",30.13,30.11)","v":30.11},0,{"$f":"IF('Profile Selection'!$P$9=\"Scalar (V/Hz)\",\"Hz\",\"rpm\")","v":"rpm"}]
["Parameter","Parameter Setting","Parameter","Parameter Setting",null,{"$f":"IF('Profile Selection'!$P$9=\"Scalar (V/Hz)\",\"Maximum Frequency\",\"Maximum Speed\")","v":"Maximum Speed"},{"$f":"IF('Profile Selection'!$P$9=\"Scalar (V/Hz)\",30.14,30.12)","v":30.12},{"$f":"+MaxFreqORRPMDef","v":1800},{"$f":"IF('Profile Selection'!$P$9=\"Scalar (V/Hz)\",\"Hz\",\"rpm\")","v":"rpm"}]
["52.01 (32bit)",{"$f":"IF($I$60=\"NA\",\"NA\", IF($J$60>150,'Profile Selection'!X190, \"NA\"))","v":"NA"},"53.01 (32bit)",{"$f":"IF($I$60=\"NA\",\"NA\", IF($J$60>150,'Profile Selection'!AD190, \"NA\"))","v":"NA"},null,{"$f":"IF('Profile Selection'!$P$9=\"Scalar (V/Hz)\",\"Frequency Scaling\",\"Speed Scaling\")","v":"Speed Scaling"},{"$f":"IF('Profile Selection'!$P$9=\"Scalar (V/Hz)\",46.02,46.01)","v":46.01},{"$f":"+MaxFreqORRPMDef","v":1800},{"$f":"IF('Profile Selection'!$P$9=\"Scalar (V/Hz)\",\"Hz\",\"rpm\")","v":"rpm"}]
[52.02,{"$f":"IF($I$60=\"NA\",\"NA\", IF($J$60>150,\"Reserved\", \"NA\"))","v":"NA"},53.02,{"$f":"IF($I$60=\"NA\",\"NA\", IF($J$60>150,\"Reserved\", \"NA\"))","v":"NA"}]
["52.03 (32bit)",{"$f":"IF($I$60=\"NA\",\"NA\", IF($J$60>150,'Profile Selection'!X191, \"NA\"))","v":"NA"},"53.03 (32bit)",{"$f":"IF($I$60=\"NA\",\"NA\", IF($J$60>150,'Profile Selection'!AD191, \"NA\"))","v":"NA"}]
[52.04,{"$f":"IF($I$60=\"NA\",\"NA\", IF($J$60>150,\"Reserved\", \"NA\"))","v":"NA"},53.04,{"$f":"IF($I$60=\"NA\",\"NA\", IF($J$60>150,\"Reserved\", \"NA\"))","v":"NA"}]
["52.05 (32bit)",{"$f":"IF($I$60=\"NA\",\"NA\", IF($J$60>150,'Profile Selection'!X192, \"NA\"))","v":"NA"},"53.05 (32bit)",{"$f":"IF($I$60=\"NA\",\"NA\", IF($J$60>150,'Profile Selection'!AD192, \"NA\"))","v":"NA"}]
[52.06,{"$f":"IF($I$60=\"NA\",\"NA\", IF($J$60>150,\"Reserved\", \"NA\"))","v":"NA"},53.06,{"$f":"IF($I$60=\"NA\",\"NA\", IF($J$60>150,\"Reserved\", \"NA\"))","v":"NA"}]
["52.07 (32bit)",{"$f":"IF($I$60=\"NA\",\"NA\", IF($J$60>150,'Profile Selection'!X193, \"NA\"))","v":"NA"},"53.07 (32bit)",{"$f":"IF($I$60=\"NA\",\"NA\", IF($J$60>150,'Profile Selection'!AD193, \"NA\"))","v":"NA"}]
[52.08,{"$f":"IF($I$60=\"NA\",\"NA\", IF($J$60>150,\"Reserved\", \"NA\"))","v":"NA"},53.08,{"$f":"IF($I$60=\"NA\",\"NA\", IF($J$60>150,\"Reserved\", \"NA\"))","v":"NA"}]
["52.09 (32bit)",{"$f":"IF($I$60=\"NA\",\"NA\", IF(J$60>150,'Profile Selection'!X194, \"NA\"))","v":"NA"},"53.09 (32bit)",{"$f":"IF($I$60=\"NA\",\"NA\", IF($J$60>150,'Profile Selection'!AD194, \"NA\"))","v":"NA"}]
[52.1,{"$f":"IF($I$60=\"NA\",\"NA\", IF($J$60>150,\"Reserved\", \"NA\"))","v":"NA"},53.1,{"$f":"IF($I$60=\"NA\",\"NA\", IF($J$60>150,\"Reserved\", \"NA\"))","v":"NA"}]
[]
[]
[]
[]
[]
[]
[]
[]
[]
[]
[]
[]
[null,null,null,null,null,null,null,null,"Output","Input","Size16","Size32"]
[null,"NO","\"User Defines Setting\"",null,null,null,null,null,{"$f":"IF('Profile Selection'!L49=\"Transparent 32 Profile\",IF('Profile Selection'!J14=\"NO\",IF(OR('Profile Selection'!#REF!>2, 'Profile Selection'!#REF!>2),121,21),IF(OR('Profile Selection'!#REF!>3, 'Profile Selection'!#REF!>3),122,22)),\"NA\")","v":"NA"},{"$f":"VLOOKUP(I60,I67:K71,2)","v":"NA"},{"$f":"VLOOKUP($I$60,$I$67:$K$71,3)","v":"NA"},{"$f":"VLOOKUP($I$60,$I$67:$L$71,4)","v":"NA"}]
[null,"YES","\"Define Bit in User CW 6.03\""]
[null,"NO","\"User Defines Setting\""]
[null,"YES","\"Define Bit in User CW 6.03\""]
[null,"NO","\"User Defines Setting\""]
[null,"YES","FB A ref1",null,null,null,null,null,"Assembly Instances for ODVA ACDC Basic Profile"]
[null,"NO","\"User Defines Setting\"",null,null,null,null,null,"Output","Input","16bit","32bit"]
[null,"YES","\"Define Bit in User CW 6.03\"",null,null,null,null,null,"NA","NA","NA","NA"]
[null,"NO","EXT1",null,null,null,null,null,21,71,4,2]
[null,"YES","\"Define Bit in User CW 6.03\"",null,null,null,null,null,22,72,6,3]
[null,"NO","\"User Defines Setting\"",null,null,null,null,null,121,171,14,7]
[null,"YES","FB A ref2",null,null,null,null,null,122,172,16,8]
[null,"NO","\"User Defines Setting\""]
[null,"YES","FB A ref2"]
[]
[]
[]
[]
[]
[]
[]
[]
[]
[]
[]
[]
[]
[]
[]
[]
[]
[]
[]
[null,null,{"$f":"IF(B11=\"NO\",4,3)","v":4}]

{"sheet":"Profile and Instances","index":6,"n_rows":40,"n_cols":1,"rows_kept":40,"cut":false,"hidden":true,"merged":[[33,0,33,18],[36,0,36,18],[39,0,39,18]]}
[]
[]
[]
[]
[]
[]
[]
[]
[]
[]
[]
[]
[]
[]
[]
[]
[]
[]
[]
[]
[]
[]
[]
[]
[]
[]
[]
[]
[]
[]
[]
[]
["ACDC Profiles"]
["EIP ACDC Profile - also referred to as ODVA Profiles, is a control profile that is specified by a third party organization (Open Devicenet Vendors Association) that was defined so that all manufacturers AC and DC drives would look and control the same if this profile was adhered to.  There are benefits to utilizing this type of profile, as it is very simplistic and thus makes writing the PLC control logic very fast and simple to maintain.  The other benefit is that the speed reference and actual speed feedback are also simplified as the scaling is 1=1rpm.  There are two versions of the ACDC ODVA Profile, \"Basic\" and \"Extended\".  The \"Basic\" version of the ODVA Control profile does not support change of motor direction commands where the Extended ACDC does support it.  The Extended ACDC Profile also supports more status bits such as:  VFD Warning Status, Direction of operation, VFD Ready Status, and motor At Speed status.  The ACDC Profiles support Torque Reference and Actual Torque feedback, but it should be known that the scaling is 1=1Nm, and may not provide the resolution required by the application, and would require some math functionality in the PLC if Torque was normally looked at in % of Motor Nominal or in lbft.  Note:  If Torque control is not required, but torque feedback is desired, you can utilize one of the available Input Data Pointers to represent motor torque to provide the level of resolution or different unit of measure."]
[]
["ABB Profile"]
["ABB Drives Profile - Is a control profile that was designed with larger process or coordinated system control in mind.  This profile supports much more control functionality than the ACDC Profiles, such as switching between two control locations, jogging, multiple ways of stopping the VFD (Coast, Ramp, Torque Limit), and profides bits for manipulation of the speed reference ramp generator.  However, because of this additional functionality, it should be known from the PLC programmers perspective that there is a State Machine flow to the control logic that must be satisfied to issue run commands to the VFD.  The speed reference provides a higher level of resolution than that of the ACDC Profile, but would also require math to convert +/-20000 to rpm or hz based on the control mode of the VFD.  ABB Drives Profile also supports Torque Reference and Actual Torque Feedback.  Torque has a higher level of resolution for more finite control vs the ACDC Profile if application requires torque control of the motor."]
[]
["Transparent Profiles"]
["Transparent Profiles - Two different Transparent profiles are supported only by the ACS880 at present time, they are:  Transparent 16 and Transparent 32.  The Transparent Profiles can be utilized to allow the PLC programmer to customize the VFD control and status bit structure to their liking.  It is possible to reuse another VFD manufacturers Control and Status word control bit structures for the ABB ACS880, thus mimicking the other VFD by configuring the ACS880 to utilize a custom bit structure.  Just realize, that by utilizing the Transparent Profiles it will require more parameters to be configured in the ACS880 which will define the bit structure of the Control Word and the Status Word.  It should also be known that by selecting Transparent 32, the user is reducing the number of total data words transferred across Ethernet IP (ie Transparent 16 supports a max data packet of 13 words, Transparent 32 only supports a maximum size of 8)  Both Transparent Profiles support Speed Control and Torque Control if required.  The scaling utilized can be manipulated by the parameters found in 50.04-50.08 and the feedback signals can be user defined by parameters 50.09-50.11 along with the Input and Output Data Pointers in groups 52 and 53."]